Workbook

Sheet 0. Capa
C4: Modelo Econômico-Financeiro - 3a RTP Sanepar
C8: Esta planilha foi desenvolvida como parte integrante da Nota Técnica 003/2025-Agepar-DRE/CSB que apresenta os resultados preliminares (Pré Audiência Pública) da 3ª Revisão Tarifária Periódica dos serviços de saneamento básico do Estado do Paraná para o cálculo da tarifa média econômica (P0) do terceiro ciclo tarifário da Sanepar, envolvendo os anos base de 2025 a 2028. A metodologia adotada é a descrita na Nota Técnica 007/2024-Agepar-DRE/CSB, disponível no site da Agepar. Versão da planilha: Pré Audiência Pública
C17: Sumário
C19: Ref | D19: Componentes | E19: Descrição
C20: 1 | D20: P0 | E20: Fluxo de Caixa Descontado. Cálculo da Tarifa em R$/m³
C21: 2 | D21: Fator X | E21: Determinação e captura da eficiência dos Custos Operacionais
C22: 3 | D22: Mercado | E22: Volumes Projetados (m³) para o Período
C23: 4 | D23: WACC | E23: Custo de Capital
C24: 5 | D24: Outras Receitas | E24: Receitas projetadas e % de compartilhamento por Tipo
C25: 6 | D25: Perdas de Água | E25: Perdas de água tratada
C26: 7 | D26: OPEX - Parcela B | E26: Custos Operacionais Eficientes Projetados - Parcela B (Custo Gerenciável)
C27: 8 | D27: OPEX - Parcela A | E27: Custos Operacionais Não Gerenciáveis Projetados - Parcela A
C28: 8.1 | D28: OPEX - Parcela A Energia Elétrica | E28: Projeção dos Custos com Energia Elétrica
C29: 9 | D29: CAPEX | E29: Investimentos projetados
C30: 10 | D30: Base de Remuneração Regulatória | E30: Base de ativos projetada para o 3o ciclo tarifário
C31: 11 | D31: Anuidade Regulatório | E31: Remuneração de Ativos Não Operacionais
C32: 12 | D32: Capital de Giro | E32: Projeção da Variação do Capital Circulante Líquido
C33: 13 | D33: Receitas Irrecuperáveis | E33: Curva de Inadimplência Regulatória
C34: 14 | D34: Ajustes Compensatórios Ordinários | E34: Descasamento de componentes não Gerenciáveis
C35: 15 | D35: Ajustes Compensatórios Extraordinários | E35: Compensações financeira de fatores Extraordinários
C36: 15.1 | D36: Ajustes Extra. Cont. Graf. | E36: Compensações financeira de fatores Extraordinários, controlados por conta gráfica mensal
C37: 16 | D37: Receita Verificada | E37: Descasamento entre a tarifa efetiva e a aprovada

Sheet 1. P0
C5: Cálculo do P0 - Fluxo de Caixa Descontado
C7: ID | D7: Descrição | E7: Componentes Fórmula | F7: Composição do P0 | G7: Composição do P0 (com Fator X) | H7: Valor Presente | I7: Ciclo Tarifário - R$ (Dez/24) x 1000
H8: 2024 | I8: 2025 | J8: =I8+1 -> 2026 | K8: 2027 | L8: 2028
C9: 1 | D9: Volume Faturado (A+E) - (1.000 m³) | E9: VF | H9: =NPV($E$29,I9:L9) -> 3314412.044 | I9: ='3. Mercado'!I20/1000 -> 1063014.972 | J9: ='3. Mercado'!J20/1000 -> 1087498.661 | K9: ='3. Mercado'!K20/1000 -> 1112693.936 | L9: ='3. Mercado'!L20/1000 -> 1138158.36
C10: 2 | D10: (+) Receita Requerida | E10: RRD | H10: 22346865.46 | I10: =I9*$E$32 -> 7167199.568 | J10: =J9*$E$32 -> 7332276.721 | K10: =K9*$E$32 -> 7502151.623 | L10: =L9*$E$32 -> 7673841.216
C11: 3 | D11: (+) Outras Receitas | E11: OR | F11: =-H11/$H$9 -> -0.07847791414 | G11: =F11*(1-$E$30) -> -0.07847791413 | H11: 260108.1438 | I11: ='5. Outras Receitas'!I33/1000 -> 86069.81035 | J11: =I11 -> 86069.81035 | K11: =J11 -> 86069.81035 | L11: 86069.81035
C12: 4 | D12: (-) Receitas Irrecuperáveis | E12: RINC | F12: =H12/$H$9 -> 0.04531580061 | G12: 0.04531580061 | H12: =NPV($E$29,I12:L12) -> 150195.2353 | I12: =I9*($E$32+$E$35+$E$37)*'13. Receitas Irrecuperáveis'!$G$2 -> 48171.37452 | J12: =J9*($E$32+$E$35+$E$37)*'13. Receitas Irrecuperáveis'!$G$2 -> 49280.87249 | K12: =K9*($E$32+$E$35+$E$37)*'13. Receitas Irrecuperáveis'!$G$2 -> 50422.61655 | L12: =L9*($E$32+$E$35+$E$37)*'13. Receitas Irrecuperáveis'!$G$2 -> 51576.55731
C13: 5 | D13: (-) OPEX - Custos Operacionais | E13: OPEX | F13: 3.424251953 | G13: 3.424251953 | H13: 11349381.91 | I13: =I14+I15 -> 3574030.943 | J13: =J14+J15 -> 3667461.662 | K13: =K14+K15 -> 3894943.517 | L13: =L14+L15 -> 3966546.728
C14: 5.1 | D14: (-) OPEX - Parcela A - Não Gerenciável | E14: OPEX-A | F14: 1.052605278 | G14: 1.052605278 | H14: 3488767.611 | I14: ='8. Opex - Parcela A'!D15/1000 -> 1021706.459 | J14: ='8. Opex - Parcela A'!E15/1000 -> 1078815.03 | K14: ='8. Opex - Parcela A'!F15/1000 -> 1270893.406 | L14: ='8. Opex - Parcela A'!G15/1000 -> 1306655.144
C15: 5.2 | D15: (-) OPEX - Parcela B - Gerenciável | E15: OPEX-B | F15: 2.371646675 | G15: 2.371646675 | H15: 7860614.303 | I15: ='7. Opex - Parcela B'!O59/1000 -> 2552324.484 | J15: ='7. Opex - Parcela B'!P59/1000 -> 2588646.632 | K15: ='7. Opex - Parcela B'!Q59/1000 -> 2624050.111 | L15: ='7. Opex - Parcela B'!R59/1000 -> 2659891.584
C16: 6 | D16: (-) Anuidade de Ativos Não Operacionais | E16: AR | F16: 0.006684204153 | G16: 0.006684204153 | H16: 22154.20675 | I16: ='11. Anuidade Regulatória'!D15/1000 -> 7330.829191 | J16: =$I$16 -> 7330.829191 | K16: =$I$16 -> 7330.829191 | L16: 7330.829191
C17: 7 | D17: (-) Investimentos (CAPEX) | E17: CAPEX | F17: 1.556624343 | G17: 1.556624343 | H17: 5159294.471 | I17: ='9. CAPEX'!B40*1000 -> 1405508.643 | J17: ='9. CAPEX'!C40*1000 -> 2219806.371 | K17: ='9. CAPEX'!D40*1000 -> 1675202.183 | L17: ='9. CAPEX'!E40*1000 -> 1523980.438
C18: 8 | D18: (+) Baixas de Ativos e Não Elegíveis (alterados) | E18: BX | F18: 0 | G18: 0 | H18: 0 | I18: 0 | J18: 0 | K18: 0 | L18: 0
C19: 9 | D19: (-) Variação do Capital de Giro | E19: ΔCG | F19: 0.07114997835 | G19: 0.07114997835 | H19: =NPV($E$29,I19:L19)+('12. Capital de Giro'!N26/1000) -> 235820.3452 | I19: ='12. Capital de Giro'!O26/1000 -> 96517.87358 | J19: ='12. Capital de Giro'!P26/1000 -> 19991.61451 | K19: ='12. Capital de Giro'!Q26/1000 -> 21124.22741 | L19: ='12. Capital de Giro'!R26/1000 -> -693843.9406
C20: 10 | D20: (-) Base de Capital Inicial | E20: BRL0 | F20: 6.516615831 | G20: 6.516615831 | H20: ='10. BRRt'!D6/1000 -> 21598749.99 | I20: 0 | J20: 0 | K20: 0 | L20: 0
C21: 11 | D21: (+) Base de Capital Final | E21: BRLT | F21: =-H21/$H$9 -> -4.799832473 | G21: -4.799832473 | H21: =NPV($E$29,I21:L21) -> 15908622.56 | I21: 0 | J21: 0 | K21: 0 | L21: ='10. BRRt'!G12/1000 -> 25247780.75
D23: (=) Tarifa antes das compensações | F23: =F11+F12+F13+F16+F17+F19+F20+F21+F18 -> 6.742331723 | G23: =G11+G12+G13+G16+G17+G19+G20+G21+G18 -> 6.742331723
F24: =IF(ROUND(F23,5)=ROUND(E32,5),"","VERIFICAR") -> 
D25: = Livre Fluxo de Caixa | H25: =-H20-('12. Capital de Giro'!N26/1000)-H18 -> -22154960.22 | I25: =I10+I11+I21+I18-SUM(I12:I13)-SUM(I16:I17)-SUM(I19:I20) -> 2121709.715 | J25: =J10+J11+J21+J18-SUM(J12:J13)-SUM(J16:J17)-SUM(J19:J20) -> 1454475.182 | K25: 1939198.06 | L25: 28152101.16
D26: = Livre Fluxo de Caixa Descontado | H26: =H25/(1+$E$29)^(H8-$H$8) -> -22154960.22 | I26: =I25/(1+$E$29)^(I8-$H$8) -> 1890332.96 | J26: =J25/(1+$E$29)^(J8-$H$8) -> 1154545.357 | K26: =K25/(1+$E$29)^(K8-$H$8) -> 1371447.521 | L26: =L25/(1+$E$29)^(L8-$H$8) -> 17738634.38
D28: Valor Presente Líquido | E28: =SUM(H26:L26) -> 0 | H28: =IF(ABS(E28)>0.01,"Calcular P0!","") -> 
C29: 11 | D29: WACC Pré | E29: ='4. WACC'!B23 -> 0.1224 | J29: Atingir Meta: Botão iterativo para calcular a receita que zera o VPL do Fluxo
C30: 12 | D30: Fator X | E30: ='2. Fator X'!E33 -> 1.092729794e-11
D32: (=) Tarifa Média Máxima - P0 (R$ / m3) | E32: 6.742331723
D33: (-) Fator X | E33: =E30*'1. P0'!E32 -> 7.367546756e-11 | H33: =IF(ABS(SUM('2. Fator X'!E29:E30))>0.01,"Atualizar Fator X","") -> 
D34: (=) Tarifa Média Máxima - P0 (R$ / m3) com Fator X | E34: =E32-E33 -> 6.742331723
D35: (+/-) Ajuste Compensatório Ordinário | E35: =H35/H9 -> -0.02267870749 | H35: ='14. Ajuste Ordinário'!F58 -> -75166.58124
D36: (=) Tarifa Média Máxima - P0 (R$ / m3) - com AJC | E36: =SUM(E34:E35) -> 6.719653015
D37: (+/-) Ajuste Compensatório Extraordinário | E37: =H37/H9 -> 0.1734379194 | H37: ='15. Ajustes Extraordinários'!C6/1000 -> 574844.7288
D38: (=) Tarifa Média Máxima - P0 (R$ / m3) - com AJCe | E38: =SUM(E36:E37) -> 6.893090935
D40: (=) Tarifa Média Máxima - P0 (R$ / m3) - Dez/2024 | E40: =SUM(E38:E38) -> 6.893090935
D41: Tarifa Vigente | E41: 6.629
D42: Reposicionamento (tarifa efetiva/vigente) | E42: ='16. Receita Verificada'!K2 -> -0.00681085222
D43: Base para aplicação da nova tarifa | E43: =E41*(1+E42) -> 6.583850861
D44: Variação da tarifa | E44: =ROUND(E40/E43-1,6) -> 0.046969

Sheet 2. Fator X
C3: Fator X
D5: Redução do Opex | E5: 0
C7: ID | D7: Descrição | E7: Componentes Fórmula | F7: Valor Presente | G7: Ciclo Tarifário - R$ (Dez/24) x 1000
F8: 2024 | G8: 2025 | H8: 2026 | I8: 2027 | J8: 2028
C9: 1 | D9: ='1. P0'!D9 -> Volume Faturado (A+E) - (1.000 m³) | E9: ='1. P0'!E9 -> VF | F9: =NPV($E$31,G9:J9) -> 3314412.044 | G9: ='1. P0'!I9 -> 1063014.972 | H9: ='1. P0'!J9 -> 1087498.661 | I9: ='1. P0'!K9 -> 1112693.936 | J9: ='1. P0'!L9 -> 1138158.36
C10: 2 | D10: ='1. P0'!D10 -> (+) Receita Requerida | E10: ='1. P0'!E10 -> RRD | F10: 22346865.46 | G10: =G9*$E$32 -> 7167199.568 | H10: =H9*$E$32 -> 7332276.721 | I10: =I9*$E$32 -> 7502151.623 | J10: =J9*$E$32 -> 7673841.216
C11: 3 | D11: ='1. P0'!D11 -> (+) Outras Receitas | E11: ='1. P0'!E11 -> OR | F11: 260108.1438 | G11: ='1. P0'!I11 -> 86069.81035 | H11: ='1. P0'!J11 -> 86069.81035 | I11: ='1. P0'!K11 -> 86069.81035 | J11: ='1. P0'!L11 -> 86069.81035
C12: 4 | D12: ='1. P0'!D12 -> (-) Receitas Irrecuperáveis | E12: ='1. P0'!E12 -> RINC | F12: 150195.2353 | G12: ='1. P0'!I12 -> 48171.37452 | H12: ='1. P0'!J12 -> 49280.87249 | I12: ='1. P0'!K12 -> 50422.61655 | J12: ='1. P0'!L12 -> 51576.55731
C13: 5 | D13: ='1. P0'!D13 -> (-) OPEX - Custos Operacionais | E13: ='1. P0'!E13 -> OPEX | F13: 11349381.91 | G13: =G14+G15 -> 3574030.943 | H13: =H14+H15 -> 3667461.662 | I13: =I14+I15 -> 3894943.517 | J13: =J14+J15 -> 3966546.728
C14: 5.1 | D14: ='1. P0'!D14 -> (-) OPEX - Parcela A - Não Gerenciável | E14: ='1. P0'!E14 -> OPEX-A | F14: 3488767.611 | G14: ='1. P0'!I14 -> 1021706.459 | H14: ='1. P0'!J14 -> 1078815.03 | I14: ='1. P0'!K14 -> 1270893.406 | J14: ='1. P0'!L14 -> 1306655.144
C15: 5.2 | D15: ='1. P0'!D15 -> (-) OPEX - Parcela B - Gerenciável | E15: ='1. P0'!E15 -> OPEX-B | F15: 7860614.303 | G15: ='1. P0'!I15*((1+$E$5)^(G8-$F$8)) -> 2552324.484 | H15: ='1. P0'!J15*((1+$E$5)^(H8-$F$8)) -> 2588646.632 | I15: ='1. P0'!K15*((1+$E$5)^(I8-$F$8)) -> 2624050.111 | J15: ='1. P0'!L15*((1+$E$5)^(J8-$F$8)) -> 2659891.584
C16: 6 | D16: (-) Anuidade de Ativos Não Operacionais | E16: AR | F16: 22154.20675 | G16: ='1. P0'!I16 -> 7330.829191 | H16: ='1. P0'!J16 -> 7330.829191 | I16: ='1. P0'!K16 -> 7330.829191 | J16: ='1. P0'!L16 -> 7330.829191
C17: 7 | D17: ='1. P0'!D17 -> (-) Investimentos (CAPEX) | E17: ='1. P0'!E17 -> CAPEX | F17: 5159294.471 | G17: ='1. P0'!I17 -> 1405508.643 | H17: ='1. P0'!J17 -> 2219806.371 | I17: ='1. P0'!K17 -> 1675202.183 | J17: ='1. P0'!L17 -> 1523980.438
C18: 8 | D18: (+) Baixas de Ativos e Não Elegíveis (alterados) | E18: BX | F18: ='1. P0'!H18 -> 0 | G18: ='1. P0'!I18 -> 0 | H18: ='1. P0'!J18 -> 0 | I18: ='1. P0'!K18 -> 0 | J18: ='1. P0'!L18 -> 0
C19: 9 | D19: (-) Variação do Capital de Giro | E19: ΔCG | F19: =NPV($E$31,G19:J19)+('12. Capital de Giro'!N26/1000) -> 235820.3452 | G19: ='1. P0'!I19 -> 96517.87358 | H19: ='1. P0'!J19 -> 19991.61451 | I19: ='1. P0'!K19 -> 21124.22741 | J19: ='1. P0'!L19 -> -693843.9406
C20: 10 | D20: (-) Base de Capital Inicial | E20: BRL0 | F20: ='10. BRRt'!D6/1000 -> 21598749.99 | G20: ='1. P0'!I20 -> 0 | H20: ='1. P0'!J20 -> 0 | I20: ='1. P0'!K20 -> 0 | J20: ='1. P0'!L20 -> 0
C21: 11 | D21: (+) Base de Capital Final | E21: BRLT | F21: =NPV($E$31,G21:J21) -> 15908622.56 | G21: ='1. P0'!I21 -> 0 | H21: ='1. P0'!J21 -> 0 | I21: ='1. P0'!K21 -> 0 | J21: ='1. P0'!L21 -> 25247780.75
D23: = Livre Fluxo de Caixa | F23: =-F20-('12. Capital de Giro'!N26/1000)-F18 -> -22154960.22 | G23: =SUM('2. Fator X'!G10:G11,'2. Fator X'!G21)-SUM('2. Fator X'!G12:G13,G16:G20) -> 2121709.715 | H23: =SUM('2. Fator X'!H10:H11,'2. Fator X'!H21)-SUM('2. Fator X'!H12:H13,H16:H20) -> 1454475.182 | I23: =SUM('2. Fator X'!I10:I11,'2. Fator X'!I21)-SUM('2. Fator X'!I12:I13,I16:I20) -> 1939198.06 | J23: =SUM('2. Fator X'!J10:J11,'2. Fator X'!J21)-SUM('2. Fator X'!J12:J13,J16:J20) -> 28152101.16
D24: = Livre Fluxo de Caixa Descontado | F24: =F23/(1+$E$31)^(F8-$F$8) -> -22154960.22 | G24: =G23/(1+$E$31)^(G8-$F$8) -> 1890332.96 | H24: =H23/(1+$E$31)^(H8-$F$8) -> 1154545.357 | I24: =I23/(1+$E$31)^(I8-$F$8) -> 1371447.521 | J24: =J23/(1+$E$31)^(J8-$F$8) -> 17738634.38
E26: Receita Eficiente | G26: =G10 -> 7167199.568 | H26: =H10 -> 7332276.721 | I26: 7502151.623 | J26: 7673841.216
E27: Receita sem eficiência | G27: ='1. P0'!I10*((1-$E$33)^(G8-$F$8)) -> 7167199.568 | H27: ='1. P0'!J10*((1-$E$33)^(H8-$F$8)) -> 7332276.721 | I27: ='1. P0'!K10*((1-$E$33)^(I8-$F$8)) -> 7502151.622 | J27: ='1. P0'!L10*((1-$E$33)^(J8-$F$8)) -> 7673841.216
D29: Receita Fator X | E29: =SUM(G26:J26)-SUM(G27:J27) -> 0.0008199065924
D30: Valor Presente Líquido | E30: =SUM(F24:J24) -> 0 | H30: Atingir Meta: Botão iterativo para calcular a receita que zera o VPL do Fluxo e na sequência determina o Fator X
C31: =C21+1 -> 12 | D31: WACC Pré | E31: ='1. P0'!E29 -> 0.1224
D32: Tarifa Média Máxima - P0 (R$ / m3) | E32: 6.742331723
D33: Fator X % | E33: 1.092729794e-11

Sheet 3. Mercado
A1: Histórico e Projeções de Mercado
B2: Medida | C2: 2024 | D2: 2025 | E2: 2026 | F2: 2027 | G2: 2028 | I2: Fonte: | K2: Incluindo perdas
A3: Água | B3: Volume Residencial Medido | C3: 474936046 | D3: 478470373 | E3: 484097301 | F3: 490493783 | G3: 497324560 | I3: Agepar
B4: Volume Não Residencial Medido | C4: 83911796 | D4: 90990708 | E4: 97259214 | F4: 103528989 | G4: 109798776 | I4: Agepar | K4: Não alterado
B5: Volume Produzido | C5: 857357536 | D5: 857899300 | E5: 871730155.9 | F5: 886317205.5 | G5: 901324085.9 | I5: Agepar
B6: Volume Faturado | C6: 580157387 | D6: 585756301 | E6: 596381271 | F6: 607147031 | G6: 617912847 | I6: Agepar
B7: Ligações | C7: 3481918 | D7: 3516142 | E7: 3550653 | F7: 3585164 | G7: 3619676 | I7: Agepar
B8: Economias Residenciais | C8: 3913067 | D8: 3944116 | E8: 3974940 | F8: 4005765 | G8: 4036590 | I8: Agepar
B9: Economias Não Residenciais | C9: 402931 | D9: 411665 | E9: 420572 | F9: 429480 | G9: 438388 | I9: Agepar
A11: Esgoto | B11: Volume Residencial Coletado | C11: 377022393 | D11: 367584651 | E11: 378666993 | F11: 389188633 | G11: 401800104 | I11: Sanepar
B12: Volume Não Residencial Coletado | C12: 68585315 | D12: 88158213.75 | E12: 90309811.23 | F12: 93567173.96 | G12: 94991667.45 | I12: Sanepar
B13: Volume Tratado | C13: 444570001 | D13: 455742864.7 | E13: 468976804.2 | F13: 482755807 | G13: 496791771.4 | I13: Sanepar
B14: Volume Faturado | C14: 465043737.5 | D14: 477258671 | E14: 491117390 | F14: 505546905 | G14: 520245513 | I14: Sanepar
B15: Ligações | C15: 2569785 | D15: 2675361 | E15: 2797301 | F15: 2882475 | G15: 2965939 | I15: Sanepar
B16: Economias Residenciais | C16: 3137912 | D16: 3209449 | E16: 3280306 | F16: 3352797 | G16: 3425292 | I16: Sanepar
B17: Economias Não Residenciais | C17: 326608 | D17: 336009 | E17: 345802 | F17: 355594 | G17: 365386 | I17: Sanepar
B20: Volume Faturado Água+Esgoto | I20: =D14+D6 -> 1063014972 | J20: =E14+E6 -> 1087498661 | K20: =F14+F6 -> 1112693936 | L20: =G14+G6 -> 1138158360
C23: 2020 | D23: 2021 | E23: 2022 | F23: 2023 | G23: 2024 | I23: 2025 | J23: 2026 | K23: 2027 | L23: 2028
B24: Volume Produzido de água | C24: 764917368 | D24: 752414513 | E24: 783907805 | F24: 811288960 | G24: 852063078 | I24: =D5 -> 857899300 | J24: =E5 -> 871730155.9 | K24: =F5 -> 886317205.5 | L24: =G5 -> 901324085.9
B25: Ligações de Água | C25: 3273807 | D25: 3348437 | E25: 3410682 | F25: 3448897 | G25: 3483522 | I25: =D7 -> 3516142 | J25: =E7 -> 3550653 | K25: =F7 -> 3585164 | L25: =G7 -> 3619676
B26: Volume medido de água | C26: 501095943 | D26: 494762144 | E26: 507251461 | F26: 534987153 | G26: 559196222 | I26: =D3+D4 -> 569461081 | J26: =E3+E4 -> 581356515 | K26: =F3+F4 -> 594022772 | L26: =G3+G4 -> 607123336
B27: Ligações de esgoto | C27: 2308138 | D27: 2379696 | E27: 2445588 | F27: 2517885 | G27: 2585670 | I27: =D15 -> 2675361 | J27: =E15 -> 2797301 | K27: =F15 -> 2882475 | L27: =G15 -> 2965939
B28: Volume tratado de esgoto | C28: 377326945 | D28: 375586933 | E28: 390688459 | F28: 419869134 | G28: 445305597 | I28: =D13 -> 455742864.7 | J28: =E13 -> 468976804.2 | K28: =F13 -> 482755807 | L28: =G13 -> 496791771.4
B29: Volume Coletado de Esgoto | C29: 377326945 | D29: 375586933 | E29: 390688459 | F29: 419869134 | G29: 445305597 | I29: =D13 -> 455742864.7 | J29: =E13 -> 468976804.2 | K29: =F13 -> 482755807 | L29: =G13 -> 496791771.4
B41: Fonte: Anexo_21_Mercadorealizadoeprojetadodez2024 (protocolo 23.013.629-7)

Sheet 4. WACC
A1: Tabela - Resultado Cálculo WACC Regulatório
A2: Variáveis de entrada e WACC final | B2: Valor | C2: Descrição
A3: Custo de Capital Próprio Nominal (%) (Ke) | B3: =B4 -> 0.1534970719
A4: Custo de Capital Próprio Nominal (%) (Ke) | B4: =B5+B7*(B8)+B9 -> 0.1534970719 | C4: Rf + β(Rm - Rf) + Rp | H4: Mediana Risco País | I4: 0.0307
A5: Taxa Livre de Risco (Rf) | B5: =I10 -> 0.0374 | C5: Média 1995-2024 TBOND10
A6: Retorno de Mercado (Rm) | B6: =I12 -> 0.1255 | C6: média dos retornos do S&P 500 de 1995 até 2024 | H6: média IGUUC509 (Bloomberg) AAA(bra) | I6: 0.0575
A7: Beta Alavancado | B7: =I21 -> 0.9693197719 | C7: Média 2020-2024 Betas Damodaran, realavancados para a estrutura de capital da Sanepar
A8: Prêmio de Risco Mercado (%) (Rm - Rf) | B8: =B6-B5 -> 0.0881 | C8: Diferença entre a média dos retornos do S&P 500 e o USTBill 10 anos de 1995 até 2024 | H8: média Infação | I8: 0.0253
A9: Risco País (%) | B9: =I4 -> 0.0307 | C9: Mediana EMBI+ Brasil 1995-2024
A10: Custo de Capital de Terceiros Nominal (%) (Kd) | B10: =B11 -> 0.08747536148 | C10: - | H10: média Rf | I10: 0.0374
A11: Custo de Capital de Terceiros Nominal (%) (Kd) | B11: =B14+B15+B12 -> 0.08747536148 | C11: Rf + Rc + Rp
A12: Taxa Livre de Risco (Rf) | B12: =B5 -> 0.0374 | C12: Média 1995-2024 TBOND10 | H12: média Rm | I12: 0.1255
A13: Custo do Crédito (%) IGUUC509 (Bloomberg) | B13: =I6 -> 0.0575 | C13: Média IGUUC509 Bloomberg 2009-2024
A14: Prêmio de Risco de Crédito (%) (Rc) | B14: =(1+B13)/(1+B12)-1 -> 0.01937536148 | C14: Spread entre a Média IGUUC509 Bloomberg 2009-2024 e a Taxa Livre de Risco | H14: Beta desalavancado médio | I14: 0.608
A15: Risco País (%) (Rp) | B15: =B9 -> 0.0307 | C15: Mediana EMBI+ Brasil 1995-2024
A16: Estrutura de Capital | C16: - | H16: Média % Cap. Próprio (We) | I16: 0.5262
A17: Participação Capital Próprio (%) (We) | B17: =I16 -> 0.5262 | C17: Média % Capital Próprio 2021-2024 | H17: Média % Cap. Terceiros (Wd) | I17: 0.4738
A18: Participação Capital Terceiros (%) (Wd) | B18: =I17 -> 0.4738 | C18: Média % Capital de Terceiros 2021-2024
A19: Custo Médio Ponderado do Capital (WACC) Real (%) | B19: =(1+B20)/(1+B22)-1 -> 0.08078065403 | C19: Wacc Líquido de impostos | H19: Tax (IRPJ+CSLL) | I19: 0.34
A20: Custo Médio Ponderado do Capital (WACC) Nominal (%) | B20: =(B3*B17)+(B10*B18)*(1-B21) -> 0.1081244046 | C20: (Ke x We)+ (Kd x Wd) x (1-Tax)
A21: Taxa de Impostos (IR e CSLL) (%) | B21: =I19 -> 0.34 | C21: IRPJ (Imposto de Renda de Pessoa Jurídica) + CSLL (Contribuição Social sobre o Lucro Líquido) | H21: Beta Realavancado Sanepar | I21: =((I16+I17*(1-I19))/I16)*I14 -> 0.9693197719
A22: Inflação esperada (em USD) (%) | B22: =I8 -> 0.0253 | C22: Média CPI 1995-2024
A23: Wacc antes do imposto (%) Real | B23: =ROUND(B19/(1-B21),4) -> 0.1224 | C23: Wacc Bruto

Sheet 5. Outras Receitas
A1: Conta Contábil | B1: Conta | C1: % Reversão para Modicidade | D1: 2021 | E1: 2022 | F1: 2023 | G1: 2024 | H1: Média | I1: Montante para Reversão
A2: Serviços de água
A3: 31-122 | B3: Acréscimo por Impontualidade | C3: 1 | D3: 31205272.99 | E3: 31011920.79 | F3: 33608945.21 | G3: 41340360.9 | H3: =AVERAGE(D3:G3) -> 34291624.97 | I3: =H3*C3 -> 34291624.97
A4: 31-123 | B4: Religações | C4: 0.75 | D4: 189406.9316 | E4: 506688.3103 | F4: 1457585.77 | G4: 2567210.04 | H4: =AVERAGE(D4:G4) -> 1180222.763 | I4: 885167.0722
A5: 31-126 | B5: Sanções | C5: 1 | D5: 4475071.399 | E5: 3631260.27 | F5: 4623804.733 | G5: 8855381.14 | H5: 5396379.386 | I5: 5396379.386
A6: 31-128 | B6: Outros | C6: 0.75 | D6: 15817776.98 | E6: 14881123.65 | F6: 14388074.6 | G6: 15780096.24 | H6: 15216767.87 | I6: 11412575.9
A7: 31-129 | B7: Devolução de valores (DV) | C7: 1 | D7: -351846.12 | E7: -287454.6903 | F7: -279113.3863 | G7: -352877.58 | H7: -317822.9441 | I7: -317822.9441
A8: 31-000 | B8: Água Industrial (fornecimento) | C8: 0.5 | D8: 2093654.075 | E8: 4595765.029 | F8: -7863933.327 | G8: 1752485.3 | H8: =AVERAGE(D8:G8) -> 144492.7692 | I8: =IF(H8<0,0,H8*C8) -> 72246.38458
A9: Serviços de esgoto | I9: 0
A10: 31-222 | B10: Acréscimo por Impontualidade | C10: 1 | D10: 16140384.85 | E10: 16174195.4 | F10: 17293286.17 | G10: 19564960.16 | H10: 17293206.65 | I10: 17293206.65
A11: 31-224 | B11: Conserto de Ramais | C11: 0.75 | D11: 79523.2355 | E11: 78714.46305 | F11: 117132.5821 | G11: 96732.26 | H11: 93025.63516 | I11: 69769.22637
A12: 31-228 | B12: Outros | C12: 0.75 | D12: 3979293.435 | E12: 3832081.741 | F12: 3891692.242 | G12: 4234179.92 | H12: 3984311.834 | I12: 2988233.876
A13: 31-219 | B13: Devolução de valores (DV) | C13: 1 | D13: -6407781.128 | E13: -6901109.183 | F13: -7738149.026 | G13: -10964239.5 | H13: -8002819.709 | I13: -8002819.709
A14: 31-231 | B14: Receitas Vinculadas à ANA | C14: 1 | D14: 0 | E14: 0 | F14: 0 | G14: 0 | H14: 0 | I14: 0
A15: Outras receitas operacionais | I15: 0
A16: 33-111 | B16: Serviços de Laboratório | C16: 0.75 | D16: 0 | E16: 0 | F16: 0 | G16: 0 | H16: 0 | I16: 0
A17: 33-112 | B17: Serviços de Manutenção | C17: 0.75 | D17: 0 | E17: 0 | F17: 0 | G17: 0 | H17: 0 | I17: 0
A18: 33-113 | B18: Serviços de Projeto e Assistência Técnica | C18: 0.75 | D18: 0 | E18: 0 | F18: 0 | G18: 0 | H18: 0 | I18: 0
A19: 33-116 | B19: Serviços Prestados às Prefeituras | C19: 0.75 | D19: 24264595.05 | E19: 24157931.43 | F19: 25533137.01 | G19: 25521885.22 | H19: 24869387.18 | I19: 18652040.38
A20: 33-117 | B20: Serviços de Carga e Descarga | C20: 0.75 | D20: 40159.00531 | E20: 39462.03209 | F20: 34518.74308 | G20: 43936.92 | H20: 39519.17512 | I20: 29639.38134
A21: 33-118 | B21: Insc. Cadastral e Venda de Elem. e Materiais | C21: 0.75 | D21: 0 | E21: 0 | F21: 0 | G21: 0 | H21: 0 | I21: 0
A22: 33-212 | B22: Indenização e Ressarcimento de Despesas | C22: 1 | D22: 1166051.432 | E22: 1154035.691 | F22: 3820419.262 | G22: 1787601.98 | H22: 1982027.091 | I22: 1982027.091
A23: 33-215 | B23: Locação de Imóveis | C23: 0.75 | D23: 373673.8657 | E23: 413421.3368 | F23: 1155431.304 | G23: 191838.52 | H23: 533591.2567 | I23: 400193.4425
A24: 33-216 | B24: Cessão para exploração de Serviços Financeiros | C24: 0.75 | D24: 4872860.308 | E24: 4021440.373 | F24: 3731990.646 | G24: 3560000.04 | H24: 4046572.842 | I24: 3034929.631
A25: 33-219 | B25: Outras Receitas Menores | C25: 0.75 | D25: 229871.3376 | E25: 1348910.909 | F25: 2972566.935 | G25: 648481.06 | H25: 1299957.56 | I25: 974968.1703
B26: Faturamento de Serviços Diversos ao Contrato/AtividadeFim | C26: 0.75
A27: Outras receitas operacionais - indiretas | I27: 0
A28: 33-214 | B28: Ganhos com recuperação de créditos fiscais | C28: 0.75 | D28: 0 | E28: 0 | F28: 0 | G28: 0 | H28: 0 | I28: 0
A29: 33-312 | B29: Venda de bens do ativo imobilizado¹ | C29: 0.75 | D29: 2785928.054 | E29: 0 | F29: 0 | G29: 1119542.64 | H29: 976367.6736 | I29: =H29*C29 -> 732275.7552
A30: 33-313 | B30: Venda de materiais inservíveis | C30: 0.75 | D30: 6619257.708 | E30: 5122768.438 | F30: 2609642.485 | G30: 602439.08 | H30: 3738526.928 | I30: 2803895.196
C31: Total | I31: =SUM(I3:I30) -> 92698529.86
A32: 1 - Nos documentos analisados não foram identificadas informações sobre vendas de terrenos. | H32: Cofins/PASEP | I32: ='16. Receita Verificada'!$E$25 -> 0.07150835637
A33: 2 - Atualização monetária por IPCA, considerados n. índices de dezembro de cada ano até dez.2024. | H33: Valor Líquido Outras Receitas | I33: =I31*(1-I32) -> 86069810.35
A34: 3 - Os dados de receita para o ano de 2024 são parciais, até junho, assim, foram extrapolados para o ano inteiro.
A37: Verificação Água Industrial e Resíduos Sólidos | B37: 2021 | C37: 2022 | D37: 2023 | E37: 2024
A38: Receita Água Industrial | B38: 7918960.13 | C38: 7924050.92 | D38: 3156905.19 | E38: 1606518.66
A39: Custos Água Industrial | B39: -6114404.58 | C39: -3733726.8 | D39: -10658425.32 | E39: -730276.01
A40: Resultado Água Industrial | B40: =B38+B39 -> 1804555.55 | C40: =C38+C39 -> 4190324.12 | D40: =D38+D39 -> -7501520.13 | E40: =E38+E39 -> 876242.65
A41: Receita RSU | B41: 11739495.78 | C41: 12502962.13 | D41: 13773756.03 | E41: 7811166.17
A42: Custos RSU | B42: -12634089.32 | C42: -15247771.39 | D42: -19127015.83 | E42: -11655401.47
A43: Resultado Resíduos Sólidos | B43: =B41+B42 -> -894593.54 | C43: =C41+C42 -> -2744809.26 | D43: -5353259.8 | E43: -3844235.3 | F43: =AVERAGE(B43:E43) -> -3209224.475 | G43: Resultado negativo, não compartilhado com a modicidade

Sheet 6. Perdas de Água
A1: Sigla do Prestador | B1: Ano de Referência | C1: IN051 - Índice de perdas por ligação
A2: SANEPAR | B2: 2022 | C2: 222.68
A3: SANEPAR | B3: 2021 | C3: 222.94
A4: SANEPAR | B4: 2020 | C4: 226.34
A5: SANEPAR | B5: 2019 | C5: 229.8
A7: Itens de cálculo | B7: Valor
A8: Média 19 - 22 | B8: =AVERAGE(C2:C5) -> 225.44
A9: Melhor indicador do período | B9: =SMALL(C2:C5,1) -> 222.68
A10: Variação % do melhor resultado em relação à média | B10: =B9/B8-1 -> -0.01224272534
A11: CAGR - Indicador anual para Perdas de água | B11: =((1+B10)^(1/4))-1 -> -0.003074834193
A13: Projeção do indicador de perdas | B13: Valor
A14: 2025 | B14: =B8*(1+$B$11) -> 224.7468094
A15: 2026 | B15: =B14*(1+$B$11) -> 224.0557502
A16: 2027 | B16: =B15*(1+$B$11) -> 223.3668159
A17: 2028 | B17: =B16*(1+$B$11) -> 222.68

Sheet 7. Opex - Parcela B
F1: IPCA até dez/2024
F2: 2021 | G2: 2022 | H2: 2023 | I2: 2024
F3: 1.160204835 | G3: 1.096756455 | H3: 1.048311967 | I3: 1 | O3: Projeção
A4: Pessoal | B4: 2021 | C4: 2022 | D4: 2023 | E4: 2024 | F4: 2021 atualiz. IPCA | G4: 2022 atualiz. IPCA | H4: 2023 atualiz. IPCA | I4: 2024 atualiz. IPCA | J4: Ano mais recente | K4: Media | L4: Mediana | M4: Valor referência | N4: Driver | O4: 2025 | P4: 2026 | Q4: 2027 | R4: 2028
A5: Produção | B5: 0.1927686401 | C5: 0.2334518824 | D5: 0.2378560025 | E5: 0.5665207266 | F5: =B5*F$3 -> 0.2236511083 | G5: =C5*G$3 -> 0.2560398591 | H5: 0.249347294 | I5: 0.5665207266 | J5: 0.249347294 | K5: =AVERAGE(F5:I5) -> 0.323889747 | L5: =MEDIAN(F5:I5) -> 0.2526935765 | M5: =SMALL(J5:L5,1) -> 0.249347294 | N5: Volume Produzido de Água | O5: =VLOOKUP('7. Opex - Parcela B'!$N5,'3. Mercado'!$B$24:$L$29,8+O$4-$O$4,FALSE)*$M5 -> 213914869 | P5: =VLOOKUP('7. Opex - Parcela B'!$N5,'3. Mercado'!$B$24:$L$29,8+P$4-$O$4,FALSE)*$M5 -> 217363555.5 | Q5: =VLOOKUP('7. Opex - Parcela B'!$N5,'3. Mercado'!$B$24:$L$29,8+Q$4-$O$4,FALSE)*$M5 -> 221000796.8 | R5: =VLOOKUP('7. Opex - Parcela B'!$N5,'3. Mercado'!$B$24:$L$29,8+R$4-$O$4,FALSE)*$M5 -> 224742721.8
A6: Distribuição | B6: 37.56454536 | C6: 43.52977851 | D6: 43.04956179 | E6: 52.19814051 | F6: =B6*F$3 -> 43.58256716 | G6: 47.74156558 | H6: 45.12937082 | I6: 52.19814051 | J6: 45.12937082 | K6: =AVERAGE(F6:I6) -> 47.16291102 | L6: 46.4354682 | M6: =SMALL(J6:L6,1) -> 45.12937082 | N6: Ligações de Água | O6: =VLOOKUP('7. Opex - Parcela B'!$N6,'3. Mercado'!$B$24:$L$29,8+O$4-$O$4,FALSE)*$M6 -> 158681276.2 | P6: =VLOOKUP('7. Opex - Parcela B'!$N6,'3. Mercado'!$B$24:$L$29,8+P$4-$O$4,FALSE)*$M6 -> 160238735.9 | Q6: =VLOOKUP('7. Opex - Parcela B'!$N6,'3. Mercado'!$B$24:$L$29,8+Q$4-$O$4,FALSE)*$M6 -> 161796195.6 | R6: =VLOOKUP('7. Opex - Parcela B'!$N6,'3. Mercado'!$B$24:$L$29,8+R$4-$O$4,FALSE)*$M6 -> 163353700.4
A7: Coleta | B7: 22.26231501 | C7: 25.59143298 | D7: 26.74242945 | E7: 30.24153981 | F7: 25.82884552 | G7: 28.06756932 | H7: 28.03440883 | I7: 30.24153981 | J7: 28.03440883 | K7: 28.04309087 | L7: =MEDIAN(F7:I7) -> 28.05098908 | M7: =SMALL(J7:L7,1) -> 28.03440883 | N7: Ligações de Esgoto | O7: =VLOOKUP('7. Opex - Parcela B'!$N7,'3. Mercado'!$B$24:$L$29,8+O$4-$O$4,FALSE)*$M7 -> 75002164.04 | P7: =VLOOKUP('7. Opex - Parcela B'!$N7,'3. Mercado'!$B$24:$L$29,8+P$4-$O$4,FALSE)*$M7 -> 78420679.85 | Q7: =VLOOKUP('7. Opex - Parcela B'!$N7,'3. Mercado'!$B$24:$L$29,8+Q$4-$O$4,FALSE)*$M7 -> 80808482.59 | R7: =VLOOKUP('7. Opex - Parcela B'!$N7,'3. Mercado'!$B$24:$L$29,8+R$4-$O$4,FALSE)*$M7 -> 83148346.49
A8: Tratamento | B8: 0.2092188759 | C8: 0.2355852515 | D8: 0.2332030802 | E8: 0.5588922293 | F8: 0.2427367515 | G8: 0.2583796454 | H8: 0.2444695799 | I8: 0.5588922293 | J8: 0.2444695799 | K8: 0.3261195515 | L8: 0.2514246126 | M8: 0.2444695799 | N8: Volume Tratado de Esgoto | O8: =VLOOKUP('7. Opex - Parcela B'!$N8,'3. Mercado'!$B$24:$L$29,8+O$4-$O$4,FALSE)*$M8 -> 111415266.7 | P8: =VLOOKUP('7. Opex - Parcela B'!$N8,'3. Mercado'!$B$24:$L$29,8+P$4-$O$4,FALSE)*$M8 -> 114650562.3 | Q8: =VLOOKUP('7. Opex - Parcela B'!$N8,'3. Mercado'!$B$24:$L$29,8+Q$4-$O$4,FALSE)*$M8 -> 118019109.3 | R8: =VLOOKUP('7. Opex - Parcela B'!$N8,'3. Mercado'!$B$24:$L$29,8+R$4-$O$4,FALSE)*$M8 -> 121450475.7
A9: Comercial | B9: 34.1383532 | C9: 37.62689274 | D9: 39.09913322 | E9: 42.99874742 | F9: 39.60748246 | G9: 41.26753751 | H9: 40.98808927 | I9: 42.99874742 | J9: 40.98808927 | K9: 41.21546417 | L9: 41.12781339 | M9: 40.98808927 | N9: Ligações de Água | O9: =VLOOKUP('7. Opex - Parcela B'!$N9,'3. Mercado'!$B$24:$L$29,8+O$4-$O$4,FALSE)*$M9 -> 144119942.2 | P9: =VLOOKUP('7. Opex - Parcela B'!$N9,'3. Mercado'!$B$24:$L$29,8+P$4-$O$4,FALSE)*$M9 -> 145534482.1 | Q9: =VLOOKUP('7. Opex - Parcela B'!$N9,'3. Mercado'!$B$24:$L$29,8+Q$4-$O$4,FALSE)*$M9 -> 146949022.1 | R9: =VLOOKUP('7. Opex - Parcela B'!$N9,'3. Mercado'!$B$24:$L$29,8+R$4-$O$4,FALSE)*$M9 -> 148363603
A10: Administrativo | B10: 521682803.7 | C10: 602429393.9 | D10: 666163554.4 | E10: 835415682 | F10: 605258911.3 | G10: 660718326.7 | H10: 698347226.4 | I10: 835415682 | J10: 698347226.4 | K10: 699935036.6 | L10: 679532776.5 | M10: 679532776.5 | N10: Fixo | O10: =M10 -> 679532776.5 | P10: =O10 -> 679532776.5 | Q10: =P10 -> 679532776.5 | R10: =Q10 -> 679532776.5
A11: Pessoal Total | O11: =SUM(O5:O10) -> 1382666295 | P11: =SUM(P5:P10) -> 1395740792 | Q11: =SUM(Q5:Q10) -> 1408106383 | R11: =SUM(R5:R10) -> 1420591624
A13: Materiais Gerais | B13: 2021 | C13: 2022 | D13: 2023 | E13: 2024 Estimado | F13: 2021 atualiz. IPCA | G13: 2022 atualiz. IPCA | H13: 2023 atualiz. IPCA | I13: 2024 atualiz. IPCA | J13: Ano mais recente | K13: Media | L13: Mediana | M13: Valor referência | N13: Driver de Projeção | O13: 2025 | P13: 2026 | Q13: 2027 | R13: 2028
A14: Produção | B14: 0.0120286708 | C14: 0.01056612677 | D14: 0.01290815668 | E14: 0.03663028518 | F14: =B14*F$3 -> 0.01395572202 | G14: =C14*G$3 -> 0.01158846774 | H14: =D14*H$3 -> 0.01353177513 | I14: =E14*I$3 -> 0.03663028518 | J14: 0.01353177513 | K14: =AVERAGE(F14:I14) -> 0.01892656252 | L14: =MEDIAN(F14:I14) -> 0.01374374857 | M14: =SMALL(J14:L14,1) -> 0.01353177513 | N14: Volume Produzido de Água | O14: =VLOOKUP('7. Opex - Parcela B'!$N14,'3. Mercado'!$B$24:$L$29,8+O$4-$O$4,FALSE)*$M14 -> 11608900.41 | P14: =VLOOKUP('7. Opex - Parcela B'!$N14,'3. Mercado'!$B$24:$L$29,8+P$4-$O$4,FALSE)*$M14 -> 11796056.44 | Q14: =VLOOKUP('7. Opex - Parcela B'!$N14,'3. Mercado'!$B$24:$L$29,8+Q$4-$O$4,FALSE)*$M14 -> 11993445.12 | R14: =VLOOKUP('7. Opex - Parcela B'!$N14,'3. Mercado'!$B$24:$L$29,8+R$4-$O$4,FALSE)*$M14 -> 12196514.85
A15: Distribuição | B15: 3.791338863 | C15: 3.778768657 | D15: 4.233654925 | E15: 5.607981145 | F15: =B15*F$3 -> 4.398729682 | G15: 4.144388918 | H15: 4.438191124 | I15: 5.607981145 | J15: 4.438191124 | K15: =AVERAGE(F15:I15) -> 4.647322717 | L15: 4.418460403 | M15: 4.418460403 | N15: Ligações de Água | O15: =VLOOKUP('7. Opex - Parcela B'!$N15,'3. Mercado'!$B$24:$L$29,8+O$4-$O$4,FALSE)*$M15 -> 15535934.2 | P15: =VLOOKUP('7. Opex - Parcela B'!$N15,'3. Mercado'!$B$24:$L$29,8+P$4-$O$4,FALSE)*$M15 -> 15688419.68 | Q15: =VLOOKUP('7. Opex - Parcela B'!$N15,'3. Mercado'!$B$24:$L$29,8+Q$4-$O$4,FALSE)*$M15 -> 15840905.17 | R15: =VLOOKUP('7. Opex - Parcela B'!$N15,'3. Mercado'!$B$24:$L$29,8+R$4-$O$4,FALSE)*$M15 -> 15993395.08
A16: Coleta | B16: 3.260092928 | C16: 3.463760813 | D16: 3.801176313 | E16: 4.050568199 | F16: 3.782375578 | G16: 3.798902032 | H16: 3.984818619 | I16: 4.050568199 | J16: 3.984818619 | K16: 3.904166107 | L16: 3.891860325 | M16: 3.891860325 | N16: Ligações de Esgoto | O16: =VLOOKUP('7. Opex - Parcela B'!$N16,'3. Mercado'!$B$24:$L$29,8+O$4-$O$4,FALSE)*$M16 -> 10412131.33 | P16: =VLOOKUP('7. Opex - Parcela B'!$N16,'3. Mercado'!$B$24:$L$29,8+P$4-$O$4,FALSE)*$M16 -> 10886704.78 | Q16: =VLOOKUP('7. Opex - Parcela B'!$N16,'3. Mercado'!$B$24:$L$29,8+Q$4-$O$4,FALSE)*$M16 -> 11218190.09 | R16: =VLOOKUP('7. Opex - Parcela B'!$N16,'3. Mercado'!$B$24:$L$29,8+R$4-$O$4,FALSE)*$M16 -> 11543020.32
A17: Tratamento | B17: 0.01834720358 | C17: 0.02661010683 | D17: 0.0296837048 | E17: 0.06094997031 | F17: 0.0212865143 | G17: 0.02918480644 | H17: 0.03111778299 | I17: 0.06094997031 | J17: 0.03111778299 | K17: 0.03563476851 | L17: 0.03015129471 | M17: 0.03015129471 | N17: Volume Tratado de Esgoto | O17: =VLOOKUP('7. Opex - Parcela B'!$N17,'3. Mercado'!$B$24:$L$29,8+O$4-$O$4,FALSE)*$M17 -> 13741237.43 | P17: =VLOOKUP('7. Opex - Parcela B'!$N17,'3. Mercado'!$B$24:$L$29,8+P$4-$O$4,FALSE)*$M17 -> 14140257.84 | Q17: =VLOOKUP('7. Opex - Parcela B'!$N17,'3. Mercado'!$B$24:$L$29,8+Q$4-$O$4,FALSE)*$M17 -> 14555712.61 | R17: =VLOOKUP('7. Opex - Parcela B'!$N17,'3. Mercado'!$B$24:$L$29,8+R$4-$O$4,FALSE)*$M17 -> 14978915.11
A18: Comercial | B18: 0.8231710676 | C18: 1.285640086 | D18: 2.283548868 | E18: 2.971135425 | F18: 0.9550470528 | G18: 1.410034064 | H18: 2.393871607 | I18: 2.971135425 | J18: 2.393871607 | K18: 1.932522037 | L18: 1.901952835 | M18: 1.901952835 | N18: Ligações de Água | O18: =VLOOKUP('7. Opex - Parcela B'!$N18,'3. Mercado'!$B$24:$L$29,8+O$4-$O$4,FALSE)*$M18 -> 6687536.246 | P18: =VLOOKUP('7. Opex - Parcela B'!$N18,'3. Mercado'!$B$24:$L$29,8+P$4-$O$4,FALSE)*$M18 -> 6753174.54 | Q18: =VLOOKUP('7. Opex - Parcela B'!$N18,'3. Mercado'!$B$24:$L$29,8+Q$4-$O$4,FALSE)*$M18 -> 6818812.834 | R18: =VLOOKUP('7. Opex - Parcela B'!$N18,'3. Mercado'!$B$24:$L$29,8+R$4-$O$4,FALSE)*$M18 -> 6884453.03
A19: Administrativo | B19: 44942844.95 | C19: 54250618.99 | D19: 57694969.24 | E19: 45620217.53 | F19: 52142906.02 | G19: 59499716.58 | H19: 60482326.72 | I19: 45620217.53 | J19: 60482326.72 | K19: 54436291.71 | L19: 55821311.3 | M19: 54436291.71 | N19: Fixo | O19: =M19 -> 54436291.71 | P19: =O19 -> 54436291.71 | Q19: =P19 -> 54436291.71 | R19: =Q19 -> 54436291.71
A20: Materiais Gerais Total | O20: =SUM(O14:O19) -> 112422031.3 | P20: =SUM(P14:P19) -> 113700905 | Q20: =SUM(Q14:Q19) -> 114863357.5 | R20: =SUM(R14:R19) -> 116032590.1
A22: Materiais de Tratamento | B22: 2021 | C22: 2022 | D22: 2023 | E22: 2024 Estimado | F22: 2021 atualiz. IPCA | G22: 2022 atualiz. IPCA | H22: 2023 atualiz. IPCA | I22: 2024 atualiz. IPCA | J22: Ano mais recente | K22: Media | L22: Mediana | M22: Valor referência | N22: Driver de Projeção | O22: 2025 | P22: 2026 | Q22: 2027 | R22: 2028
A23: Produção | B23: 0.1058782974 | C23: 0.1528564799 | D23: 0.1489259675 | E23: 0.2579205471 | F23: =B23*F$3 -> 0.1228405126 | G23: =C23*G$3 -> 0.1676463311 | H23: =D23*H$3 -> 0.156120874 | I23: =E23*I$3 -> 0.2579205471 | J23: =I23 -> 0.2579205471 | K23: =AVERAGE(F23:I23) -> 0.1761320662 | L23: =MEDIAN(F23:I23) -> 0.1618836025 | M23: =SMALL(J23:L23,1) -> 0.1618836025 | N23: Volume Produzido de Água | O23: =VLOOKUP('7. Opex - Parcela B'!$N23,'3. Mercado'!$B$24:$L$29,8+O$4-$O$4,FALSE)*$M23 -> 138879829.3 | P23: =VLOOKUP('7. Opex - Parcela B'!$N23,'3. Mercado'!$B$24:$L$29,8+P$4-$O$4,FALSE)*$M23 -> 141118818.1 | Q23: =VLOOKUP('7. Opex - Parcela B'!$N23,'3. Mercado'!$B$24:$L$29,8+Q$4-$O$4,FALSE)*$M23 -> 143480222.2 | R23: =VLOOKUP('7. Opex - Parcela B'!$N23,'3. Mercado'!$B$24:$L$29,8+R$4-$O$4,FALSE)*$M23 -> 145909590.1
A24: Distribuição | B24: 5.97089538e-05 | C24: 0.0001104630825 | D24: 0.0002281683201 | E24: 0.01980617027 | F24: =B24*F$3 -> 6.927461691e-05 | G24: 0.0001211510988 | H24: 0.0002391915806 | I24: 0.01980617027 | J24: =I24 -> 0.01980617027 | K24: =AVERAGE(F24:I24) -> 0.005058946892 | L24: 0.0001801713397 | M24: 0.0001801713397 | N24: Volume Medido de Água | O24: =VLOOKUP('7. Opex - Parcela B'!$N24,'3. Mercado'!$B$24:$L$29,8+O$4-$O$4,FALSE)*$M24 -> 102600.5659 | P24: =VLOOKUP('7. Opex - Parcela B'!$N24,'3. Mercado'!$B$24:$L$29,8+P$4-$O$4,FALSE)*$M24 -> 104743.7822 | Q24: =VLOOKUP('7. Opex - Parcela B'!$N24,'3. Mercado'!$B$24:$L$29,8+Q$4-$O$4,FALSE)*$M24 -> 107025.8787 | R24: =VLOOKUP('7. Opex - Parcela B'!$N24,'3. Mercado'!$B$24:$L$29,8+R$4-$O$4,FALSE)*$M24 -> 109386.2248
A25: Coleta | B25: 0.0003388829291 | C25: 0.0008015347082 | D25: 0.0006366249108 | E25: 0.07810692792 | F25: 0.000393173613 | G25: 0.0008790883655 | H25: 0.0006673815128 | I25: 0.07810692792 | J25: 0.07810692792 | K25: 0.02001164285 | L25: 0.0007732349391 | M25: 0.0007732349391 | N25: Volume Coletado de Esgoto | O25: =VLOOKUP('7. Opex - Parcela B'!$N25,'3. Mercado'!$B$24:$L$29,8+O$4-$O$4,FALSE)*$M25 -> 352396.3063 | P25: =VLOOKUP('7. Opex - Parcela B'!$N25,'3. Mercado'!$B$24:$L$29,8+P$4-$O$4,FALSE)*$M25 -> 362629.2507 | Q25: =VLOOKUP('7. Opex - Parcela B'!$N25,'3. Mercado'!$B$24:$L$29,8+Q$4-$O$4,FALSE)*$M25 -> 373283.657 | R25: =VLOOKUP('7. Opex - Parcela B'!$N25,'3. Mercado'!$B$24:$L$29,8+R$4-$O$4,FALSE)*$M25 -> 384136.7552
A26: Tratamento | B26: 0.1611953693 | C26: 0.205673339 | D26: 0.2272181204 | E26: 0.3992080661 | F26: 0.1870196469 | G26: 0.2255735622 | H26: 0.2381954748 | I26: 0.3992080661 | J26: 0.3992080661 | K26: 0.2624991875 | L26: 0.2318845185 | M26: 0.2318845185 | N26: Volume Tratado de Esgoto | O26: =VLOOKUP('7. Opex - Parcela B'!$N26,'3. Mercado'!$B$24:$L$29,8+O$4-$O$4,FALSE)*$M26 -> 105679714.8 | P26: =VLOOKUP('7. Opex - Parcela B'!$N26,'3. Mercado'!$B$24:$L$29,8+P$4-$O$4,FALSE)*$M26 -> 108748460.5 | Q26: =VLOOKUP('7. Opex - Parcela B'!$N26,'3. Mercado'!$B$24:$L$29,8+Q$4-$O$4,FALSE)*$M26 -> 111943597.9 | R26: =VLOOKUP('7. Opex - Parcela B'!$N26,'3. Mercado'!$B$24:$L$29,8+R$4-$O$4,FALSE)*$M26 -> 115198320.7
A27: Comercial | B27: 0 | C27: 0 | D27: 0 | E27: 0 | F27: 0 | G27: 0 | H27: 0 | I27: 0 | J27: 0 | K27: 0 | L27: 0 | M27: 0 | N27: Ligações de Água | O27: =VLOOKUP('7. Opex - Parcela B'!$N27,'3. Mercado'!$B$24:$L$29,8+O$4-$O$4,FALSE)*$M27 -> 0 | P27: =VLOOKUP('7. Opex - Parcela B'!$N27,'3. Mercado'!$B$24:$L$29,8+P$4-$O$4,FALSE)*$M27 -> 0 | Q27: =VLOOKUP('7. Opex - Parcela B'!$N27,'3. Mercado'!$B$24:$L$29,8+Q$4-$O$4,FALSE)*$M27 -> 0 | R27: =VLOOKUP('7. Opex - Parcela B'!$N27,'3. Mercado'!$B$24:$L$29,8+R$4-$O$4,FALSE)*$M27 -> 0
A28: Administrativo | B28: 0 | C28: 0 | D28: 0 | E28: 0 | F28: 0 | G28: 0 | H28: 0 | I28: 0 | J28: 0 | K28: 0 | L28: 0 | M28: 0 | N28: Fixo | O28: =M28 -> 0 | P28: =O28 -> 0 | Q28: =P28 -> 0 | R28: =Q28 -> 0
A29: Materiais de Tratamento Total | O29: =SUM(O23:O28) -> 245014540.9 | P29: =SUM(P23:P28) -> 250334651.6 | Q29: =SUM(Q23:Q28) -> 255904129.6 | R29: =SUM(R23:R28) -> 261601433.8
A31: Serviços de Terceiros | B31: 2021 | C31: 2022 | D31: 2023 | E31: 2024 Estimado | F31: 2021 atualiz. IPCA | G31: 2022 atualiz. IPCA | H31: 2023 atualiz. IPCA | I31: 2024 atualiz. IPCA | J31: Ano mais recente | K31: Media | L31: Mediana | M31: Valor referência | N31: Driver de Projeção | O31: 2025 | P31: 2026 | Q31: 2027 | R31: 2028
A32: Produção | B32: 0.07129649417 | C32: 0.07562733268 | D32: 0.08568468197 | E32: 0.2263235206 | F32: =B32*F$3 -> 0.08271853727 | G32: =C32*G$3 -> 0.08294476532 | H32: 0.08982427753 | I32: 0.2263235206 | J32: =I32 -> 0.2263235206 | K32: =AVERAGE(F32:I32) -> 0.1204527752 | L32: =MEDIAN(F32:I32) -> 0.08638452143 | M32: =SMALL(J32:L32,1) -> 0.08638452143 | N32: Volume Produzido de Água | O32: =VLOOKUP('7. Opex - Parcela B'!$N32,'3. Mercado'!$B$24:$L$29,8+O$4-$O$4,FALSE)*$M32 -> 74109220.46 | P32: =VLOOKUP('7. Opex - Parcela B'!$N32,'3. Mercado'!$B$24:$L$29,8+P$4-$O$4,FALSE)*$M32 -> 75303992.33 | Q32: =VLOOKUP('7. Opex - Parcela B'!$N32,'3. Mercado'!$B$24:$L$29,8+Q$4-$O$4,FALSE)*$M32 -> 76564087.63 | R32: =VLOOKUP('7. Opex - Parcela B'!$N32,'3. Mercado'!$B$24:$L$29,8+R$4-$O$4,FALSE)*$M32 -> 77860449.81
A33: Distribuição | B33: 55.6215097 | C33: 56.06377054 | D33: 65.51270111 | E33: 81.13765839 | F33: =B33*F$3 -> 64.53234449 | G33: 61.48830225 | H33: 68.67774859 | I33: 81.13765839 | J33: =I33 -> 81.13765839 | K33: =AVERAGE(F33:I33) -> 68.95901343 | L33: 66.60504654 | M33: 66.60504654 | N33: Ligações de Água | O33: =VLOOKUP('7. Opex - Parcela B'!$N33,'3. Mercado'!$B$24:$L$29,8+O$4-$O$4,FALSE)*$M33 -> 234192801.6 | P33: =VLOOKUP('7. Opex - Parcela B'!$N33,'3. Mercado'!$B$24:$L$29,8+P$4-$O$4,FALSE)*$M33 -> 236491408.3 | Q33: =VLOOKUP('7. Opex - Parcela B'!$N33,'3. Mercado'!$B$24:$L$29,8+Q$4-$O$4,FALSE)*$M33 -> 238790015.1 | R33: =VLOOKUP('7. Opex - Parcela B'!$N33,'3. Mercado'!$B$24:$L$29,8+R$4-$O$4,FALSE)*$M33 -> 241088688.5
A34: Coleta | B34: 18.77503704 | C34: 17.30757493 | D34: 20.40201718 | E34: 22.19727084 | F34: 21.78288875 | G34: 18.98219453 | H34: 21.38767877 | I34: 22.19727084 | J34: 22.19727084 | K34: 21.08750822 | L34: 21.58528376 | M34: 21.08750822 | N34: Ligações de Esgoto | O34: =VLOOKUP('7. Opex - Parcela B'!$N34,'3. Mercado'!$B$24:$L$29,8+O$4-$O$4,FALSE)*$M34 -> 56416697.09 | P34: =VLOOKUP('7. Opex - Parcela B'!$N34,'3. Mercado'!$B$24:$L$29,8+P$4-$O$4,FALSE)*$M34 -> 58988107.84 | Q34: =VLOOKUP('7. Opex - Parcela B'!$N34,'3. Mercado'!$B$24:$L$29,8+Q$4-$O$4,FALSE)*$M34 -> 60784215.27 | R34: =VLOOKUP('7. Opex - Parcela B'!$N34,'3. Mercado'!$B$24:$L$29,8+R$4-$O$4,FALSE)*$M34 -> 62544263.05
A35: Tratamento | B35: 0.3245673652 | C35: 0.3610113874 | D35: 0.4059933406 | E35: 0.8631269973 | F35: 0.3765646265 | G35: 0.3959415695 | H35: 0.4256076777 | I35: 0.8631269973 | J35: 0.8631269973 | K35: 0.5153102178 | L35: 0.4107746236 | M35: 0.4107746236 | N35: Volume Tratado de Esgoto | O35: =VLOOKUP('7. Opex - Parcela B'!$N35,'3. Mercado'!$B$24:$L$29,8+O$4-$O$4,FALSE)*$M35 -> 187207603.7 | P35: =VLOOKUP('7. Opex - Parcela B'!$N35,'3. Mercado'!$B$24:$L$29,8+P$4-$O$4,FALSE)*$M35 -> 192643770.2 | Q35: =VLOOKUP('7. Opex - Parcela B'!$N35,'3. Mercado'!$B$24:$L$29,8+Q$4-$O$4,FALSE)*$M35 -> 198303834.9 | R35: =VLOOKUP('7. Opex - Parcela B'!$N35,'3. Mercado'!$B$24:$L$29,8+R$4-$O$4,FALSE)*$M35 -> 204069452.9
A36: Comercial | B36: 34.79077791 | C36: 36.44454433 | D36: 45.14661677 | E36: 55.33397779 | F36: 40.36442875 | G36: 39.97078925 | H36: 47.32773865 | I36: 55.33397779 | J36: 55.33397779 | K36: 45.74923361 | L36: 43.8460837 | M36: 43.8460837 | N36: Ligações de Água | O36: =VLOOKUP('7. Opex - Parcela B'!$N36,'3. Mercado'!$B$24:$L$29,8+O$4-$O$4,FALSE)*$M36 -> 154169056.4 | P36: =VLOOKUP('7. Opex - Parcela B'!$N36,'3. Mercado'!$B$24:$L$29,8+P$4-$O$4,FALSE)*$M36 -> 155682228.6 | Q36: =VLOOKUP('7. Opex - Parcela B'!$N36,'3. Mercado'!$B$24:$L$29,8+Q$4-$O$4,FALSE)*$M36 -> 157195400.8 | R36: =VLOOKUP('7. Opex - Parcela B'!$N36,'3. Mercado'!$B$24:$L$29,8+R$4-$O$4,FALSE)*$M36 -> 158708616.9
A37: Administrativo | B37: 117981648.4 | C37: 131483931 | D37: 149317301.9 | E37: 162781205.9 | F37: 136882878.9 | G37: 144205850.1 | H37: 156531114.6 | I37: 162781205.9 | J37: 162781205.9 | K37: 150100262.4 | L37: 150368482.3 | M37: 150100262.4 | N37: Fixo | O37: =M37 -> 150100262.4 | P37: =O37 -> 150100262.4 | Q37: =P37 -> 150100262.4 | R37: =Q37 -> 150100262.4
A38: Serviços de Terceiros Total | O38: =SUM(O32:O37) -> 856195641.6 | P38: =SUM(P32:P37) -> 869209769.7 | Q38: =SUM(Q32:Q37) -> 881737816.1 | R38: =SUM(R32:R37) -> 894371733.5
A40: Despesas Gerais | B40: 2021 | C40: 2022 | D40: 2023 | E40: 2024 Estimado | F40: 2021 atualiz. IPCA | G40: 2022 atualiz. IPCA | H40: 2023 atualiz. IPCA | I40: 2024 atualiz. IPCA | J40: Ano mais recente | K40: Media | L40: Mediana | M40: Valor referência | N40: Driver de Projeção | O40: 2025 | P40: 2026 | Q40: 2027 | R40: 2028
A41: Produção | B41: 0.09232257325 | C41: 0.09879994563 | D41: 0.1004032958 | E41: 0.1868249818 | F41: =B41*F$3 -> 0.1071130959 | G41: =C41*G$3 -> 0.1083594782 | H41: 0.1052539766 | I41: 0.1868249818 | J41: =I41 -> 0.1868249818 | K41: =AVERAGE(F41:I41) -> 0.1268878831 | L41: =MEDIAN(F41:I41) -> 0.107736287 | M41: =SMALL(J41:L41,1) -> 0.107736287 | N41: Volume Produzido de Água | O41: =VLOOKUP('7. Opex - Parcela B'!$N41,'3. Mercado'!$B$24:$L$29,8+O$4-$O$4,FALSE)*$M41 -> 92426885.22 | P41: =VLOOKUP('7. Opex - Parcela B'!$N41,'3. Mercado'!$B$24:$L$29,8+P$4-$O$4,FALSE)*$M41 -> 93916970.28 | Q41: =VLOOKUP('7. Opex - Parcela B'!$N41,'3. Mercado'!$B$24:$L$29,8+Q$4-$O$4,FALSE)*$M41 -> 95488524.85 | R41: =VLOOKUP('7. Opex - Parcela B'!$N41,'3. Mercado'!$B$24:$L$29,8+R$4-$O$4,FALSE)*$M41 -> 97105310.41
A42: Distribuição | B42: 9.325225728 | C42: 11.24070045 | D42: 10.54437781 | E42: 9.595627966 | F42: =B42*F$3 -> 10.81917198 | G42: 12.32831078 | H42: 11.05379745 | I42: 9.595627966 | J42: =I42 -> 9.595627966 | K42: =AVERAGE(F42:I42) -> 10.94922704 | L42: 10.93648471 | M42: 9.595627966 | N42: Ligações de Água | O42: =VLOOKUP('7. Opex - Parcela B'!$N42,'3. Mercado'!$B$24:$L$29,8+O$4-$O$4,FALSE)*$M42 -> 33739590.51 | P42: =VLOOKUP('7. Opex - Parcela B'!$N42,'3. Mercado'!$B$24:$L$29,8+P$4-$O$4,FALSE)*$M42 -> 34070745.22 | Q42: =VLOOKUP('7. Opex - Parcela B'!$N42,'3. Mercado'!$B$24:$L$29,8+Q$4-$O$4,FALSE)*$M42 -> 34401899.94 | R42: =VLOOKUP('7. Opex - Parcela B'!$N42,'3. Mercado'!$B$24:$L$29,8+R$4-$O$4,FALSE)*$M42 -> 34733064.25
A43: Coleta | B43: 0.370194819 | C43: 0.2138738087 | D43: 0.2213169982 | E43: 0.2201493836 | F43: 0.429501819 | G43: 0.2345674803 | H43: 0.2320092578 | I43: 0.2201493836 | J43: 0.2201493836 | K43: 0.2790569852 | L43: 0.2332883691 | M43: 0.2201493836 | N43: Ligações de Esgoto | O43: =VLOOKUP('7. Opex - Parcela B'!$N43,'3. Mercado'!$B$24:$L$29,8+O$4-$O$4,FALSE)*$M43 -> 588979.075 | P43: =VLOOKUP('7. Opex - Parcela B'!$N43,'3. Mercado'!$B$24:$L$29,8+P$4-$O$4,FALSE)*$M43 -> 615824.0909 | Q43: =VLOOKUP('7. Opex - Parcela B'!$N43,'3. Mercado'!$B$24:$L$29,8+Q$4-$O$4,FALSE)*$M43 -> 634575.0945 | R43: =VLOOKUP('7. Opex - Parcela B'!$N43,'3. Mercado'!$B$24:$L$29,8+R$4-$O$4,FALSE)*$M43 -> 652949.6426
A44: Tratamento | B44: 0.1196018664 | C44: 0.1106793817 | D44: 0.1118467997 | E44: 0.1362851779 | F44: 0.1387626637 | G44: 0.1213883263 | H44: 0.1172503386 | I44: 0.1362851779 | J44: 0.1362851779 | K44: 0.1284216267 | L44: 0.1288367521 | M44: 0.1284216267 | N44: Volume Tratado de Esgoto | O44: =VLOOKUP('7. Opex - Parcela B'!$N44,'3. Mercado'!$B$24:$L$29,8+O$4-$O$4,FALSE)*$M44 -> 58527240.03 | P44: =VLOOKUP('7. Opex - Parcela B'!$N44,'3. Mercado'!$B$24:$L$29,8+P$4-$O$4,FALSE)*$M44 -> 60226764.06 | Q44: =VLOOKUP('7. Opex - Parcela B'!$N44,'3. Mercado'!$B$24:$L$29,8+Q$4-$O$4,FALSE)*$M44 -> 61996286.01 | R44: =VLOOKUP('7. Opex - Parcela B'!$N44,'3. Mercado'!$B$24:$L$29,8+R$4-$O$4,FALSE)*$M44 -> 63798807.4
A45: Comercial | B45: 1.444503002 | C45: 2.405850059 | D45: 2.968931195 | E45: 2.648648133 | F45: 1.675919368 | G45: 2.638631583 | H45: 3.112366102 | I45: 2.648648133 | J45: 2.648648133 | K45: 2.518891296 | L45: 2.643639858 | M45: 2.518891296 | N45: Ligações de Água | O45: =VLOOKUP('7. Opex - Parcela B'!$N45,'3. Mercado'!$B$24:$L$29,8+O$4-$O$4,FALSE)*$M45 -> 8856779.48 | P45: =VLOOKUP('7. Opex - Parcela B'!$N45,'3. Mercado'!$B$24:$L$29,8+P$4-$O$4,FALSE)*$M45 -> 8943708.938 | Q45: =VLOOKUP('7. Opex - Parcela B'!$N45,'3. Mercado'!$B$24:$L$29,8+Q$4-$O$4,FALSE)*$M45 -> 9030638.396 | R45: =VLOOKUP('7. Opex - Parcela B'!$N45,'3. Mercado'!$B$24:$L$29,8+R$4-$O$4,FALSE)*$M45 -> 9117570.372
A46: Administrativo | B46: -201856207.5 | C46: -231402841.9 | D46: -230878267.1 | E46: -198594502.8 | F46: -234194547.9 | G46: -253792560.7 | H46: -242032450.4 | I46: -198594502.8 | J46: -198594502.8 | K46: -232153515.4 | L46: -238113499.2 | M46: -238113499.2 | N46: Fixo | O46: =M46 -> -238113499.2 | P46: =O46 -> -238113499.2 | Q46: =P46 -> -238113499.2 | R46: =Q46 -> -238113499.2
A47: Despesas Gerais Total | B47: -------------------------------------------------------------------------------------------------------------------------------------------------------------------------------------------------------------------------------------------------------------------------------------------------------------------------------------------------------------------- | O47: =SUM(O41:O46) -> -43974024.88 | P47: =SUM(P41:P46) -> -40339486.59 | Q47: =SUM(Q41:Q46) -> -36561574.9 | R47: =SUM(R41:R46) -> -32705797.1
N52: Natureza | O52: 2025 | P52: 2026 | Q52: 2027 | R52: 2028
N53: Pessoal Total | O53: =O11 -> 1382666295 | P53: =P11 -> 1395740792 | Q53: =Q11 -> 1408106383 | R53: =R11 -> 1420591624
N54: Materiais Gerais Total | O54: =O20 -> 112422031.3 | P54: =P20 -> 113700905 | Q54: =Q20 -> 114863357.5 | R54: =R20 -> 116032590.1
N55: Materiais de Tratamento Total | O55: =O29 -> 245014540.9 | P55: =P29 -> 250334651.6 | Q55: =Q29 -> 255904129.6 | R55: =R29 -> 261601433.8
N56: Serviços de Terceiros Total | O56: =O38 -> 856195641.6 | P56: =P38 -> 869209769.7 | Q56: =Q38 -> 881737816.1 | R56: =R38 -> 894371733.5
N57: Despesas Gerais Total | O57: =O47 -> -43974024.88 | P57: =P47 -> -40339486.59 | Q57: =Q47 -> -36561574.9 | R57: =R47 -> -32705797.1
N59: TOTAL GERAL | O59: =SUM(O53:O57) -> 2552324484 | P59: =SUM(P53:P57) -> 2588646632 | Q59: =SUM(Q53:Q57) -> 2624050111 | R59: =SUM(R53:R57) -> 2659891584

Sheet 8. Opex - Parcela A
A1: Itens OPEX Parcela A | B1: Valor referencial (nominal - set.2024) | C1: Referência | D1: Projeção (R$ dez/2024)
D2: 2025 | E2: 2026 | F2: 2027 | G2: 2028
A3: Energia Elétrica | B3: - | C3: Metodologia específica. Dados reais até set/2024 | D3: ='8.1 Opex A Energia Elétrica'!B65 -> 545389520.2 | E3: ='8.1 Opex A Energia Elétrica'!C65 -> 555857317.5 | F3: ='8.1 Opex A Energia Elétrica'!D65 -> 566905254.3 | G3: ='8.1 Opex A Energia Elétrica'!E65 -> 578270319.9
A4: Locação de ativos - CPC06 | B4: - | C4: Anexo 23, 23.013.629-7 | D4: 87393149.17 | E4: 88540118.01 | F4: 90220759.44 | G4: 96961193.88
A5: PPP | B5: - | C5: Anexo 28, 23.013.629-7 | D5: 128527987 | E5: 174021792 | F5: 353371589 | G5: 371027827
A6: Leasing litoral | B6: - | C6: Anexo 24, 23.013.629-7 | D6: 47752009.23 | E6: 47752009.18 | F6: 47752009.18 | G6: 47752009.25
A7: Encargos, impostos e taxas: | B7: - | C7: - | D7: =SUM(D8:D14) -> 212643793.7 | E7: =SUM(E8:E14) -> 212643793.7 | F7: 212643793.7 | G7: 212643793.7
A8: 421 – REPASSE PELA UTILIZ MANANCIAL | B8: 3917191.17 | C8: Dados reais até set/2024, extrapolado para dez/2024 | D8: =B8/9*12 -> 5222921.56 | E8: =$D8 -> 5222921.56 | F8: =$D8 -> 5222921.56 | G8: 5222921.56
A9: 454 – IPTU | B9: 10251564.11 | C9: Dados reais até set/2024, extrapolado para dez/2025 | D9: 13668752.15 | E9: =$D9 -> 13668752.15 | F9: 13668752.15 | G9: 13668752.15
A10: 455 – IPVA | B10: 469769.88 | C10: Dados reais até set/2024, extrapolado para dez/2026 | D10: 626359.84 | E10: 626359.84 | F10: 626359.84 | G10: 626359.84
A11: 456 – TAXAS, ALVARAS E LICENCIAMENTO | B11: 8819313.29 | C11: Dados reais até set/2024, extrapolado para dez/2027 | D11: 11759084.39 | E11: 11759084.39 | F11: 11759084.39 | G11: 11759084.39
A12: 460 – COBRANÇA P/USO RECURSO HÍDRICO | B12: 3509004.17 | C12: Dados reais até set/2024, extrapolado para dez/2028 | D12: 4678672.227 | E12: 4678672.227 | F12: 4678672.227 | G12: 4678672.227
A13: 461 – TAXA DE REGULAÇÃO | B13: 27478226.13 | C13: Dados reais até set/2024, extrapolado para dez/2029 | D13: 36637634.84 | E13: 36637634.84 | F13: 36637634.84 | G13: 36637634.84
A14: 414 – FUNDOS MUN SANEAM E GESTAO AMB. | B14: 105037776.5 | C14: Dados reais até set/2024, extrapolado para dez/2030 | D14: 140050368.7 | E14: =$D14 -> 140050368.7 | F14: 140050368.7 | G14: 140050368.7
A15: Total | D15: =SUM(D3:D7) -> 1021706459 | E15: =SUM(E3:E7) -> 1078815030 | F15: 1270893406 | G15: 1306655144

Sheet 8.1 Opex A Energia Elétrica
A1: Energia Elétrica
A2: Quantidade de energia (GWH) | B2: Realizado
A3: ETAPA | B3: 2020 | C3: 2021 | D3: 2022 | E3: 2023 | F3: 2024*
A4: Produção de Água | B4: 402.34 | C4: 413.16 | D4: 421.28 | E4: 436.67 | F4: 473.15
A5: Distribuição de Água | B5: 223.01 | C5: 223.32 | D5: 235.49 | E5: 241.67 | F5: 254.16
A6: Coleta de Esgoto | B6: 37.23 | C6: 40.72 | D6: 44.33 | E6: 50.11 | F6: 51.83
A7: Tratamento de Esgoto | B7: 37.23 | C7: 40.72 | D7: 44.33 | E7: 50.11 | F7: 51.83
A8: Comerciais | B8: 3.42 | C8: 3.48 | D8: 3.21 | E8: 3.12 | F8: 3.39
A9: Adm Central | B9: 2.28 | C9: 2.32 | D9: 2.14 | E9: 2.08 | F9: 2.26
A10: Outros | B10: 0 | C10: 0 | D10: 0 | E10: 0 | F10: 0
A11: TOTAL (GWH) | B11: =SUM(B4:B10) -> 705.51 | C11: =SUM(C4:C10) -> 723.72 | D11: =SUM(D4:D10) -> 750.78 | E11: =SUM(E4:E10) -> 783.76 | F11: =SUM(F4:F10) -> 836.62
A12: Fonte 2024: Anexo 25, 23.013.629-7
A13: * Informação fechada/realizada até nov/2024. Porém projetada até dez/2024
A15: Valores gastos nominais (R$) | B15: Realizado
A16: ETAPA | B16: 2020 | C16: 2021 | D16: 2022 | E16: 2023 | F16: 2024*
A17: Produção de Água | B17: 284941913.7 | C17: 355913566.9 | D17: 339188216.8 | E17: 317108303.9 | F17: =255713010.73/9*12 -> 340950681
A18: Distribuição de Água | B18: 108368957.2 | C18: 126848392 | D18: 125528056 | E18: 121641115.6 | F18: =96641733.97/9*12 -> 128855645.3
A19: Coleta de Esgoto | B19: 3076099.2 | C19: 3855755.59 | D19: 3815997.18 | E19: 3684300.99 | F19: =1968170.93/9*12 -> 2624227.907
A20: Tratamento de Esgoto | B20: 45767816.86 | C20: 60147145.69 | D20: 60039329.58 | E20: 62974460.95 | F20: =52994140.77/9*12 -> 70658854.36
A21: Comerciais | B21: 1080999.79 | C21: 1381476.96 | D21: 952088.83 | E21: 1183746.94 | F21: =1035929.36/9*12 -> 1381239.147
A22: Adm Central | B22: 5230494.86 | C22: 19367364.5 | D22: 2481355.65 | E22: 3080769.85 | F22: =2911577.86/9*12 -> 3882103.813
A23: Outros | B23: 0 | C23: 0 | D23: 0 | E23: 0
A24: Total | B24: =SUM(B17:B23) -> 448466281.7 | C24: =SUM(C17:C23) -> 567513701.6 | D24: 532005044.1 | E24: 509672698.2 | F24: =SUM(F17:F23) -> 548352751.5
A25: Fonte: Cod. 310 (energia elétrica). Anexo 8, protocolado 23.013.629-7
A26: * Informação fechada/realizada até nov/2024. Porém projetada até dez/2024
A28: Preço unitário R$/GWH (R$ de dez/2024) | F28: =F24/F11 -> 655438.2533
A30: Consumo unitário GWH/m³ e GWH/ligação | B30: Realizado
A31: ETAPA | B31: 2020 | C31: 2021 | D31: 2022 | E31: 2023 | F31: 2024
A32: Produção de Água | B32: =B4/'3. Mercado'!C24 -> 5.259914559e-07 | C32: =C4/'3. Mercado'!D24 -> 5.491122152e-07 | D32: =D4/'3. Mercado'!E24 -> 5.374101359e-07 | E32: =E4/'3. Mercado'!F24 -> 5.382422559e-07 | F32: =F4/'3. Mercado'!G24 -> 5.552992639e-07
A33: Distribuição de Água | B33: =B5/'3. Mercado'!C26 -> 4.450445132e-07 | C33: =C5/'3. Mercado'!D26 -> 4.513684054e-07 | D33: =D5/'3. Mercado'!E26 -> 4.642470611e-07 | E33: =E5/'3. Mercado'!F26 -> 4.517304736e-07 | F33: =F5/'3. Mercado'!G26 -> 4.545095085e-07
A34: Coleta de Esgoto | B34: =B6/'3. Mercado'!C29 -> 9.86677482e-08 | C34: =C6/'3. Mercado'!D29 -> 1.084169773e-07 | D34: =D6/'3. Mercado'!E29 -> 1.134663668e-07 | E34: =E6/'3. Mercado'!F29 -> 1.193467105e-07 | F34: =F6/'3. Mercado'!G29 -> 1.163919797e-07
A35: Tratamento de Esgoto | B35: =B7/'3. Mercado'!C29 -> 9.86677482e-08 | C35: =C7/'3. Mercado'!D29 -> 1.084169773e-07 | D35: =D7/'3. Mercado'!E29 -> 1.134663668e-07 | E35: =E7/'3. Mercado'!F29 -> 1.193467105e-07 | F35: =F7/'3. Mercado'!G28 -> 1.163919797e-07
A36: Comerciais | B36: =B8/'3. Mercado'!C25 -> 1.044655351e-06 | C36: =C8/'3. Mercado'!D25 -> 1.039290869e-06 | D36: =D8/'3. Mercado'!E25 -> 9.411607415e-07 | E36: =E8/'3. Mercado'!F25 -> 9.046370477e-07 | F36: =F8/'3. Mercado'!G25 -> 9.731530331e-07
A38: Consumo unitário eficiente GWH/m³ e GWH/ligação
A39: ETAPA | B39: Ano mais recente (2024*) | C39: Média 2021-2024* | D39: Mediana 2021-2024* | E39: Valor referência | F39: Driver
A40: Produção de Água | B40: =F32 -> 5.552992639e-07 | C40: =IFERROR(AVERAGE(C32:F32),"Sem dados") -> 5.450159677e-07 | D40: =IFERROR(MEDIAN(C32:F32),"Sem dados") -> 5.436772356e-07 | E40: =IFERROR(SMALL(B40:D40,1),"Sem dados") -> 5.436772356e-07 | F40: Volume produzido de água
A41: Distribuição de Água | B41: =F33 -> 4.545095085e-07 | C41: =IFERROR(AVERAGE(C33:F33),"Sem dados") -> 4.554638621e-07 | D41: =IFERROR(MEDIAN(C33:F33),"Sem dados") -> 4.53119991e-07 | E41: =IFERROR(SMALL(B41:D41,1),"Sem dados") -> 4.53119991e-07 | F41: Volume medido de água
A42: Coleta de Esgoto | B42: 1.163919797e-07 | C42: 1.144055086e-07 | D42: 1.149291733e-07 | E42: 1.144055086e-07 | F42: Volume coletado de esgoto
A43: Tratamento de Esgoto | B43: 1.163919797e-07 | C43: 1.144055086e-07 | D43: 1.149291733e-07 | E43: 1.144055086e-07 | F43: Volume tratado de esgoto
A44: Comerciais | B44: 9.731530331e-07 | C44: 9.645604228e-07 | D44: 9.571568873e-07 | E44: =IFERROR(SMALL(B44:D44,1),"Sem dados") -> 9.571568873e-07 | F44: Ligações de água
A45: Adm Central | B45: =F22 -> 3882103.813 | E45: =IFERROR(SMALL(B45:D45,1),"Sem dados") -> 3882103.813 | F45: Fixo
A46: Outros | B46: =E23 -> 0 | E46: =IFERROR(SMALL(B46:D46,1),"Sem dados") -> 0 | F46: Fixo
A48: Projeção de quantidade de consumo de energia elétrica (GWH)
A49: ETAPA | B49: 2025 | C49: 2026 | D49: 2027 | E49: 2028
A50: Produção de Água | B50: =$E$40*'3. Mercado'!I24 -> 466.4203198 | C50: =$E$40*'3. Mercado'!J24 -> 473.9398413 | D50: =$E$40*'3. Mercado'!K24 -> 481.8704881 | E50: =$E$40*'3. Mercado'!L24 -> 490.0293873
A51: Distribuição de Água | B51: =$E$41*'3. Mercado'!I26 -> 258.0341999 | C51: =$E$41*'3. Mercado'!J26 -> 263.4242589 | D51: =$E$41*'3. Mercado'!K26 -> 269.1635931 | E51: =$E$41*'3. Mercado'!L26 -> 275.0997206
A52: Coleta de Esgoto | B52: =$E$42*'3. Mercado'!I29 -> 52.13949423 | C52: =$E$42*'3. Mercado'!J29 -> 53.65352981 | D52: =$E$42*'3. Mercado'!K29 -> 55.22992362 | E52: =$E$42*'3. Mercado'!L29 -> 56.83571528
A53: Tratamento de Esgoto | B53: =$E$43*'3. Mercado'!I28 -> 52.13949423 | C53: =$E$43*'3. Mercado'!J28 -> 53.65352981 | D53: =$E$43*'3. Mercado'!K28 -> 55.22992362 | E53: =$E$43*'3. Mercado'!L28 -> 56.83571528
A54: Comerciais | B54: =IFERROR($E$44*'3. Mercado'!I25,"Sem dados") -> 3.365499532 | C54: =IFERROR($E$44*'3. Mercado'!J25,"Sem dados") -> 3.398531973 | D54: =IFERROR($E$44*'3. Mercado'!K25,"Sem dados") -> 3.431564415 | E54: =IFERROR($E$44*'3. Mercado'!L25,"Sem dados") -> 3.464597813
A56: Projeção (R$ de dez/2024)
A57: ETAPA | B57: 2025 | C57: 2026 | D57: 2027 | E57: 2028
A58: Produção de Água | B58: =IFERROR(B50*$F$28,0) -> 305709719.7 | C58: 310638301.8 | D58: 315836351.1 | E58: 321184005.7
A59: Distribuição de Água | B59: 169125485.3 | C59: 172658336.1 | D59: 176420115.3 | E59: 180310880.3
A60: Coleta de Esgoto | B60: 34174219.03 | C60: 35166575.86 | D60: 36199804.67 | E60: 37252301.95
A61: Tratamento de Esgoto | B61: 34174219.03 | C61: 35166575.86 | D61: 36199804.67 | E61: 37252301.95
A62: Comerciais | B62: 2205877.135 | C62: 2227527.86 | D62: 2249178.586 | E62: 2270829.939
A63: Adm Central | B63: =IFERROR($E$45*#REF!,0) -> 0 | C63: =$B$63 -> 0 | D63: =$B$63 -> 0 | E63: 0
A64: Outros | B64: =IFERROR($E$46*#REF!,0) -> 0 | C64: =$B$64 -> 0 | D64: =$B$64 -> 0 | E64: 0
A65: Total | B65: =SUM(B58:B64) -> 545389520.2 | C65: =SUM(C58:C64) -> 555857317.5 | D65: =SUM(D58:D64) -> 566905254.3 | E65: =SUM(E58:E64) -> 578270319.9

Sheet 9. CAPEX
A1: Tipo de serviço | B1: 2025 | C1: 2026 | D1: 2027 | E1: 2028 | F1: Total (R$ milhões)
A2: Tipologia de investimento
A3: Água | B3: 735.8146042 | C3: 716.1763847 | D3: 703.2482591 | E3: 835.9243686 | F3: 2991.163617
A4: Administrativo | B4: 0 | C4: 0 | D4: 0 | E4: 0 | F4: 0
A5: Adutora | B5: 21.96236724 | C5: 11.79657564 | D5: 77.89752918 | E5: 56.96092532 | F5: 168.6173974
A6: Captação | B6: 146.3533418 | C6: 7.13696162 | D6: 34.8985542 | E6: 55.31037901 | F6: 243.6992367
A7: Captação (poço) | B7: 13.40142191 | C7: 1.817647752 | D7: 0.3029520546 | E7: 1.398071923 | F7: 16.92009364
A8: Elevação de água tratada | B8: 0.1907602191 | C8: 36.36898115 | D8: 29.41711657 | E8: 25.98427897 | F8: 91.96113692
A9: Equipamentos operacionais | B9: 5.932302877 | C9: 1.790923973 | D9: 4.223161262 | E9: 0 | F9: 11.94638811
A10: Hidrômetro e equipamento de medição | B10: 93.82004875 | C10: 85.9264545 | D10: 70.81041399 | E10: 79.36327209 | F10: 329.9201893
A11: Lodo e disposição final | B11: 19.97492991 | C11: 7.321197513 | D11: 0 | E11: 10.02766365 | F11: 37.32379107
A12: Manancial | B12: 1.528184011 | C12: 255.1987715 | D12: 8.301657413 | E12: 7.307212829 | F12: 272.3358258
A13: Projeto | B13: 3.714171161 | C13: 15.11278926 | D13: 24.85232692 | E13: 13.21442846 | F13: 56.89371579
A14: Rede | B14: 120.6633051 | C14: 111.3722546 | D14: 123.7627361 | E14: 211.5103816 | F14: 567.3086774
A15: Reservatório | B15: 117.5743572 | C15: 44.59227201 | D15: 65.10799563 | E15: 111.6170065 | F15: 338.8916313
A16: Software | B16: 0 | C16: 0 | D16: 0 | E16: 0 | F16: 0
A17: Tratamento | B17: 190.699414 | C17: 137.7415551 | D17: 263.6738158 | E17: 263.2307482 | F17: 855.3455331
A18: Esgoto | B18: 667.9255209 | C18: 1502.776454 | D18: 970.4741112 | E18: 688.056069 | F18: 3829.232155
A19: Coletor ou emissário | B19: 66.32415774 | C19: 53.27705324 | D19: 53.37912817 | E19: 50.99091891 | F19: 223.9712581
A20: Elevatória de esgoto | B20: 72.18003787 | C20: 167.0243719 | D20: 178.6316684 | E20: 79.8901273 | F20: 497.7262055
A21: Hidrômetro e equipamento de medição | B21: 0.20771228 | C21: 0 | D21: 0.2909000486 | E21: 1.868100185 | F21: 2.366712513
A22: Lodo e disposição final | B22: 3.669286628 | C22: 2.825114555 | D22: 22.05648011 | E22: 2.714316387 | F22: 31.26519768
A23: Manancial | B23: 0.2325889092 | C23: 1.949770698 | D23: 1.017582624 | E23: 4.186688024 | F23: 7.386630255
A24: Projeto | B24: 5.412141746 | C24: 13.93306461 | D24: 20.82855572 | E24: 35.84516415 | F24: 76.01892623
A25: Rede | B25: 98.222679 | C25: 130.4606992 | D25: 132.6619025 | E25: 98.87569284 | F25: 460.2209736
A26: Tratamento | B26: 421.6769167 | C26: 1133.30638 | D26: 561.6078936 | E26: 413.6850612 | F26: 2530.276251
A27: Geração de energia limpa | B27: 0 | C27: 0 | D27: 0.6551444976 | E27: 0 | F27: 0.6551444976
A28: Geração energia | B28: 0 | C28: 0 | D28: 0.6551444976 | E28: 0 | F28: 0.6551444976
A29: Legalização de imóveis | B29: 0 | C29: 0 | D29: 0 | E29: 0 | F29: 0
A30: Terreno | B30: 0 | C30: 0 | D30: 0 | E30: 0 | F30: 0
A31: Móveis, utensílios e equipamentos administrativos | B31: 0 | C31: 0 | D31: 0 | E31: 0 | F31: 0
A32: Administrativo | B32: 0 | C32: 0 | D32: 0 | E32: 0 | F32: 0
A33: Software | B33: 0 | C33: 0 | D33: 0 | E33: 0 | F33: 0
A34: Obras administrativas | B34: 0 | C34: 0 | D34: 0 | E34: 0 | F34: 0
A35: Administrativo | B35: 0 | C35: 0 | D35: 0 | E35: 0 | F35: 0
A36: Resíduos sólidos | B36: 1.768518231 | C36: 0.8535319648 | D36: 0.824668565 | E36: 0 | F36: 3.446718761
A37: Lodo e disposição final | B37: 1.768518231 | C37: 0.8535319648 | D37: 0.824668565 | E37: 0 | F37: 3.446718761
A38: Tecnologia da informação e comunicação | B38: 0 | C38: 0 | D38: 0 | E38: 0 | F38: 0
A39: Software | B39: 0 | C39: 0 | D39: 0 | E39: 0 | F39: 0
A40: Total geral | B40: 1405.508643 | C40: 2219.806371 | D40: 1675.202183 | E40: 1523.980438 | F40: 6824.497635

Sheet 10. BRRt
C3: Movimentação da Base de Ativos
C5: Descrição | D5: 2025 | E5: 2026 | F5: 2027 | G5: 2028
C6: BRRL (t-1) | D6: =21598749993.52 -> 2.159874999e+10 | E6: =D12 -> 2.222055129e+10 | F6: =E12 -> 2.362913095e+10 | G6: 2.451151144e+10
C7: % Depreciação estimada | D7: =798505354.78/(21598749993.52+1827673331.12) -> 0.03408567086 | E7: =D7 -> 0.03408567086 | F7: =E7 -> 0.03408567086 | G7: 0.03408567086
C8: Depreciação BRRL Inicial | D8: =D6*D7 -> 736207883.2 | E8: =D8 -> 736207883.2 | F8: =E8 -> 736207883.2 | G8: 736207883.2
C9: Investimentos | D9: =('1. P0'!I17*1000-('1. P0'!I17*1000*(D7*0.5))) -> 1381554791 | E9: =('1. P0'!J17*1000-('1. P0'!J17*1000*(E7*0.5))) -> 2181974576 | F9: =('1. P0'!K17*1000-('1. P0'!K17*1000*(F7*0.5))) -> 1646651988 | G9: =('1. P0'!L17*1000-('1. P0'!L17*1000*(G7*0.5))) -> 1498007490
C10: Depreciação BRRL Novos Investimentos | D10: =D9*(D7*0.5) -> 23545610.93 | E10: =E9*(E7*0.5) -> 37187033.61 | F10: =F9*(F7*0.5) -> 28063618.84 | G10: =G9*(G7*0.5) -> 25530295.12
C11: Depreciação Total do Período | D11: =D8+D10 -> 759753494.1 | E11: =E8+E10 -> 773394916.8 | F11: 764271502 | G11: 761738178.3
C12: BRRLt | D12: =D6+D9-D11 -> 2.222055129e+10 | E12: =E6+E9-E11 -> 2.362913095e+10 | F12: =F6+F9-F11 -> 2.451151144e+10 | G12: =G6+G9-G11 -> 2.524778075e+10

Sheet 11. Anuidade Regulatória
C3: Custos com ativos não operacionais
C5: Ativos imobilizados (por ano) | D5: Valor Líquido (dez/24)
C6: 2021 | D6: 12842526.05
C7: 2022 | D7: 15698450.12
C8: 2023 | D8: 17878446.35
C9: 2024 (extrapolado) | D9: 8161112.91
C11: Descrição | D11: Valor
C12: Ativos Não Operacionais | D12: =SUM(D6:D9) -> 54580535.43
C13: % Depreciação média | D13: 0.07311215238
C14: WACC | D14: ='4. WACC'!B23 -> 0.1224
C15: Anuidade Regulatória | D15: =(D12*D13)+D12*(D14/2) -> 7330829.191

Sheet 12. Capital de Giro
C2: Capital Giro
D4: Real Contábil | E4: Real Contábil | F4: Real Contábil | G4: Real Contábil | H4: Real Contábil | I4: Real Contábil | J4: Real Contábil | K4: Real Contábil | L4: Real Contábil | M4: Real Contábil | N4: Estimado | O4: Projetado | P4: Projetado | Q4: Projetado | R4: Projetado
C5: Descrição | D5: 2016 | E5: =D5+1 -> 2017 | F5: =E5+1 -> 2018 | G5: 2019 | H5: 2020 | I5: inicial 2021 | J5: =H5+1 -> 2021 | K5: =J5+1 -> 2022 | L5: 2023 | M5: 2024-09-01 | N5: inicial 2025 | O5: 2025 | P5: =O5+1 -> 2026 | Q5: 2027 | R5: 2028
C7: I - Ativo Circulante Operacional s/ disponibilidades | D7: =SUM(D10:D14) -> 668910000 | E7: =SUM(E10:E14) -> 705326000 | F7: 737900000 | G7: 896600000 | H7: 872478000 | I7: 0 | J7: 1075804000 | K7: 1245844000 | L7: 1428736000 | M7: =SUM(M10:M14) -> 1463131986 | N7: 0 | O7: =SUM(O10:O14) -> 1498390494 | P7: 1532514019 | Q7: 1567615327 | R7: 1603106490
C8: Disponível | D8: não considerado | E8: não considerado | F8: não considerado | G8: não considerado | H8: não considerado | I8: 0 | J8: não considerado | K8: não considerado | L8: não considerado | M8: não considerado | N8: 0 | O8: não projetado | P8: não projetado | Q8: não projetado | R8: não projetado
C9: Aplicações Financeiras | D9: não considerado | E9: não considerado | F9: não considerado | G9: não considerado | H9: não considerado | I9: 0 | J9: não considerado | K9: não considerado | L9: não considerado | M9: não considerado | N9: 0 | O9: não projetado | P9: não projetado | Q9: não projetado | R9: não projetado
C10: Contas a receber de clientes | D10: 559797000 | E10: 606250000 | F10: 639100000 | G10: 809700000 | H10: 779404000 | I10: 0 | J10: 971478000 | K10: 1086163000 | L10: 1260202000 | M10: 1269984390 | N10: 0 | O10: =O29*O$41 -> 1314991881 | P10: =P29*P$41 -> 1345279180 | Q10: =Q29*Q$41 -> 1376446740 | R10: =R29*R$41 -> 1407947247
C11: Estoques de Operação | D11: 36722000 | E11: 36892000 | F11: 39100000 | G11: 46100000 | H11: 53857000 | I11: 0 | J11: 57680000 | K11: 76943000 | L11: 69305000 | M11: 70670659.59 | N11: 0 | O11: =O30*SUM(O$47:O$48) -> 84866441.88 | P11: =P30*SUM(P$47:P$48) -> 86433243.83 | Q11: =Q30*SUM(Q$47:Q$48) -> 88031611.32 | R11: =R30*SUM(R$47:R$48) -> 89661938.45
C12: Impostos e Contribuições a Recuperar | D12: 39021000 | E12: 24098000 | F12: 15400000 | G12: 300000 | H12: 6810000 | I12: 0 | J12: 11420000 | K12: 38334000 | L12: 14644000 | M12: 105853.59 | N12: 0 | O12: =O31*O$41 -> 19387024.16 | P12: 19833552.08 | Q12: 20293057.75 | R12: 20757472.1
C13: Depósitos Vinculados | D13: 9844000 | E13: 5838000 | F13: 6700000 | G13: 2900000 | H13: 4661000 | I13: 0 | J13: 14375000 | K13: 23705000 | L13: 61654000 | M13: 79363811.29 | N13: 0 | O13: 48837270.31 | P13: 49962105.4 | Q13: 51119632.33 | R13: 52289524.56
C14: Outras Contas a Receber | D14: 23526000 | E14: 32248000 | F14: 37600000 | G14: 37600000 | H14: 27746000 | I14: 0 | J14: 20851000 | K14: 20699000 | L14: 22931000 | M14: 43007271.95 | N14: 0 | O14: 30307876.64 | P14: 31005937.01 | Q14: 31724285.58 | R14: 32450307.92
C16: II - Passivo Circulante | D16: =SUM(D17:D20) -> 390657000 | E16: =SUM(E17:E20) -> 480797000 | F16: 566343000 | G16: 584175000 | H16: 628337123.7 | I16: 0 | J16: 654082789.3 | K16: 736874479 | L16: 848290746.8 | M16: 906921761.3 | N16: 0 | O16: 845662395.8 | P16: 859794305.5 | Q16: 873771386 | R16: 887922658
C17: Salários, provisões e contrib. sociais | D17: 157379000 | E17: 176720000 | F17: 239343000 | G17: 212875000 | H17: 268919123.7 | I17: 0 | J17: 214439789.3 | K17: 245965679 | L17: 285789746.8 | M17: 341661453.2 | N17: 0 | O17: =O35*O46 -> 290243066.1 | P17: =P35*P46 -> 292987605.6 | Q17: =Q35*Q46 -> 295583334.6 | R17: =R35*R46 -> 298204180
C18: Empreiteiros e fornecedores | D18: 133505000 | E18: 182655000 | F18: 190700000 | G18: 214000000 | H18: 209428000 | I18: 0 | J18: 269397000 | K18: 297045000 | L18: 354897000 | M18: 333133585.6 | N18: 0 | O18: =O36*SUM(O47:O50) -> 333791959.7 | P18: =P36*SUM(P47:P50) -> 340426273 | Q18: =Q36*SUM(Q47:Q50) -> 347000725.4 | R18: =R36*SUM(R47:R50) -> 353666025.1
C19: Impostos e contribuições a recolher | D19: 63260000 | E19: 66941000 | F19: 68100000 | G19: 100800000 | H19: 72691000 | I19: 0 | J19: 84602000 | K19: 102767000 | L19: 100087000 | M19: 94451538.8 | N19: 0 | O19: =O37*(SUM(O41)) -> 110266985.1 | P19: =P37*(SUM(P41)) -> 112806688.3 | Q19: 115420204.7 | R19: 118061639.9
C20: Outras obrigações | D20: 36513000 | E20: 54481000 | F20: 68200000 | G20: 56500000 | H20: 77299000 | I20: 0 | J20: 85644000 | K20: 91096800 | L20: 107517000 | M20: 137675183.7 | N20: 0 | O20: =O38*SUM(O47:O50) -> 111360384.9 | P20: =P38*SUM(P47:P50) -> 113573738.6 | Q20: =Q38*SUM(Q47:Q50) -> 115767121.4 | R20: =R38*SUM(R47:R50) -> 117990812.9
C22: III - Capital Circulante Regulatório
C23: Estoque | D23: =D7-D16 -> 278253000 | E23: =E7-E16 -> 224529000 | F23: =F7-F16 -> 171557000 | G23: =G7-G16 -> 312425000 | H23: =H7-H16 -> 244140876.3 | I23: =H23 -> 244140876.3 | J23: =J7-J16 -> 421721210.7 | K23: =K7-K16 -> 508969521 | L23: =L7-L16 -> 580445253.2 | M23: =M7-M16 -> 556210225.1 | N23: =M23 -> 556210225.1 | O23: =O7-O16 -> 652728098.7 | P23: =P7-P16 -> 672719713.2 | Q23: =Q7-Q16 -> 693843940.6 | R23: =R7-R16 -> 715183831.9
C24: Variação do Capital de Giro (VCG) | E24: =E23-D23 -> -53724000 | F24: =F23-E23 -> -52972000 | G24: 140868000 | H24: -68284123.66 | I24: 0 | J24: =J23-H23 -> 177580334.4 | K24: =K23-J23 -> 87248310.23 | L24: 71475732.21 | M24: -24235028.09 | N24: 0 | O24: =O23-M23 -> 96517873.58 | P24: 19991614.51 | Q24: 21124227.41 | R24: 21339891.33
C26: Fluxo de caixa do capital de giro | D26: =D23 -> 278253000 | E26: =E24 -> -53724000 | F26: =F24 -> -52972000 | G26: =G24 -> 140868000 | H26: =H24-H23 -> -312425000 | I26: =I23 -> 244140876.3 | J26: =J24 -> 177580334.4 | K26: =K24 -> 87248310.23 | L26: =L24 -> 71475732.21 | M26: =M24-M23 -> -580445253.2 | N26: =N23 -> 556210225.1 | O26: =O24 -> 96517873.58 | P26: =P24 -> 19991614.51 | Q26: =Q24 -> 21124227.41 | R26: =R24-R23 -> -693843940.6
C28: Indicadores para projeção | I28: Realizado | J28: 2021 | K28: 2022 | L28: 2023 | M28: 2024 estimado | O28: Indicadores para projeção (média 2021-2024)
C29: Contas a receber de clientes | J29: =J10/J$41 -> 0.1753547251 | K29: =K10/K$41 -> 0.1794012287 | L29: =L10/L$41 -> 0.1872230931 | M29: =M10/M$41 -> 0.1758642902 | O29: =AVERAGE(J29:M29) -> 0.1794608343 | P29: =O29 -> 0.1794608343 | Q29: =P29 -> 0.1794608343 | R29: =Q29 -> 0.1794608343
C30: Estoques de Operação | J30: =J11/SUM(J47:J48) -> 0.2569747494 | K30: =K11/SUM(K47:K48) -> 0.2571430615 | L30: =L11/SUM(L47:L48) -> 0.2104668196 | M30: =M11/SUM(M47:M48) -> 0.225138464 | O30: =AVERAGE(J30:M30) -> 0.2374307736 | P30: =O30 -> 0.2374307736 | Q30: 0.2374307736 | R30: 0.2374307736
C31: Impostos e Contribuições a Recuperar | J31: =J12/J$41 -> 0.002061344633 | K31: 0.006331615699 | L31: 0.002175599606 | M31: 1.465834274e-05 | O31: =AVERAGE(J31:M31) -> 0.00264580457 | P31: 0.00264580457 | Q31: 0.00264580457 | R31: 0.00264580457
C32: Depósitos Vinculados | J32: 0.002594731094 | K32: 0.003915347998 | L32: 0.009159684384 | M32: 0.01099010385 | O32: =AVERAGE(J32:M32) -> 0.006664966832 | P32: 0.006664966832 | Q32: 0.006664966832 | R32: 0.006664966832
C33: Outras Contas a Receber | J33: 0.003763668733 | K33: 0.003418847847 | L33: 0.00340676554 | M33: 0.00595554041 | O33: =AVERAGE(J33:M33) -> 0.004136205632 | P33: 0.004136205632 | Q33: 0.004136205632 | R33: 0.004136205632
C35: Salários, provisões e contrib. sociais | J35: =J17/J46 -> 0.2065148277 | K35: =K17/K46 -> 0.202131405 | L35: =L17/L46 -> 0.2185429746 | M35: =M17/M46 -> 0.2124727335 | O35: =AVERAGE(J35:M35) -> 0.2099154852 | P35: =O35 -> 0.2099154852 | Q35: =P35 -> 0.2099154852 | R35: =Q35 -> 0.2099154852
C36: Empreiteiros e fornecedores | J36: =J18/SUM(J47:J50) -> 0.303641203 | K36: =K18/SUM(K47:K50) -> 0.2792990134 | L36: =L18/SUM(L47:L50) -> 0.2918172231 | M36: =M18/SUM(M47:M50) -> 0.2667451393 | O36: =AVERAGE(J36:M36) -> 0.2853756447 | P36: =O36 -> 0.2853756447 | Q36: 0.2853756447 | R36: 0.2853756447
C37: Impostos e contribuições a recolher | J37: =J19/SUM(J$41) -> 0.01527091757 | K37: =K19/SUM(K$41) -> 0.01697399568 | L37: =L19/SUM(L$41) -> 0.01486951911 | M37: =M19/SUM(M$41) -> 0.01307941496 | O37: =AVERAGE(J37:M37) -> 0.01504846183 | P37: 0.01504846183 | Q37: 0.01504846183 | R37: 0.01504846183
C38: Outras obrigações | J38: =J20/SUM(J47:J50) -> 0.09653057453 | K38: =K20/SUM(K47:K50) -> 0.0856545182 | L38: =L20/SUM(L47:L50) -> 0.08840681206 | M38: =M20/SUM(M47:M50) -> 0.1102386179 | O38: =AVERAGE(J38:M38) -> 0.09520763067 | P38: 0.09520763067 | Q38: 0.09520763067 | R38: 0.09520763067
C40: Dados de referência para estimar indicadores e projeções | I40: Realizado | J40: 2021 | K40: 2022 | L40: 2023 | M40: 2024 estimado | O40: Projeções da Receita Requerida
C41: Receitas operacionais diretas do saneamento | J41: =SUM(J42:J44) -> 5540073125 | K41: 6054378822 | L41: 6731017950 | M41: 7221388655 | O41: ='1. P0'!I9*1000*'1. P0'!$E$40 -> 7327458867 | P41: ='1. P0'!J9*1000*'1. P0'!$E$40 -> 7496227162 | Q41: ='1. P0'!K9*1000*'1. P0'!$E$40 -> 7669900483 | R41: ='1. P0'!L9*1000*'1. P0'!$E$40 -> 7845429074
C42: Serviços de Água | J42: 3487776730 | K42: 3811915567 | L42: 4253689659 | M42: 4423103603
C43: Serviços de Esgoto | J43: 2025622474 | K43: 2214074818 | L43: 2441796822 | M43: 2765179531
C44: Outras Receitas Operacionais | J44: 26673920.03 | K44: 28388437.21 | L44: 35531468.74 | M44: 33105520.47
C45: Opex | O45: Projeções de OPEX Parcela B
C46: Pessoal | J46: ='Aux. - OPEX Realizado - Resumo'!G23 -> 1038374783 | K46: ='Aux. - OPEX Realizado - Resumo'!H23 -> 1216860285 | L46: ='Aux. - OPEX Realizado - Resumo'!I23 -> 1307705028 | M46: ='Aux. - OPEX Realizado - Resumo'!J23 -> 1608024934 | O46: ='7. Opex - Parcela B'!O53 -> 1382666295 | P46: ='7. Opex - Parcela B'!P53 -> 1395740792 | Q46: ='7. Opex - Parcela B'!Q53 -> 1408106383 | R46: ='7. Opex - Parcela B'!R53 -> 1420591624
C47: Materiais Gerais | J47: ='Aux. - OPEX Realizado - Resumo'!G24 -> 84093787.24 | K47: ='Aux. - OPEX Realizado - Resumo'!H24 -> 98673769.48 | L47: ='Aux. - OPEX Realizado - Resumo'!I24 -> 112678575.1 | M47: ='Aux. - OPEX Realizado - Resumo'!J24 -> 114819141.7 | O47: ='7. Opex - Parcela B'!O54 -> 112422031.3 | P47: ='7. Opex - Parcela B'!P54 -> 113700905 | Q47: ='7. Opex - Parcela B'!Q54 -> 114863357.5 | R47: ='7. Opex - Parcela B'!R54 -> 116032590.1
C48: Materiais de Tratamento | J48: ='Aux. - OPEX Realizado - Resumo'!G25 -> 140364063.7 | K48: ='Aux. - OPEX Realizado - Resumo'!H25 -> 200548770.5 | L48: ='Aux. - OPEX Realizado - Resumo'!I25 -> 216613235 | M48: ='Aux. - OPEX Realizado - Resumo'!J25 -> 199079506.9 | O48: ='7. Opex - Parcela B'!O55 -> 245014540.9 | P48: ='7. Opex - Parcela B'!P55 -> 250334651.6 | Q48: ='7. Opex - Parcela B'!Q55 -> 255904129.6 | R48: ='7. Opex - Parcela B'!R55 -> 261601433.8
C49: Serviços de Terceiros | J49: ='Aux. - OPEX Realizado - Resumo'!G26 -> 640948156.2 | K49: ='Aux. - OPEX Realizado - Resumo'!H26 -> 689655411.9 | L49: ='Aux. - OPEX Realizado - Resumo'!I26 -> 822318933.3 | M49: ='Aux. - OPEX Realizado - Resumo'!J26 -> 980606936.2 | O49: ='7. Opex - Parcela B'!O56 -> 856195641.6 | P49: ='7. Opex - Parcela B'!P56 -> 869209769.7 | Q49: ='7. Opex - Parcela B'!Q56 -> 881737816.1 | R49: ='7. Opex - Parcela B'!R56 -> 894371733.5
C50: Despesas Gerais | J50: ='Aux. - OPEX Realizado - Resumo'!G27 -> 21815481.18 | K50: ='Aux. - OPEX Realizado - Resumo'!H27 -> 74659639.81 | L50: ='Aux. - OPEX Realizado - Resumo'!I27 -> 64551195.92 | M50: ='Aux. - OPEX Realizado - Resumo'!J27 -> -45622150.44 | O50: ='7. Opex - Parcela B'!O57 -> -43974024.88 | P50: ='7. Opex - Parcela B'!P57 -> -40339486.59 | Q50: ='7. Opex - Parcela B'!Q57 -> -36561574.9 | R50: ='7. Opex - Parcela B'!R57 -> -32705797.1
C52: AJUSTES COMPENSATÓRIOS NA VCG NAS 1a. e 2a. RTP
C53: Estoque de Capital de Giro realizado | D53: =D23 -> 278253000 | E53: =E23 -> 224529000 | F53: =F23 -> 171557000 | G53: =G23 -> 312425000 | H53: =H23 -> 244140876.3 | I53: =H53 -> 244140876.3 | J53: =J23 -> 421721210.7 | K53: =K23 -> 508969521 | L53: =L23 -> 580445253.2 | M53: =M23 -> 556210225.1
C54: VCG | E54: =E53-D53 -> -53724000 | F54: =F53-E53 -> -52972000 | G54: =G53-F53 -> 140868000 | H54: =H53-G53 -> -68284123.66 | J54: =J53-I53 -> 177580334.4 | K54: =K53-J53 -> 87248310.23 | L54: =L53-K53 -> 71475732.21 | M54: =M53-L53 -> -24235028.09
C55: Fluxo de caixa realizado do capital de giro | D55: =D53 -> 278253000 | E55: =E54 -> -53724000 | F55: =F54 -> -52972000 | G55: =G54 -> 140868000 | H55: =H54-H53 -> -312425000 | I55: =I53 -> 244140876.3 | J55: =J54 -> 177580334.4 | K55: =K54 -> 87248310.23 | L55: =L54 -> 71475732.21 | M55: =M54-M53 -> -580445253.2
C57: Dados Realizados deflacionados pelo IPCA para dez/2016 ou dez/2020 | D57: Preços de dez/2016 | I57: Preços de dez/2020
C58: Estoque de Capital de Giro realizado deflacionado | D58: =D53/'Aux. - IPCA'!$C338*'Aux. - IPCA'!$C$338 -> 278253000 | E58: =E53/'Aux. - IPCA'!$C351*'Aux. - IPCA'!$C$338 -> 218100654.8 | F58: =F53/'Aux. - IPCA'!$C364*'Aux. - IPCA'!$C$338 -> 160628780.7 | G58: =G53/'Aux. - IPCA'!$C385*'Aux. - IPCA'!$C$338 -> 280446985.1 | H58: =H53/'Aux. - IPCA'!$C398*'Aux. - IPCA'!$C$338 -> 209679833.1 | I58: =I53/'Aux. - IPCA'!$C398*'Aux. - IPCA'!$C$398 -> 244140876.3 | J58: =J53/'Aux. - IPCA'!$C411*'Aux. - IPCA'!$C$398 -> 383170493.5 | K58: =K53/'Aux. - IPCA'!$C424*'Aux. - IPCA'!$C$398 -> 437153457.6 | L58: =L53/'Aux. - IPCA'!$C437*'Aux. - IPCA'!$C$398 -> 476522871.6 | M58: =M53/'Aux. - IPCA'!$C450*'Aux. - IPCA'!$C$398 -> 435582989.3
C59: VCG deflacionada | E59: =E58-D58 -> -60152345.2 | F59: =F58-E58 -> -57471874.14 | G59: 119818204.4 | H59: -70767152 | J59: =J58-I58 -> 139029617.2 | K59: =K58-J58 -> 53982964.12 | L59: =L58-K58 -> 39369413.93 | M59: =M58-L58 -> -40939882.28
C60: Fluxo de caixa realizado do capital de giro deflacionado | D60: =D58 -> 278253000 | E60: =E59 -> -60152345.2 | F60: =F59 -> -57471874.14 | G60: =G59 -> 119818204.4 | H60: =H59-H58 -> -280446985.1 | I60: =I58 -> 244140876.3 | J60: =J59 -> 139029617.2 | K60: =K59 -> 53982964.12 | L60: =L59 -> 39369413.93 | M60: =M59-M58 -> -476522871.6
C62: Projetado 1a./2a. RTP
C63: Remuneração do Capital de Giro compensado nos ajustes compensatórios da 1a.RTP | D63: 0 | E63: -5759425.41 | F63: 4904272.792 | G63: 16921056.1 | H63: -8083584.399
C64: Remuneração do Capital de Giro compensado nos ajustes compensatórios da 2a.RTP | I64: 0 | J64: 139220745.1 | K64: 56529185.13 | L64: -60937465.78 | M64: 14185322.4
C65: Fluxo de caixa projetado do capital de giro 2a. RTP ou ajustado da 1a. RTP | D65: =D63 -> 0 | E65: =E63 -> -5759425.41 | F65: =F63 -> 4904272.792 | G65: =G63 -> 16921056.1 | H65: =H63 -> -8083584.399 | I65: =I64 -> 0 | J65: =J64 -> 139220745.1 | K65: =K64 -> 56529185.13 | L65: =L64 -> -60937465.78 | M65: =M64 -> 14185322.4
C68: Diferença dos fluxos de caixa a compensar | D68: =D60-D65 -> 278253000 | E68: -54392919.79 | F68: -62376146.94 | G68: 102897148.3 | H68: -272363400.7 | I68: 244140876.3 | J68: -191127.9441 | K68: -2546221.019 | L68: 100306879.7 | M68: -490708194
C69: wacc 1a. eE 2a. RTP | D69: 0.1305454545 | I69: 0.1147 | J69: a.a.
C70: VPL da diferença em dez/2016 e dez/2020 (se negativo, Sanepar devolver) | D70: =NPV(D69,E68:H68)+D68 -> 85824636.25 | I70: =NPV(I69,J68:M68)+I68 -> -3487443.885

Sheet 13. Receitas Irrecuperáveis
A1: Prazo | B1: Mês de Referência | C1: Valor Pendente, posição em 31/08/2024 | D1: Faturamento total (A+E+S) por mês | E1: Aging (Pendência Total / Faturamento Total) | G1: Média %Aging mês 49-60
A2: Prazo | B2: Data | C2: Pendência Total | D2: Faturamento Total | E2: % Aging Total | G2: =AVERAGE(E51:E62) -> 0.006574090062
A3: 1 | B3: 45505 | C3: 245388606 | D3: 667598872.6 | E3: 0.3675689341
A4: 2 | B4: 45474 | C4: 77686457.97 | D4: 663362091.8 | E4: 0.117110186
A5: 3 | B5: 45444 | C5: 42207025.06 | D5: 675161725.8 | E5: 0.06251394806
A6: 4 | B6: 45413 | C6: 30399338.8 | D6: 673116986.4 | E6: 0.04516204377
A7: 5 | B7: 45383 | C7: 25936352.81 | D7: 655355652.9 | E7: 0.03957599617
A8: 6 | B8: 45352 | C8: 24590892.95 | D8: 677975884.2 | E8: 0.03627104374
A9: 7 | B9: 45323 | C9: 22321646.31 | D9: 660036532.5 | E9: 0.03381880428
A10: 8 | B10: 45292 | C10: 20882828.41 | D10: 685419169.1 | E10: 0.0304672372
A11: 9 | B11: 45261 | C11: 18650630.64 | D11: 666337454.5 | E11: 0.02798976782
A12: 10 | B12: 45231 | C12: 17831050.08 | D12: 653696711.8 | E12: 0.02727725222
A13: 11 | B13: 45200 | C13: 17340569.5 | D13: 655118193.1 | E13: 0.02646937558
A14: 12 | B14: 45170 | C14: 16205740.62 | D14: 640207480.8 | E14: 0.02531326344
A15: 13 | B15: 45139 | C15: 15355349.27 | D15: 631918328.8 | E15: 0.02429957887
A16: 14 | B16: 45108 | C16: 14974405.11 | D16: 625065752.3 | E16: 0.02395652786
A17: 15 | B17: 45078 | C17: 13038530.45 | D17: 614976401 | E17: 0.02120167608
A18: 16 | B18: 45047 | C18: 12434698.57 | D18: 595920769.8 | E18: 0.02086636211
A19: 17 | B19: 45017 | C19: 12299593.91 | D19: 595818152 | E19: 0.02064320106
A20: 18 | B20: 44986 | C20: 11993371.29 | D20: 572915229.5 | E20: 0.02093393694
A21: 19 | B21: 44958 | C21: 11625371.67 | D21: 584549040.3 | E21: 0.01988776111
A22: 20 | B22: 44927 | C22: 10551287.02 | D22: 565279667.2 | E22: 0.01866560507
A23: 21 | B23: 44896 | C23: 9776944.69 | D23: 571393099.3 | E23: 0.01711071538
A24: 22 | B24: 44866 | C24: 9536436.33 | D24: 559023164.7 | E24: 0.01705910762
A25: 23 | B25: 44835 | C25: 9303674.51 | D25: 545876522.7 | E25: 0.01704355128
A26: 24 | B26: 44805 | C26: 9466279.54 | D26: 550995332.8 | E26: 0.01718032618
A27: 25 | B27: 44774 | C27: 9129818.73 | D27: 554569372 | E27: 0.0164628975
A28: 26 | B28: 44743 | C28: 8913215.97 | D28: 541438789.5 | E28: 0.01646209349
A29: 27 | B29: 44713 | C29: 8627732.5 | D29: 541972663.5 | E29: 0.01591912855
A30: 28 | B30: 44682 | C30: 8641643.25 | D30: 530456918.3 | E30: 0.01629094268
A31: 29 | B31: 44652 | C31: 8712661.82 | D31: 515676291.8 | E31: 0.01689560284
A32: 30 | B32: 44621 | C32: 8530529.95 | D32: 555817751.6 | E32: 0.01534771051
A33: 31 | B33: 44593 | C33: 15328267.39 | D33: 518435239.5 | E33: 0.02956640719
A34: 32 | B34: 44562 | C34: 8243140.88 | D34: 539993825.5 | E34: 0.01526525025
A35: 33 | B35: 44531 | C35: 7952842.97 | D35: 541472587 | E35: 0.01468743416
A36: 34 | B36: 44501 | C36: 7147175.3 | D36: 519476586.6 | E36: 0.01375841661
A37: 35 | B37: 44470 | C37: 6850275.43 | D37: 508777641.1 | E37: 0.01346418332
A38: 36 | B38: 44440 | C38: 6878587.58 | D38: 513591041.2 | E38: 0.01339312221
A39: 37 | B39: 44409 | C39: 6393355.65 | D39: 502204696.6 | E39: 0.01273057718
A40: 38 | B40: 44378 | C40: 6047560.56 | D40: 486553271.2 | E40: 0.0124293904
A41: 39 | B41: 44348 | C41: 5695746.32 | D41: 486970011.6 | E41: 0.01169629789
A42: 40 | B42: 44317 | C42: 5536717.97 | D42: 482217600 | E42: 0.01148178326
A43: 41 | B43: 44287 | C43: 5595623.74 | D43: 486806757 | E43: 0.01149454822
A44: 42 | B44: 44256 | C44: 5070001.93 | D44: 480617435 | E44: 0.01054893468
A45: 43 | B45: 44228 | C45: 4671077.35 | D45: 447570695.2 | E45: 0.01043651294
A46: 44 | B46: 44197 | C46: 4821672.89 | D46: 464047505.2 | E46: 0.01039047261
A47: 45 | B47: 44166 | C47: 4424720.34 | D47: 457098022.1 | E47: 0.009680025128
A48: 46 | B48: 44136 | C48: 4115591.27 | D48: 466430014.9 | E48: 0.008823598693
A49: 47 | B49: 44105 | C49: 4011780.12 | D49: 455181019.6 | E49: 0.008813592718
A50: 48 | B50: 44075 | C50: 3574436.17 | D50: 455724357.6 | E50: 0.007843416992
A51: 49 | B51: 44044 | C51: 3432534.4 | D51: 438208378.3 | E51: 0.007833109931
A52: 50 | B52: 44013 | C52: 3322942.1 | D52: 398953036.6 | E52: 0.008329156055
A53: 51 | B53: 43983 | C53: 3186429.41 | D53: 423690836.5 | E53: 0.007520647452
A54: 52 | B54: 43952 | C54: 3484030.07 | D54: 449774115.5 | E54: 0.007746177359
A55: 53 | B55: 43922 | C55: 3445934.67 | D55: 475788998.6 | E55: 0.007242569038
A56: 54 | B56: 43891 | C56: 3317749.34 | D56: 485874832.3 | E56: 0.006828403365
A57: 55 | B57: 43862 | C57: 3156278.31 | D57: 492318171.8 | E57: 0.006411053849
A58: 56 | B58: 43831 | C58: 2955878.88 | D58: 497527908 | E58: 0.005941131809
A59: 57 | B59: 43800 | C59: 2749963.88 | D59: 486895341.8 | E59: 0.005647956849
A60: 58 | B60: 43770 | C60: 2490476.68 | D60: 481699211.6 | E60: 0.005170190484
A61: 59 | B61: 43739 | C61: 2411953.7 | D61: 462924264.5 | E61: 0.00521025551
A62: 60 | B62: 43709 | C62: 2263437.07 | D62: 451925553.6 | E62: 0.005008429047

Sheet 14. Ajuste Ordinário
C5: Cálculo do P0 - Fluxo de Caixa Descontado
C7: ID | D7: Descrição | E7: Fonte | F7: Componentes Fórmula | G7: Valor Presente | H7: Ciclo Tarifário - R$ (Dez/20) x 1000
G8: 2020 | H8: 2021 | I8: =H8+1 -> 2022 | J8: 2023 | K8: 2024
C9: 1 | D9: Volume Faturado (A+E) - (1.000 m³) | F9: VF | G9: =NPV($F$36,H9:K9) -> 2914594.882 | H9: 914051.693 | I9: 943451.1599 | J9: 965028.821 | K9: 986400.364
C10: 2 | D10: (+) Receita Requerida | F10: RRD | G10: =NPV($F$36,H10:K10) -> 14874187.29 | H10: 4664722.413 | I10: 4814758.076 | J10: 4924876.355 | K10: 5033942.742
C11: 3 | D11: (+) Outras Receitas | F11: OR | G11: =NPV($F$36,H11:K11) -> 227122.9799 | H11: 71414.31659 | I11: 69001.69876 | J11: 73634.81143 | K11: 83968.75521
D12: (+) Outras Receitas (valores originais) | G12: 419719.5661 | H12: 141637.8051 | I12: 130619.309 | J12: 136950.3568 | K12: 136950.3568
C13: =C11+1 -> 4 | D13: (-) Fundos Municipais | F13: FM | G13: =NPV($F$36,H13:K13) -> 287049.6296 | H13: 62938.89162 | I13: 125880.1487 | J13: 94409.52014 | K13: 94409.52014
C14: =C13+1 -> 5 | D14: (-) Despesas Operacionais - OPEX | F14: OPEX | G14: =NPV($F$36,H14:K14) -> 7088137.934 | H14: 2199971.977 | I14: 2300606.81 | J14: 2368427.752 | K14: 2398982.667
C15: =C14+1 -> 6 | D15: (-) PPP e Aluguel de Ativos | F15: PPP | G15: =NPV($F$36,H15:K15) -> 246079.3084 | H15: 80164.31572 | I15: 80971.66774 | J15: 78578.33039 | K15: 80734.93373
C16: 7 | D16: (-) Uso de Recurso Hídrico e Taxas | F16: URHT | G16: =NPV($F$36,H16:K16) -> 105543.0865 | H16: 35875.44773 | I16: 36250.45332 | J16: 32267.24857 | K16: 32267.24857
C17: 8 | D17: (-) Receitas Irrecuperáveis | F17: RINC | G17: =NPV($F$36,H17:K17) -> 67670.58105 | H17: 21222.30076 | I17: 21904.89271 | J17: 22405.87927 | K17: 22902.08021
D18: (-) Receitas Irrecuperáveis (valores originais) | G18: 62605.21818 | H18: 19633.74259 | I18: 20265.24031 | J18: 20728.7264 | K18: 21187.78509
C19: =C17+1 -> 9 | D19: (-) Investimentos | F19: CAPEX | G19: =NPV($F$36,H19:K19) -> 3127247.813 | H19: 982626.4295 | I19: 634920.63 | J19: 1452087.414 | K19: 1060239.916
D20: (-) Ativos Não Operacionais | G20: =NPV($F$36,H20:K20) -> 51851.74827 | H20: 23646.41191 | I20: 18419.06717 | J20: 16132.01844 | K20: 6441.913623
D21: (-) Investimentos (valores originais) | G21: 3770411.942 | H21: 1020588.704 | I21: 682096.0015 | J21: 1639478.711 | K21: 1733317.049
C22: =C19+1 -> 10 | D22: (+) Baixas de Ativos e Não Elegíveis (alterados) | G22: =(65581335.03+8879309.5+13028362.24)/1000 -> 87489.00677 | H22: 0 | I22: 0 | J22: 0 | K22: 0
D23: (+) Baixas de Ativos e Não Elegíveis (alterados) (valores originais) | G23: 0 | H23: 0 | I23: 0 | J23: 0 | K23: 0
C24: =C22+1 -> 11 | D24: (-) Variação do Capital de Giro | F24: VarWK | G24: 132134.5261 | H24: 139029.6172 | I24: 53982.96412 | J24: 39369.41393 | K24: -476522.8716
D25: (-) Variação do Capital de Giro (valores originais) | G25: 135576.3196 | H25: 139220.7451 | I25: 56529.18513 | J25: -60937.46578 | K25: 14185.3224
C26: =C24+1 -> 12 | D26: (-) Base de Capital Inicial | F26: BRL0 | G26: 15063247.48 | H26: 0 | I26: 0 | J26: 0 | K26: 0
D27: (-) Base de Capital Inicial (valores originais) | G27: 15371685.46 | H27: 0 | I27: 0 | J27: 0 | K27: 0
C28: =C26+1 -> 13 | D28: (+) Base de Capital Final | F28: BRLT | G28: =NPV($F$36,H28:K28) -> 10980162.83 | H28: 0 | I28: 0 | J28: 0 | K28: 16955700.03
D29: (+) Base de Capital Final (valores originais) | G29: 11749752.75 | H29: 0 | I29: 0 | J29: 0 | K29: 18144110.07
D31: = Livre Fluxo de Caixa | G31: =-G26+G22-244140876.34/1000 -> -15219899.35 | H31: =H10+H11+H22+H28-H13-H14-H15-H16-H17-H19-H20-H24-H26 -> 1190661.338 | I31: =I10+I11+I22+I28-I13-I14-I15-I16-I17-I19-I20-I24-I26 -> 1610823.141 | J31: 894833.5905 | K31: 18854156.12
D32: = Livre Fluxo de Caixa (valores originais) | G32: -15371685.46 | H32: 1255314.101 | I32: 1650361.916 | J32: 896631.382 | K32: 18947847.93
D33: = Livre Fluxo de Caixa Descontado | G33: =G31/(1+$F$36)^(G8-$G$8) -> -15219899.35 | H33: =H31/(1+$F$36)^(H8-$G$8) -> 1068099.019 | I33: =I31/(1+$F$36)^(I8-$G$8) -> 1296266.77 | J33: =J31/(1+$F$36)^(J8-$G$8) -> 645969.5856 | K33: =K31/(1+$F$36)^(K8-$G$8) -> 12209563.98
D35: Valor Presente Líquido | F35: =SUM(G33:K33) -> -0.0008077658713 | G35: =IF(ABS(F35)>0.01,"Calcular P0!","") -> 
C36: =C28+1 -> 14 | D36: WACC Pré | F36: 0.1147480877
D38: (=) Tarifa Média Máxima - P0 (R$ / m3) | F38: 5.103346395
D39: (-) Fator X | F39: 0.004033480034
D40: (=) Tarifa Média Máxima - P0 (R$ / m3) com Fator X | F40: =F38-F39 -> 5.099312915
D41: (+/-) Ajuste Compensatório Ordinário | F41: =G41/G9 -> -0.1897703084 | G41: -553103.5698
D42: (=) Tarifa Média Máxima - P0 (R$ / m3) - com AJC | F42: =SUM(F40:F41) -> 4.909542607
D43: (+/-) Ajuste Compensatório Extraordinário | F43: =G43/G9 -> 0.6197904123 | G43: 1806437.964
D44: (=) Tarifa Média Máxima - P0 (R$ / m3) - com AJCe | F44: =SUM(F42:F43) -> 5.529333019 | I44: Cofins/PASEP | J44: 0.07150835637
D45: (+/-) Ajuste Compensatório Ciclo | F45: =G45/G9 -> -0.004387918871 | G45: -12789.00589
D46: (=) Tarifa Média Máxima - P0 (R$ / m3) - Dez/2020 | F46: =SUM(F44:F45) -> 5.5249451
D48: IPCA dez/20 a dez/24 | F48: 1.276932843
D49: Fator-X 2022 a 2024 (-) | F49: 0.002348662572
D50: WACC dez/20 a dez/24 | F50: =(1+F36)^4 -> 1.544212074
D53: Ano | F53: 2021 | G53: =F53+1 -> 2022 | H53: 2023 | I53: 2024
D54: Receita Requerida Originial | F54: =5.538*H9 -> 5062018.276 | G54: =5.538*I9 -> 5224832.524 | H54: =5.538*J9 -> 5344329.611 | I54: =5.538*K9 -> 5462685.216
D55: Receita Requerida Ajustada | F55: =$F$46*H9 -> 5050085.423 | G55: =$F$46*I9 -> 5212515.864 | H55: 5331731.256 | I55: 5449807.858
D56: Diferença | F56: =F55-F54 -> -11932.85303 | G56: =G55-G54 -> -12316.66012 | H56: -12598.35432 | I56: -12877.35766
D57: VPL | F57: =NPV(F36,F56:I56) -> -38049.74341
D58: Ajuste Compensatório Ordinário (R$ dez/2024) | F58: =F57*(F48+F49)*F50 -> -75166.58124

Sheet 15. Ajustes Extraordinários
A1: N. | B1: Ajustes Extraordinários | C1: Saldo em dez/24
A2: 1 | B2: =B10 -> Sobras Financeiras da 2a RTP | C2: =C14 -> -130594580.4
A3: 2 | B3: =B16 -> Contas Gráficas - Opex Parcela A | C3: =C23 -> 214579265.6
A4: 3 | B4: =B25 -> Capital de giro 1a RTP | C4: =C30 -> 321845901.6
A5: 4 | B5: =B32 -> Instalações e RO 1a RTP | C5: =C37 -> 169014142
A6: Total | B6: - | C6: =SUM(C2:C5) -> 574844728.8
A8: Detalhamento:
A10: 1 | B10: Sobras Financeiras da 2a RTP | C10: Saldo em dez/24
B11: Compensações Ordinárias | C11: ='15.1 Ajustes Extra. Cont. Graf.'!BC24 -> -17145243.54
B12: Compensações Extraordinárias | C12: ='15.1 Ajustes Extra. Cont. Graf.'!BC35 -> -115683100.9
B13: Compensações Ajuste Ciclo | C13: ='15.1 Ajustes Extra. Cont. Graf.'!BC46 -> 2233764.041
B14: Saldo | C14: =SUM(C11:C13) -> -130594580.4
A16: 2 | B16: Contas Gráficas - Opex Parcela A | C16: Saldo em dez/24
B17: Encargos (Sem FMSBA) | C17: ='15.1 Ajustes Extra. Cont. Graf.'!AX61 -> 56280308.54
B18: FMSBA | C18: ='15.1 Ajustes Extra. Cont. Graf.'!AX74 -> -58815237.75
B19: Energia Elétrica | C19: ='15.1 Ajustes Extra. Cont. Graf.'!AX87 -> 47335484.43
B20: Aluguel de Ativos (CPC06 + SLP) | C20: ='15.1 Ajustes Extra. Cont. Graf.'!AX100 -> 130590214.3
B21: PPP | C21: ='15.1 Ajustes Extra. Cont. Graf.'!AX113 -> 32013752.45
B22: Energia Elétrica (25%) - Resolução 40/2021 | C22: ='15.1 Ajustes Extra. Cont. Graf.'!AX126 -> 7174743.629
B23: Saldo | C23: =SUM(C17:C22) -> 214579265.6
A25: 3 | B25: Capital de giro 1a RTP | C25: Valor
B26: A compensar (R$ dez/2016) | C26: ='12. Capital de Giro'!D70 -> 85824636.25
B27: WACC (dez/16 a dez/20) | C27: =(1+0.130545454545455)^4 -> 1.633624029
B28: IPCA (dez/16 a dez/24) | C28: ='Aux. - IPCA'!C450/'Aux. - IPCA'!C338 -> 1.486797747
B29: WACC (dez/20 a dez/24) | C29: =(1+'12. Capital de Giro'!I69)^(2024-2020) -> 1.543945637
B30: Saldo a compensar | C30: =C26*C27*C28*C29 -> 321845901.6
A32: 4 | B32: Instalações e RO 1a RTP | C32: Valor
B33: A compensar (R$ dez/2016) | C33: =37175058.61+7894886.95 -> 45069945.56
B34: WACC (dez/16 a dez/20) | C34: =(1+0.130545454545455)^4 -> 1.633624029
B35: IPCA (dez/16 a dez/24) | C35: ='Aux. - IPCA'!C450/'Aux. - IPCA'!C338 -> 1.486797747
B36: WACC (dez/20 a dez/24) | C36: =C29 -> 1.543945637
B37: Saldo a compensar | C37: =C33*C34*C35*C36 -> 169014142

Sheet 15.1 Ajustes Extra. Cont. Graf.
B2: COMPOSIÇÃO DAS COMPENSAÇÕES
B4: Compensações Ordinárias e Extraordinárias | C4: 2021-01-01 | D4: 2021-02-01 | E4: 2021-03-01 | F4: 2021-04-01 | G4: 2021-05-01 | H4: 2021-06-01 | I4: 2021-07-01 | J4: 2021-08-01 | K4: 2021-09-01 | L4: 2021-10-01 | M4: 2021-11-01 | N4: 2021-12-01 | O4: 2022-01-01 | P4: 2022-02-01 | Q4: 2022-03-01 | R4: 2022-04-01 | S4: 2022-05-01 | T4: 2022-06-01 | U4: 2022-07-01 | V4: 2022-08-01 | W4: 2022-09-01 | X4: 2022-10-01 | Y4: 2022-11-01 | Z4: 2022-12-01 | AA4: 2023-01-01 | AB4: 2023-02-01 | AC4: 2023-03-01 | AD4: 2023-04-01 | AE4: 2023-05-01 | AF4: 2023-06-01 | AG4: 2023-07-01 | AH4: 2023-08-01 | AI4: 2023-09-01 | AJ4: 2023-10-01 | AK4: 2023-11-01 | AL4: 2023-12-01 | AM4: 2024-01-01 | AN4: 2024-02-01 | AO4: 2024-03-01 | AP4: 2024-04-01 | AQ4: 2024-05-01 | AR4: 2024-06-01 | AS4: 2024-07-01 | AT4: 2024-08-01 | AU4: 2024-09-01 | AV4: 2024-10-01 | AW4: 2024-11-01 | AX4: 2024-12-01 | AY4: 2025-01-01 | AZ4: 2025-02-01 | BA4: 2025-03-01 | BB4: 2025-04-01 | BC4: 2025-05-01
B5: Saldo Inicial | C5: 1255477142 | D5: =C13 -> 1251516685 | E5: =D13 -> 1256341814 | F5: =E13 -> 1261243729 | G5: =F13 -> 1257986780 | H5: =G13 -> 1261858365 | I5: 1248541710 | J5: 1240968890 | K5: 1230841178 | L5: 1223217249 | M5: 1217456723 | N5: 1206812732 | O5: 1191892909 | P5: 1174580025 | Q5: 1164128566 | R5: 1158112030 | S5: 1148514538 | T5: 1131024092 | U5: 1112683757 | V5: 1078964177 | W5: 1047571800 | X5: 1016952326 | Y5: 995548002.1 | Z5: 970678247.1 | AA5: 946666027.4 | AB5: 922259008 | AC5: 898977297.5 | AD5: 875467249.6 | AE5: 848797363.4 | AF5: 818999049 | AG5: 785157277.7 | AH5: 752429302 | AI5: 719878448.9 | AJ5: 686373493.4 | AK5: 651335415.7 | AL5: 615978521.3 | AM5: 581160763.3 | AN5: 543680225.3 | AO5: 509904085.8 | AP5: 470781517.1 | AQ5: 433953066.3 | AR5: 395786005.4 | AS5: 355062997.1 | AT5: 315626801.1 | AU5: 273962786.5 | AV5: 231283745 | AW5: 187307905.3 | AX5: 143525428 | AY5: 99704827.68 | AZ5: 53644946.07 | BA5: 7585064.464 | BB5: -38474817.15 | BC5: -84534698.76
B6: Índice de Correção (IPCA) | C6: 0.0025 | D6: 0.0086 | E6: 0.0093 | F6: 0.0031 | G6: 0.0083 | H6: 0.0053 | I6: 0.0096 | J6: 0.0087 | K6: 0.0116 | L6: 0.0125 | M6: 0.0095 | N6: 0.0073 | O6: 0.0054 | P6: 0.0101 | Q6: 0.0162 | R6: 0.0106 | S6: 0.0047 | T6: 0.0067 | U6: -0.0068 | V6: -0.0036 | W6: -0.0029 | X6: 0.0059 | Y6: 0.0041 | Z6: 0.0062 | AA6: 0.0053 | AB6: 0.0084 | AC6: 0.0071 | AD6: 0.0061 | AE6: 0.0023 | AF6: -0.0008 | AG6: 0.0012 | AH6: 0.0023 | AI6: 0.0026 | AJ6: 0.0024 | AK6: 0.0028 | AL6: 0.0056 | AM6: 0.0042 | AN6: 0.0083 | AO6: 0.0016 | AP6: 0.0038 | AQ6: 0.0046 | AR6: 0.0021 | AS6: 0.0038 | AT6: -0.0002 | AU6: 0.0044 | AV6: 0.0056 | AW6: 0.0039 | AX6: 0.0052
B7: Saldo Corrigido Acumulado | C7: =C5*(1+C6) -> 1258615835 | D7: =D5*(1+D6) -> 1262279729 | E7: =E5*(1+E6) -> 1268025792 | F7: 1265153585 | G7: 1268428070 | H7: 1268546215 | I7: 1260527710 | J7: 1251765319 | K7: 1245118936 | L7: 1238507465 | M7: =M5*(1+M6) -> 1229022562 | N7: 1215622465 | O7: 1198329131 | P7: 1186443283 | Q7: 1182987449 | R7: 1170388018 | S7: 1153912556 | T7: 1138601953 | U7: 1105117507 | V7: 1075079906 | W7: 1044533842 | X7: 1022952345 | Y7: =Y5*(1+Y6) -> 999629749 | Z7: 976696452.3 | AA7: 951683357.3 | AB7: 930005983.7 | AC7: 905360036.3 | AD7: 880807599.8 | AE7: 850749597.4 | AF7: 818343849.7 | AG7: 786099466.4 | AH7: 754159889.4 | AI7: 721750132.9 | AJ7: 688020789.7 | AK7: 653159154.8 | AL7: 619428001 | AM7: =AM5*(1+AM6) -> 583601638.5 | AN7: =AN5*(1+AN6) -> 548192771.1 | AO7: 510719932.3 | AP7: 472570486.9 | AQ7: 435949250.4 | AR7: 396617156 | AS7: 356412236.5 | AT7: 315563675.7 | AU7: 275168222.8 | AV7: 232578934 | AW7: 188038406.2 | AX7: 144271760.3 | AY7: 99704827.68 | AZ7: 53644946.07 | BA7: 7585064.464 | BB7: -38474817.15 | BC7: -84534698.76
B8: Índice de Remuneração (WACC) | C8: 0.009093467374 | D8: =C8 -> 0.009093467374 | E8: =D8 -> 0.009093467374 | F8: 0.009093467374 | G8: 0.009093467374 | H8: 0.009093467374 | I8: 0.009093467374 | J8: 0.009093467374 | K8: 0.009093467374 | L8: 0.009093467374 | M8: 0.009093467374 | N8: 0.009093467374 | O8: 0.009093467374 | P8: 0.009093467374 | Q8: 0.009093467374 | R8: 0.009093467374 | S8: 0.009093467374 | T8: 0.009093467374 | U8: 0.009093467374 | V8: 0.009093467374 | W8: 0.009093467374 | X8: 0.009093467374 | Y8: 0.009093467374 | Z8: 0.009093467374 | AA8: 0.009093467374 | AB8: 0.009093467374 | AC8: 0.009093467374 | AD8: 0.009093467374 | AE8: 0.009093467374 | AF8: 0.009093467374 | AG8: 0.009093467374 | AH8: 0.009093467374 | AI8: 0.009093467374 | AJ8: 0.009093467374 | AK8: 0.009093467374 | AL8: 0.009093467374 | AM8: 0.009093467374 | AN8: 0.009093467374 | AO8: 0.009093467374 | AP8: 0.009093467374 | AQ8: 0.009093467374 | AR8: 0.009093467374 | AS8: 0.009093467374 | AT8: 0.009093467374 | AU8: 0.009093467374 | AV8: 0.009093467374 | AW8: 0.009093467374 | AX8: 0.009093467374
B9: Saldo Final Acumulado | C9: =C7*(1+C8) -> 1270061017 | D9: =D7*(1+D8) -> 1273758228 | E9: 1279556544 | F9: 1276658217 | G9: 1279962480 | H9: 1280081698 | I9: 1271990278 | J9: 1263148206 | K9: 1256441384 | L9: 1249769792 | M9: 1240198638 | N9: 1226676688 | O9: 1209226098 | P9: 1197232166 | Q9: 1193744906 | R9: 1181030903 | S9: 1164405623 | T9: 1148955793 | U9: 1115166857 | V9: 1084856110 | W9: 1054032277 | X9: =X7*(1+X8) -> 1032254528 | Y9: =Y7*(1+Y8) -> 1008719849 | Z9: =Z7*(1+Z8) -> 985578009.6 | AA9: 960337458.9 | AB9: 938462962.8 | AC9: 913592898.2 | AD9: 888817195 | AE9: 858485861.1 | AF9: 825785432.8 | AG9: 793247836.2 | AH9: 761017817.7 | AI9: 728313344.2 | AJ9: 694277284.4 | AK9: 659098636.3 | AL9: 625060749.3 | AM9: =AM7*(1+AM8) -> 588908601 | AN9: =AN7*(1+AN8) -> 553177744.2 | AO9: 515364147.4 | AP9: 476867791.2 | AQ9: =AQ7*(1+AQ8) -> 439913540.6 | AR9: 400223781.2 | AS9: 359653259.6 | AT9: 318433243.7 | AU9: 277670456 | AV9: 234693882.9 | AW9: 189748327.3 | AX9: 145583690.8 | AY9: 99704827.68 | AZ9: 53644946.07 | BA9: 7585064.464 | BB9: -38474817.15 | BC9: -84534698.76
B10: Volume Total Faturado (m3) | C10: 77906526 | D10: 73168035 | E10: 76933898 | F10: 78440507 | G10: 76057127 | H10: 73345382 | I10: 72139390 | J10: 75129110 | K10: 77261818 | L10: 75143160 | M10: 77638013 | N10: 80888727 | O10: 80568496 | P10: 76981518 | Q10: 82863280 | R10: 75615918 | S10: 77627837 | T10: 76638994 | U10: 76492450 | V10: 78777821 | W10: 78346031 | X10: 77557025 | Y10: 80377900 | Z10: 82216921 | AA10: 80455757 | AB10: 83429053 | AC10: 80555481 | AD10: 84557690 | AE10: 83431476 | AF10: 81010000 | AG10: 81389604 | AH10: 82029328 | AI10: 83625439 | AJ10: 85623400 | AK10: 85978812 | AL10: 87533826 | AM10: 90182552 | AN10: 86284968 | AO10: 88894976 | AP10: 85569277 | AQ10: 87987545 | AR10: 86070306 | AS10: 83908436 | AT10: 84754637 | AU10: 88406756 | AV10: 90311222 | AW10: 88094553 | AX10: 87438867 | AY10: =AVERAGE($AM$10:$AQ$10) -> 87783863.6 | AZ10: =AY10 -> 87783863.6 | BA10: =AZ10 -> 87783863.6 | BB10: 87783863.6 | BC10: 87783863.6
B11: Tarifa Vigente de Cobetura (R$/m3) | C11: =C22+C33+C44 -> 0.2380331049 | D11: =D22+D33+D44 -> 0.2380331049 | E11: 0.2380331049 | F11: 0.2380331049 | G11: 0.2380331049 | H11: 0.4300201039 | I11: 0.4300201039 | J11: 0.4300201039 | K11: 0.4300201039 | L11: 0.4300201039 | M11: 0.4300201039 | N11: 0.4300201039 | O11: 0.4300201039 | P11: 0.4300201039 | Q11: 0.4300201039 | R11: 0.4300201039 | S11: 0.4300201039 | T11: 0.4732843523 | U11: 0.4732843523 | V11: 0.4732843523 | W11: 0.4732843523 | X11: 0.4732843523 | Y11: 0.4732843523 | Z11: 0.4732843523 | AA11: 0.4732843523 | AB11: 0.4732843523 | AC11: 0.4732843523 | AD11: 0.4732843523 | AE11: 0.4732843523 | AF11: 0.5015202466 | AG11: 0.5015202466 | AH11: 0.5015202466 | AI11: 0.5015202466 | AJ11: 0.5015202466 | AK11: 0.5015202466 | AL11: 0.5015202466 | AM11: 0.5015202466 | AN11: 0.5015202466 | AO11: 0.5015202466 | AP11: 0.5015202466 | AQ11: 0.5015202466 | AR11: 0.5246964501 | AS11: 0.5246964501 | AT11: 0.5246964501 | AU11: 0.5246964501 | AV11: 0.5246964501 | AW11: 0.5246964501 | AX11: 0.5246964501 | AY11: 0.5246964501 | AZ11: 0.5246964501 | BA11: 0.5246964501 | BB11: 0.5246964501 | BC11: 0.5246964501
B12: Cobertura Tarifária (R$) | C12: =C11*C10 -> 18544332.28 | D12: 17416414.55 | E12: 18312814.62 | F12: 18671437.43 | G12: 18104114.09 | H12: 31539988.79 | I12: 31021387.98 | J12: 32307027.69 | K12: 33224135 | L12: 32313069.47 | M12: 33385906.42 | N12: 34783778.79 | O12: 34646073.02 | P12: 33103600.37 | Q12: 35632876.28 | R12: 32516364.92 | S12: 33381530.53 | T12: 36272036.64 | U12: 36202679.66 | V12: 37284309.99 | W12: 37079950.54 | X12: 36706526.35 | Y12: 38041602.34 | Z12: 38911982.21 | AA12: 38078450.84 | AB12: 39485665.31 | AC12: 38125648.65 | AD12: 40019831.55 | AE12: 39486812.08 | AF12: 40628155.18 | AG12: 40818534.27 | AH12: 41139368.81 | AI12: 41939850.79 | AJ12: 42941868.69 | AK12: 43120115 | AL12: 43899986 | AM12: =AM11*AM10 -> 45228375.72 | AN12: =AN11*AN10 -> 43273658.43 | AO12: 44582630.29 | AP12: 42914724.9 | AQ12: 44127535.27 | AR12: 45160784.02 | AS12: 44026458.51 | AT12: 44470457.17 | AU12: 46386711.04 | AV12: 47385977.59 | AW12: 46222899.24 | AX12: 45878863.12 | AY12: 46059881.61 | AZ12: 46059881.61 | BA12: 46059881.61 | BB12: 46059881.61 | BC12: 46059881.61
B13: Saldo | C13: =C9-C12 -> 1251516685 | D13: =D9-D12 -> 1256341814 | E13: 1261243729 | F13: 1257986780 | G13: 1261858365 | H13: 1248541710 | I13: 1240968890 | J13: 1230841178 | K13: 1223217249 | L13: 1217456723 | M13: 1206812732 | N13: 1191892909 | O13: =O9-O12 -> 1174580025 | P13: 1164128566 | Q13: 1158112030 | R13: 1148514538 | S13: 1131024092 | T13: 1112683757 | U13: 1078964177 | V13: 1047571800 | W13: 1016952326 | X13: 995548002.1 | Y13: =Y9-Y12 -> 970678247.1 | Z13: =Z9-Z12 -> 946666027.4 | AA13: 922259008 | AB13: 898977297.5 | AC13: 875467249.6 | AD13: 848797363.4 | AE13: 818999049 | AF13: 785157277.7 | AG13: 752429302 | AH13: 719878448.9 | AI13: 686373493.4 | AJ13: 651335415.7 | AK13: 615978521.3 | AL13: 581160763.3 | AM13: =AM9-AM12 -> 543680225.3 | AN13: =AN9-AN12 -> 509904085.8 | AO13: =AO9-AO12 -> 470781517.1 | AP13: 433953066.3 | AQ13: =AQ9-AQ12 -> 395786005.4 | AR13: 355062997.1 | AS13: 315626801.1 | AT13: 273962786.5 | AU13: 231283745 | AV13: 187307905.3 | AW13: 143525428 | AX13: 99704827.68 | AY13: 53644946.07 | AZ13: 7585064.464 | BA13: -38474817.15 | BB13: -84534698.76 | BC13: -130594580.4
B15: Compensações Ordinária | C15: 2021-01-01 | D15: 2021-02-01 | E15: 2021-03-01 | F15: 2021-04-01 | G15: 2021-05-01 | H15: 2021-06-01 | I15: 2021-07-01 | J15: 2021-08-01 | K15: 2021-09-01 | L15: 2021-10-01 | M15: 2021-11-01 | N15: 2021-12-01 | O15: 2022-01-01 | P15: 2022-02-01 | Q15: 2022-03-01 | R15: 2022-04-01 | S15: 2022-05-01 | T15: 2022-06-01 | U15: 2022-07-01 | V15: 2022-08-01 | W15: 2022-09-01 | X15: 2022-10-01 | Y15: 2022-11-01 | Z15: 2022-12-01 | AA15: 2023-01-01 | AB15: 2023-02-01 | AC15: 2023-03-01 | AD15: 2023-04-01 | AE15: 2023-05-01 | AF15: 2023-06-01 | AG15: 2023-07-01 | AH15: 2023-08-01 | AI15: 2023-09-01 | AJ15: 2023-10-01 | AK15: 2023-11-01 | AL15: 2023-12-01 | AM15: 2024-01-01 | AN15: 2024-02-01 | AO15: 2024-03-01 | AP15: 2024-04-01 | AQ15: 2024-05-01 | AR15: 2024-06-01 | AS15: 2024-07-01 | AT15: 2024-08-01 | AU15: 2024-09-01 | AV15: 2024-10-01 | AW15: 2024-11-01 | AX15: 2024-12-01 | AY15: 2025-01-01 | AZ15: 2025-02-01 | BA15: 2025-03-01 | BB15: 2025-04-01 | BC15: 2025-05-01
B16: Saldo Inicial | C16: -553103569.8 | D16: =C24 -> -559528532 | E16: =D24 -> -569472289.1 | F16: -579995018.9 | G16: -587083519.2 | H16: -597339247.8 | I16: -592047044 | J16: -589476225.9 | K16: -585754412.9 | L16: -583275491.5 | M16: -581676791.1 | N16: -577809039.7 | O16: -571969411 | P16: -564997809.1 | Q16: -561285161.3 | R16: -559839704.3 | S16: -556569196.6 | T16: -549538544.4 | U16: -542244089.5 | V16: -527477731 | W16: -513904367.7 | X16: -500710073.1 | Y16: -492045519.1 | Z16: -481767675.9 | AA16: -471990657.8 | AB16: -462002751.5 | AC16: -452694823.9 | AD16: -443229685.6 | AE16: -432327489 | AF16: -419836486.3 | AG16: -405416497.7 | AH16: -391611356.7 | AI16: -377957307.4 | AJ16: -363909169.6 | AK16: -349181543.1 | AL16: -334346739.5 | AM16: -319936230.7 | AN16: -304276038.6 | AO16: -290527101.9 | AP16: -273997082.6 | AQ16: -258633134.6 | AR16: -242745042.4 | AS16: -225571141.2 | AT16: -209091364.5 | AU16: -191358961.3 | AV16: -173512933 | AW16: -155195265.5 | AX16: -136853681.2 | AY16: -118604219.1 | AZ16: -98312423.98 | BA16: -78020628.87 | BB16: -57728833.76 | BC16: -37437038.65
B17: Índice de Correção (IPCA) | C17: =C$6 -> 0.0025 | D17: =D$6 -> 0.0086 | E17: 0.0093 | F17: 0.0031 | G17: 0.0083 | H17: 0.0053 | I17: 0.0096 | J17: 0.0087 | K17: 0.0116 | L17: 0.0125 | M17: 0.0095 | N17: 0.0073 | O17: 0.0054 | P17: 0.0101 | Q17: 0.0162 | R17: 0.0106 | S17: 0.0047 | T17: 0.0067 | U17: -0.0068 | V17: -0.0036 | W17: -0.0029 | X17: 0.0059 | Y17: 0.0041 | Z17: 0.0062 | AA17: 0.0053 | AB17: 0.0084 | AC17: 0.0071 | AD17: 0.0061 | AE17: 0.0023 | AF17: -0.0008 | AG17: 0.0012 | AH17: 0.0023 | AI17: 0.0026 | AJ17: 0.0024 | AK17: 0.0028 | AL17: 0.0056 | AM17: 0.0042 | AN17: 0.0083 | AO17: 0.0016 | AP17: 0.0038 | AQ17: 0.0046 | AR17: 0.0021 | AS17: 0.0038 | AT17: -0.0002 | AU17: 0.0044 | AV17: 0.0056 | AW17: 0.0039 | AX17: 0.0052 | AY17: 0 | AZ17: 0 | BA17: 0 | BB17: 0 | BC17: 0
B18: Saldo Corrigido Acumulado | C18: =C16*(1+C17) -> -554486328.7 | D18: =D16*(1+D17) -> -564340477.4 | E18: =E16*(1+E17) -> -574768381.4 | F18: -581793003.5 | G18: -591956312.4 | H18: -600505145.8 | I18: -597730695.6 | J18: -594604669.1 | K18: -592549164.1 | L18: -590566435.2 | M18: -587202720.6 | N18: -582027045.7 | O18: -575058045.8 | P18: -570704286.9 | Q18: -570377981 | R18: -565774005.2 | S18: -559185071.8 | T18: -553220452.7 | U18: -538556829.7 | V18: -525578811.2 | W18: -512414045 | X18: -503664262.6 | Y18: -494062905.7 | Z18: -484754635.5 | AA18: -474492208.2 | AB18: -465883574.6 | AC18: -455908957.1 | AD18: -445933386.7 | AE18: -433321842.2 | AF18: -419500617.1 | AG18: -405902997.5 | AH18: -392512062.8 | AI18: -378939996.4 | AJ18: -364782551.6 | AK18: -350159251.4 | AL18: -336219081.2 | AM18: -321279962.9 | AN18: -306801529.8 | AO18: -290991945.2 | AP18: -275038271.5 | AQ18: -259822847 | AR18: -243254807 | AS18: -226428311.6 | AT18: -209049546.3 | AU18: -192200940.7 | AV18: -174484605.5 | AW18: -155800527.1 | AX18: -137565320.3 | AY18: -118604219.1 | AZ18: -98312423.98 | BA18: -78020628.87 | BB18: -57728833.76 | BC18: -37437038.65
B19: Índice de Remuneração (WACC) | C19: 0.009093467374 | D19: =C19 -> 0.009093467374 | E19: =D19 -> 0.009093467374 | F19: 0.009093467374 | G19: 0.009093467374 | H19: 0.009093467374 | I19: 0.009093467374 | J19: 0.009093467374 | K19: 0.009093467374 | L19: 0.009093467374 | M19: 0.009093467374 | N19: 0.009093467374 | O19: 0.009093467374 | P19: 0.009093467374 | Q19: 0.009093467374 | R19: 0.009093467374 | S19: 0.009093467374 | T19: 0.009093467374 | U19: 0.009093467374 | V19: 0.009093467374 | W19: 0.009093467374 | X19: 0.009093467374 | Y19: 0.009093467374 | Z19: 0.009093467374 | AA19: 0.009093467374 | AB19: 0.009093467374 | AC19: 0.009093467374 | AD19: 0.009093467374 | AE19: 0.009093467374 | AF19: 0.009093467374 | AG19: 0.009093467374 | AH19: 0.009093467374 | AI19: 0.009093467374 | AJ19: 0.009093467374 | AK19: 0.009093467374 | AL19: 0.009093467374 | AM19: 0.009093467374 | AN19: 0.009093467374 | AO19: 0.009093467374 | AP19: 0.009093467374 | AQ19: 0.009093467374 | AR19: 0.009093467374 | AS19: 0.009093467374 | AT19: 0.009093467374 | AU19: 0.009093467374 | AV19: 0.009093467374 | AW19: 0.009093467374 | AX19: 0.009093467374
B20: Saldo Final Acumulado | C20: =C18*(1+C19) -> -559528532 | D20: =D18*(1+D19) -> -569472289.1 | E20: -579995018.9 | F20: -587083519.2 | G20: -597339247.8 | H20: -605965819.8 | I20: -603166140.2 | J20: -600011687.2 | K20: -597937490.5 | L20: -595936731.8 | M20: -592542429.4 | N20: -587319689.7 | O20: -580287317.4 | P20: -575893967.8 | Q20: -575564694.5 | R20: -570918852.6 | S20: -564270003 | T20: -558251144.8 | U20: -543454178.7 | V20: -530358144.9 | W20: -517073665.4 | X20: =X18*(1+X19) -> -508244317.1 | Y20: =Y18*(1+Y19) -> -498555650.6 | Z20: =Z18*(1+Z19) -> -489162736 | AA20: -478806987.7 | AB20: -470120071.7 | AC20: -460054750.4 | AD20: -449988467.4 | AE20: -437262240.2 | AF20: -423315332.3 | AG20: -409594063.2 | AH20: -396081358.4 | AI20: -382385874.9 | AJ20: -368099689.9 | AK20: -353343413.1 | AL20: -339276478.5 | AM20: -324201511.8 | AN20: -309591419.5 | AO20: -293638071 | AP20: -277539323.1 | AQ20: -262185537.6 | AR20: -245466836.7 | AS20: -228487330 | AT20: -210950531.5 | AU20: -193948713.7 | AV20: -176071275.5 | AW20: -157217294.1 | AX20: -138816266.1 | AY20: -118604219.1 | AZ20: -98312423.98 | BA20: -78020628.87 | BB20: -57728833.76 | BC20: -37437038.65
B21: Volume Total Faturado (m3) | C21: =C$10 -> 77906526 | D21: =D$10 -> 73168035 | E21: 76933898 | F21: 78440507 | G21: 76057127 | H21: 73345382 | I21: 72139390 | J21: 75129110 | K21: 77261818 | L21: 75143160 | M21: 77638013 | N21: 80888727 | O21: 80568496 | P21: 76981518 | Q21: 82863280 | R21: 75615918 | S21: 77627837 | T21: 76638994 | U21: 76492450 | V21: 78777821 | W21: 78346031 | X21: 77557025 | Y21: 80377900 | Z21: 82216921 | AA21: 80455757 | AB21: 83429053 | AC21: 80555481 | AD21: 84557690 | AE21: 83431476 | AF21: 81010000 | AG21: 81389604 | AH21: 82029328 | AI21: 83625439 | AJ21: 85623400 | AK21: 85978812 | AL21: 87533826 | AM21: 90182552 | AN21: 86284968 | AO21: 88894976 | AP21: 85569277 | AQ21: 87987545 | AR21: 86070306 | AS21: 83908436 | AT21: 84754637 | AU21: 88406756 | AV21: 90311222 | AW21: 88094553 | AX21: 87438867 | AY21: 87783863.6 | AZ21: 87783863.6 | BA21: 87783863.6 | BB21: 87783863.6 | BC21: 87783863.6
B22: Tarifa Vigente de Cobetura (R$/m3) | C22: 0 | D22: 0 | E22: 0 | F22: 0 | G22: 0 | H22: -0.1897703084 | I22: =H22 -> -0.1897703084 | J22: -0.1897703084 | K22: -0.1897703084 | L22: -0.1897703084 | M22: -0.1897703084 | N22: -0.1897703084 | O22: =N22 -> -0.1897703084 | P22: =O22 -> -0.1897703084 | Q22: =P22 -> -0.1897703084 | R22: -0.1897703084 | S22: -0.1897703084 | T22: -0.2088630664 | U22: =T22 -> -0.2088630664 | V22: -0.2088630664 | W22: -0.2088630664 | X22: -0.2088630664 | Y22: -0.2088630664 | Z22: -0.2088630664 | AA22: -0.2088630664 | AB22: -0.2088630664 | AC22: -0.2088630664 | AD22: -0.2088630664 | AE22: -0.2088630664 | AF22: -0.2209459888 | AG22: =AF22 -> -0.2209459888 | AH22: -0.2209459888 | AI22: -0.2209459888 | AJ22: -0.2209459888 | AK22: -0.2209459888 | AL22: -0.2209459888 | AM22: -0.2209459888 | AN22: -0.2209459888 | AO22: -0.2209459888 | AP22: -0.2209459888 | AQ22: -0.2209459888 | AR22: =AQ22*'Aux. - IPCA'!$C$437/'Aux. - IPCA'!$C$424 -> -0.2311563228 | AS22: =AR22 -> -0.2311563228 | AT22: -0.2311563228 | AU22: -0.2311563228 | AV22: -0.2311563228 | AW22: -0.2311563228 | AX22: -0.2311563228 | AY22: -0.2311563228 | AZ22: -0.2311563228 | BA22: -0.2311563228 | BB22: -0.2311563228 | BC22: -0.2311563228
B23: Cobertura Tarifária (R$) | C23: =C22*C21 -> 0 | D23: =D22*D21 -> 0 | E23: 0 | F23: 0 | G23: 0 | H23: -13918775.76 | I23: -13689914.29 | J23: -14257274.38 | K23: -14661999.03 | L23: -14259940.65 | M23: -14733389.67 | N23: -15350278.67 | O23: =O22*O21 -> -15289508.34 | P23: =P22*P21 -> -14608806.41 | Q23: -15724990.2 | R23: -14349656.08 | S23: -14731458.57 | T23: -16007055.29 | U23: -15976447.66 | V23: -16453777.26 | W23: -16363592.27 | X23: -16198798.06 | Y23: -16787974.66 | Z23: -17172078.23 | AA23: -16804236.12 | AB23: -17425247.84 | AC23: -16825064.78 | AD23: -17660978.42 | AE23: -17425753.91 | AF23: -17898834.56 | AG23: -17982706.54 | AH23: -18124050.99 | AI23: -18476705.31 | AJ23: -18918146.78 | AK23: -18996673.64 | AL23: -19340247.74 | AM23: -19925473.13 | AN23: -19064317.58 | AO23: -19640988.38 | AP23: -18906188.52 | AQ23: -19440495.14 | AR23: -19895695.44 | AS23: -19395965.52 | AT23: -19591570.23 | AU23: -20435780.63 | AV23: -20876009.98 | AW23: -20363612.93 | AX23: -20212046.96 | AY23: -20291795.11 | AZ23: -20291795.11 | BA23: -20291795.11 | BB23: -20291795.11 | BC23: -20291795.11
B24: Saldo | C24: =C20-C23 -> -559528532 | D24: =D20-D23 -> -569472289.1 | E24: -579995018.9 | F24: -587083519.2 | G24: -597339247.8 | H24: -592047044 | I24: -589476225.9 | J24: -585754412.9 | K24: -583275491.5 | L24: -581676791.1 | M24: -577809039.7 | N24: -571969411 | O24: =O20-O23 -> -564997809.1 | P24: =P20-P23 -> -561285161.3 | Q24: -559839704.3 | R24: -556569196.6 | S24: -549538544.4 | T24: -542244089.5 | U24: -527477731 | V24: -513904367.7 | W24: -500710073.1 | X24: -492045519.1 | Y24: =Y20-Y23 -> -481767675.9 | Z24: =Z20-Z23 -> -471990657.8 | AA24: =AA20-AA23 -> -462002751.5 | AB24: -452694823.9 | AC24: -443229685.6 | AD24: -432327489 | AE24: -419836486.3 | AF24: -405416497.7 | AG24: -391611356.7 | AH24: -377957307.4 | AI24: -363909169.6 | AJ24: -349181543.1 | AK24: -334346739.5 | AL24: -319936230.7 | AM24: -304276038.6 | AN24: -290527101.9 | AO24: -273997082.6 | AP24: -258633134.6 | AQ24: -242745042.4 | AR24: -225571141.2 | AS24: -209091364.5 | AT24: -191358961.3 | AU24: -173512933 | AV24: -155195265.5 | AW24: -136853681.2 | AX24: -118604219.1 | AY24: -98312423.98 | AZ24: -78020628.87 | BA24: -57728833.76 | BB24: -37437038.65 | BC24: -17145243.54
AX25: =AX24-AW24 -> 18249462.07
B26: Compensações Extraordinárias | C26: 2021-01-01 | D26: 2021-02-01 | E26: 2021-03-01 | F26: 2021-04-01 | G26: 2021-05-01 | H26: 2021-06-01 | I26: 2021-07-01 | J26: 2021-08-01 | K26: 2021-09-01 | L26: 2021-10-01 | M26: 2021-11-01 | N26: 2021-12-01 | O26: 2022-01-01 | P26: 2022-02-01 | Q26: 2022-03-01 | R26: 2022-04-01 | S26: 2022-05-01 | T26: 2022-06-01 | U26: 2022-07-01 | V26: 2022-08-01 | W26: 2022-09-01 | X26: 2022-10-01 | Y26: 2022-11-01 | Z26: 2022-12-01 | AA26: 2023-01-01 | AB26: 2023-02-01 | AC26: 2023-03-01 | AD26: 2023-04-01 | AE26: 2023-05-01 | AF26: 2023-06-01 | AG26: 2023-07-01 | AH26: 2023-08-01 | AI26: 2023-09-01 | AJ26: 2023-10-01 | AK26: 2023-11-01 | AL26: 2023-12-01 | AM26: 2024-01-01 | AN26: 2024-02-01 | AO26: 2024-03-01 | AP26: 2024-04-01 | AQ26: 2024-05-01 | AR26: 2024-06-01 | AS26: 2024-07-01 | AT26: 2024-08-01 | AU26: 2024-09-01 | AV26: 2024-10-01 | AW26: 2024-11-01 | AX26: 2024-12-01 | AY26: 2025-01-01 | AZ26: 2025-02-01 | BA26: 2025-03-01 | BB26: 2025-04-01 | BC26: 2025-05-01
B27: Saldo Inicial | C27: 1806437964 | D27: =C35 -> 1808877578 | E27: =D35 -> 1823607941 | F27: 1838991821 | G27: 1842795911 | H27: 1856883494 | I27: 1838241214 | J27: 1828053488 | K27: 1814161219 | L27: 1804007736 | M27: 1796594567 | N27: 1782035397 | O27: 1761233375 | P27: 1736910657 | Q27: 1722695113 | R27: 1715163956 | S27: 1702240787 | T27: 1677680353 | U27: 1651999866 | V27: 1603507394 | W27: 1558525629 | X27: 1514693664 | Y27: 1484580115 | Z27: 1449392647 | AA27: 1415556542 | AB27: 1381116845 | AC27: 1348471951 | AD27: 1315444737 | AE27: 1277823061 | AF27: 1235496056 | AG27: 1187275966 | AH27: 1140778533 | AI27: 1094606609 | AJ27: 1047087259 | AK27: 997358048.3 | AL27: 947202293.5 | AM27: 898002905.5 | AN27: 844898118.2 | AO27: 797393475.4 | AP27: 741784449.7 | AQ27: 689626585.8 | AR27: 635606094.9 | AS27: 577753466.1 | AT27: 521875392.8 | AU27: 462529596.6 | AV27: 402045908.5 | AW27: 339792717.6 | AX27: 277712231.1 | AY27: 215682226.1 | AZ27: 149409160.7 | BA27: 83136095.29 | BB27: 16863029.9 | BC27: -49410035.48
B28: Índice de Correção (IPCA) | C28: =C$6 -> 0.0025 | D28: =D$6 -> 0.0086 | E28: 0.0093 | F28: 0.0031 | G28: 0.0083 | H28: 0.0053 | I28: 0.0096 | J28: 0.0087 | K28: 0.0116 | L28: 0.0125 | M28: 0.0095 | N28: 0.0073 | O28: 0.0054 | P28: 0.0101 | Q28: 0.0162 | R28: 0.0106 | S28: 0.0047 | T28: 0.0067 | U28: -0.0068 | V28: -0.0036 | W28: -0.0029 | X28: 0.0059 | Y28: 0.0041 | Z28: 0.0062 | AA28: 0.0053 | AB28: 0.0084 | AC28: 0.0071 | AD28: 0.0061 | AE28: 0.0023 | AF28: -0.0008 | AG28: 0.0012 | AH28: 0.0023 | AI28: 0.0026 | AJ28: 0.0024 | AK28: 0.0028 | AL28: 0.0056 | AM28: 0.0042 | AN28: 0.0083 | AO28: 0.0016 | AP28: 0.0038 | AQ28: 0.0046 | AR28: 0.0021 | AS28: 0.0038 | AT28: -0.0002 | AU28: 0.0044 | AV28: 0.0056 | AW28: 0.0039 | AX28: 0.0052 | AY28: 0 | AZ28: 0 | BA28: 0 | BB28: 0 | BC28: 0
B29: Saldo Corrigido Acumulado | C29: =C27*(1+C28) -> 1810954059 | D29: =D27*(1+D28) -> 1824433925 | E29: =E27*(1+E28) -> 1840567495 | F29: 1844692696 | G29: 1858091117 | H29: 1866724976 | I29: 1855888330 | J29: 1843957553 | K29: 1835205489 | L29: 1826557833 | M29: 1813662215 | N29: 1795044256 | O29: 1770744035 | P29: 1754453454 | Q29: 1750602774 | R29: 1733344694 | S29: 1710241318 | T29: 1688920811 | U29: 1640766267 | V29: 1597734767 | W29: 1554005905 | X29: 1523630356 | Y29: 1490666893 | Z29: 1458378882 | AA29: 1423058992 | AB29: 1392718227 | AC29: 1358046102 | AD29: 1323468949 | AE29: 1280762054 | AF29: 1234507659 | AG29: 1188700697 | AH29: 1143402323 | AI29: 1097452586 | AJ29: 1049600268 | AK29: 1000150651 | AL29: 952506626.3 | AM29: 901774517.7 | AN29: 851910772.6 | AO29: 798669305 | AP29: 744603230.6 | AQ29: 692798868.1 | AR29: 636940867.7 | AS29: 579948929.3 | AT29: 521771017.7 | AU29: 464564726.9 | AV29: 404297365.6 | AW29: 341117909.2 | AX29: 279156334.7 | AY29: 215682226.1 | AZ29: 149409160.7 | BA29: 83136095.29 | BB29: 16863029.9 | BC29: -49410035.48
B30: Índice de Remuneração (WACC) | C30: 0.009093467374 | D30: =C30 -> 0.009093467374 | E30: =D30 -> 0.009093467374 | F30: 0.009093467374 | G30: 0.009093467374 | H30: 0.009093467374 | I30: 0.009093467374 | J30: 0.009093467374 | K30: 0.009093467374 | L30: 0.009093467374 | M30: 0.009093467374 | N30: 0.009093467374 | O30: 0.009093467374 | P30: 0.009093467374 | Q30: 0.009093467374 | R30: 0.009093467374 | S30: 0.009093467374 | T30: 0.009093467374 | U30: 0.009093467374 | V30: 0.009093467374 | W30: 0.009093467374 | X30: 0.009093467374 | Y30: 0.009093467374 | Z30: 0.009093467374 | AA30: 0.009093467374 | AB30: 0.009093467374 | AC30: 0.009093467374 | AD30: 0.009093467374 | AE30: 0.009093467374 | AF30: 0.009093467374 | AG30: 0.009093467374 | AH30: 0.009093467374 | AI30: 0.009093467374 | AJ30: 0.009093467374 | AK30: 0.009093467374 | AL30: 0.009093467374 | AM30: 0.009093467374 | AN30: 0.009093467374 | AO30: 0.009093467374 | AP30: 0.009093467374 | AQ30: 0.009093467374 | AR30: 0.009093467374 | AS30: 0.009093467374 | AT30: 0.009093467374 | AU30: 0.009093467374 | AV30: 0.009093467374 | AW30: 0.009093467374 | AX30: 0.009093467374
B31: Saldo Final Acumulado | C31: =C29*(1+C30) -> 1827421910 | D31: =D29*(1+D30) -> 1841024356 | E31: 1857304635 | F31: 1861467348 | G31: 1874987608 | H31: 1883699979 | I31: 1872764790 | J31: 1860725521 | K31: 1851893870 | L31: 1843167577 | M31: 1830154694 | N31: 1811367432 | O31: 1786846238 | P31: 1770407520 | Q31: 1766521823 | R31: 1749106808 | S31: 1725793342 | T31: 1704278958 | U31: 1655686521 | V31: 1612263716 | W31: 1568137207 | X31: =X29*(1+X30) -> 1537485439 | Y31: =Y29*(1+Y30) -> 1504222224 | Z31: =Z29*(1+Z30) -> 1471640602 | AA31: 1435999532 | AB31: 1405382864 | AC31: 1370395450 | AD31: 1335503871 | AE31: 1292408622 | AF31: 1245733615 | AG31: 1199510108 | AH31: 1153799815 | AI31: 1107432235 | AJ31: 1059144774 | AK31: 1009245488 | AL31: 961168214.2 | AM31: 909974774.9 | AN31: 859657595.4 | AO31: 805931978.2 | AP31: 751374255.8 | AQ31: 699098812 | AR31: 642732868.7 | AS31: 585222675.9 | AT31: 526515725.4 | AU31: 468789231.1 | AV31: 407973830.5 | AW31: 344219853.7 | AX31: 281694833.8 | AY31: 215682226.1 | AZ31: 149409160.7 | BA31: 83136095.29 | BB31: 16863029.9 | BC31: -49410035.48
B32: Volume Total Faturado (m3) | C32: =C$10 -> 77906526 | D32: =D$10 -> 73168035 | E32: 76933898 | F32: 78440507 | G32: 76057127 | H32: 73345382 | I32: 72139390 | J32: 75129110 | K32: 77261818 | L32: 75143160 | M32: 77638013 | N32: 80888727 | O32: 80568496 | P32: 76981518 | Q32: 82863280 | R32: 75615918 | S32: 77627837 | T32: 76638994 | U32: 76492450 | V32: 78777821 | W32: 78346031 | X32: 77557025 | Y32: 80377900 | Z32: 82216921 | AA32: 80455757 | AB32: 83429053 | AC32: 80555481 | AD32: 84557690 | AE32: 83431476 | AF32: 81010000 | AG32: 81389604 | AH32: 82029328 | AI32: 83625439 | AJ32: 85623400 | AK32: 85978812 | AL32: 87533826 | AM32: 90182552 | AN32: 86284968 | AO32: 88894976 | AP32: 85569277 | AQ32: 87987545 | AR32: 86070306 | AS32: 83908436 | AT32: 84754637 | AU32: 88406756 | AV32: 90311222 | AW32: 88094553 | AX32: 87438867 | AY32: 87783863.6 | AZ32: 87783863.6 | BA32: 87783863.6 | BB32: 87783863.6 | BC32: 87783863.6
B33: Tarifa Vigente de Cobetura (R$/m3) | C33: 0.2380331049 | D33: =C33 -> 0.2380331049 | E33: =D33 -> 0.2380331049 | F33: 0.2380331049 | G33: 0.2380331049 | H33: 0.6197904123 | I33: =H33 -> 0.6197904123 | J33: 0.6197904123 | K33: 0.6197904123 | L33: 0.6197904123 | M33: 0.6197904123 | N33: 0.6197904123 | O33: =N33 -> 0.6197904123 | P33: =O33 -> 0.6197904123 | Q33: =P33 -> 0.6197904123 | R33: 0.6197904123 | S33: 0.6197904123 | T33: 0.6821474187 | U33: =T33 -> 0.6821474187 | V33: 0.6821474187 | W33: 0.6821474187 | X33: 0.6821474187 | Y33: 0.6821474187 | Z33: 0.6821474187 | AA33: 0.6821474187 | AB33: 0.6821474187 | AC33: 0.6821474187 | AD33: 0.6821474187 | AE33: 0.6821474187 | AF33: 0.7216102807 | AG33: =AF33 -> 0.7216102807 | AH33: 0.7216102807 | AI33: 0.7216102807 | AJ33: 0.7216102807 | AK33: 0.7216102807 | AL33: 0.7216102807 | AM33: 0.7216102807 | AN33: 0.7216102807 | AO33: 0.7216102807 | AP33: 0.7216102807 | AQ33: 0.7216102807 | AR33: =AQ33*'Aux. - IPCA'!$C$437/'Aux. - IPCA'!$C$424 -> 0.7549572628 | AS33: =AR33 -> 0.7549572628 | AT33: 0.7549572628 | AU33: 0.7549572628 | AV33: 0.7549572628 | AW33: 0.7549572628 | AX33: 0.7549572628 | AY33: 0.7549572628 | AZ33: 0.7549572628 | BA33: 0.7549572628 | BB33: 0.7549572628 | BC33: 0.7549572628
B34: Cobertura Tarifária (R$) | C34: =C33*C32 -> 18544332.28 | D34: =D33*D32 -> 17416414.55 | E34: 18312814.62 | F34: 18671437.43 | G34: 18104114.09 | H34: 45458764.55 | I34: 44711302.27 | J34: 46564302.07 | K34: 47886134.04 | L34: 46573010.12 | M34: 48119296.09 | N34: 50134057.46 | O34: =O33*O32 -> 49935581.36 | P34: =P33*P32 -> 47712406.78 | Q34: 51357866.48 | R34: 46866021 | S34: 48112989.1 | T34: 52279091.93 | U34: 52179127.32 | V34: 53738087.25 | W34: 53443542.81 | X34: 52905324.41 | Y34: 54829577.01 | Z34: 56084060.44 | AA34: 54882686.96 | AB34: 56910913.15 | AC34: 54950713.43 | AD34: 57680809.97 | AE34: 56912565.99 | AF34: 58457648.84 | AG34: 58731574.99 | AH34: 59193206.4 | AI34: 60344976.51 | AJ34: 61786725.71 | AK34: 62043194.66 | AL34: 63165308.75 | AM34: 65076656.66 | AN34: 62264119.98 | AO34: 64147528.58 | AP34: 61747669.99 | AQ34: 63492717.04 | AR34: 64979402.63 | AS34: 63347283.17 | AT34: 63986128.76 | AU34: 66743322.53 | AV34: 68181112.96 | AW34: 66507622.6 | AX34: 66012607.7 | AY34: 66273065.38 | AZ34: 66273065.38 | BA34: 66273065.38 | BB34: 66273065.38 | BC34: 66273065.38
B35: Saldo | C35: =C31-C34 -> 1808877578 | D35: =D31-D34 -> 1823607941 | E35: 1838991821 | F35: 1842795911 | G35: 1856883494 | H35: 1838241214 | I35: 1828053488 | J35: 1814161219 | K35: 1804007736 | L35: 1796594567 | M35: 1782035397 | N35: 1761233375 | O35: =O31-O34 -> 1736910657 | P35: =P31-P34 -> 1722695113 | Q35: 1715163956 | R35: 1702240787 | S35: 1677680353 | T35: 1651999866 | U35: 1603507394 | V35: 1558525629 | W35: 1514693664 | X35: 1484580115 | Y35: =Y31-Y34 -> 1449392647 | Z35: =Z31-Z34 -> 1415556542 | AA35: =AA31-AA34 -> 1381116845 | AB35: 1348471951 | AC35: 1315444737 | AD35: 1277823061 | AE35: 1235496056 | AF35: 1187275966 | AG35: 1140778533 | AH35: 1094606609 | AI35: 1047087259 | AJ35: 997358048.3 | AK35: 947202293.5 | AL35: 898002905.5 | AM35: 844898118.2 | AN35: 797393475.4 | AO35: 741784449.7 | AP35: 689626585.8 | AQ35: 635606094.9 | AR35: 577753466.1 | AS35: 521875392.8 | AT35: 462529596.6 | AU35: 402045908.5 | AV35: 339792717.6 | AW35: 277712231.1 | AX35: 215682226.1 | AY35: 149409160.7 | AZ35: 83136095.29 | BA35: 16863029.9 | BB35: -49410035.48 | BC35: -115683100.9
AX36: =AX35-AW35 -> -62030005.07
B37: Compensações Ajuste Ciclo | C37: 2021-01-01 | D37: 2021-02-01 | E37: 2021-03-01 | F37: 2021-04-01 | G37: 2021-05-01 | H37: 2021-06-01 | I37: 2021-07-01 | J37: 2021-08-01 | K37: 2021-09-01 | L37: 2021-10-01 | M37: 2021-11-01 | N37: 2021-12-01 | O37: 2022-01-01 | P37: 2022-02-01 | Q37: 2022-03-01 | R37: 2022-04-01 | S37: 2022-05-01 | T37: 2022-06-01 | U37: 2022-07-01 | V37: 2022-08-01 | W37: 2022-09-01 | X37: 2022-10-01 | Y37: 2022-11-01 | Z37: 2022-12-01 | AA37: 2023-01-01 | AB37: 2023-02-01 | AC37: 2023-03-01 | AD37: 2023-04-01 | AE37: 2023-05-01 | AF37: 2023-06-01 | AG37: 2023-07-01 | AH37: 2023-08-01 | AI37: 2023-09-01 | AJ37: 2023-10-01 | AK37: 2023-11-01 | AL37: 2023-12-01 | AM37: 2024-01-01 | AN37: 2024-02-01 | AO37: 2024-03-01 | AP37: 2024-04-01 | AQ37: 2024-05-01 | AR37: 2024-06-01 | AS37: 2024-07-01 | AT37: 2024-08-01 | AU37: 2024-09-01 | AV37: 2024-10-01 | AW37: 2024-11-01 | AX37: 2024-12-01 | AY37: 2025-01-01 | AZ37: 2025-02-01 | BA37: 2025-03-01 | BB37: 2025-04-01 | BC37: 2025-05-01
B38: Saldo Inicial | C38: 2142748.354 | D38: =C46 -> 2167638.95 | E38: =D46 -> 2206161.517 | F38: 2246927.05 | G38: 2274388.222 | H38: 2314119.381 | I38: 2347539.112 | J38: 2391627.692 | K38: 2434372.25 | L38: 2485004.641 | M38: 2538946.974 | N38: 2586374.136 | O38: 2628945.466 | P38: 2667177.095 | Q38: 2718614.435 | R38: 2787778.111 | S38: 2842947.845 | T38: 2882283.459 | U38: 2927980.315 | V38: 2934514.489 | W38: 2950539.083 | X38: 2968735.342 | Y38: 3013406.255 | Z38: 3053275.882 | AA38: 3100143.199 | AB38: 3144914.422 | AC38: 3200170.104 | AD38: 3252198.569 | AE38: 3301791.142 | AF38: 3339479.048 | AG38: 3297809.717 | AH38: 3262125.778 | AI38: 3229147.532 | AJ38: 3195404.214 | AK38: 3158910.466 | AL38: 3122967.319 | AM38: 3094088.571 | AN38: 3058145.72 | AO38: 3037712.261 | AP38: 2994150.054 | AQ38: 2959615.06 | AR38: 2924952.892 | AS38: 2880672.285 | AT38: 2842772.829 | AU38: 2792151.134 | AV38: 2750769.509 | AW38: 2710453.319 | AX38: 2666878.069 | AY38: 2626820.721 | AZ38: 2548209.385 | BA38: 2469598.049 | BB38: 2390986.713 | BC38: 2312375.377
B39: Índice de Correção (IPCA) | C39: =C$6 -> 0.0025 | D39: =D$6 -> 0.0086 | E39: 0.0093 | F39: 0.0031 | G39: 0.0083 | H39: 0.0053 | I39: 0.0096 | J39: 0.0087 | K39: 0.0116 | L39: 0.0125 | M39: 0.0095 | N39: 0.0073 | O39: 0.0054 | P39: 0.0101 | Q39: 0.0162 | R39: 0.0106 | S39: 0.0047 | T39: 0.0067 | U39: -0.0068 | V39: -0.0036 | W39: -0.0029 | X39: 0.0059 | Y39: 0.0041 | Z39: 0.0062 | AA39: 0.0053 | AB39: 0.0084 | AC39: 0.0071 | AD39: 0.0061 | AE39: 0.0023 | AF39: -0.0008 | AG39: 0.0012 | AH39: 0.0023 | AI39: 0.0026 | AJ39: 0.0024 | AK39: 0.0028 | AL39: 0.0056 | AM39: 0.0042 | AN39: 0.0083 | AO39: 0.0016 | AP39: 0.0038 | AQ39: 0.0046 | AR39: 0.0021 | AS39: 0.0038 | AT39: -0.0002 | AU39: 0.0044 | AV39: 0.0056 | AW39: 0.0039 | AX39: 0.0052 | AY39: 0 | AZ39: 0 | BA39: 0 | BB39: 0 | BC39: 0
B40: Saldo Corrigido Acumulado | C40: =C38*(1+C39) -> 2148105.225 | D40: =D38*(1+D39) -> 2186280.645 | E40: =E38*(1+E39) -> 2226678.819 | F40: 2253892.524 | G40: 2293265.644 | H40: 2326384.213 | I40: 2370075.488 | J40: 2412434.853 | K40: 2462610.969 | L40: 2516067.199 | M40: 2563066.97 | N40: 2605254.667 | O40: 2643141.771 | P40: 2694115.583 | Q40: 2762655.989 | R40: 2817328.559 | S40: 2856309.7 | T40: 2901594.758 | U40: 2908070.049 | V40: 2923950.237 | W40: 2941982.52 | X40: 2986250.88 | Y40: 3025761.221 | Z40: 3072206.192 | AA40: 3116573.958 | AB40: 3171331.703 | AC40: 3222891.312 | AD40: 3272036.98 | AE40: 3309385.261 | AF40: 3336807.465 | AG40: 3301767.088 | AH40: 3269628.667 | AI40: 3237543.315 | AJ40: 3203073.184 | AK40: 3167755.415 | AL40: 3140455.936 | AM40: 3107083.743 | AN40: 3083528.329 | AO40: 3042572.601 | AP40: 3005527.824 | AQ40: 2973229.29 | AR40: 2931095.293 | AS40: 2891618.839 | AT40: 2842204.275 | AU40: 2804436.599 | AV40: 2766173.818 | AW40: 2721024.086 | AX40: 2680745.835 | AY40: 2626820.721 | AZ40: 2548209.385 | BA40: 2469598.049 | BB40: 2390986.713 | BC40: 2312375.377
B41: Índice de Remuneração (WACC) | C41: 0.009093467374 | D41: =C41 -> 0.009093467374 | E41: =D41 -> 0.009093467374 | F41: 0.009093467374 | G41: 0.009093467374 | H41: 0.009093467374 | I41: 0.009093467374 | J41: 0.009093467374 | K41: 0.009093467374 | L41: 0.009093467374 | M41: 0.009093467374 | N41: 0.009093467374 | O41: 0.009093467374 | P41: 0.009093467374 | Q41: 0.009093467374 | R41: 0.009093467374 | S41: 0.009093467374 | T41: 0.009093467374 | U41: 0.009093467374 | V41: 0.009093467374 | W41: 0.009093467374 | X41: 0.009093467374 | Y41: 0.009093467374 | Z41: 0.009093467374 | AA41: 0.009093467374 | AB41: 0.009093467374 | AC41: 0.009093467374 | AD41: 0.009093467374 | AE41: 0.009093467374 | AF41: 0.009093467374 | AG41: 0.009093467374 | AH41: 0.009093467374 | AI41: 0.009093467374 | AJ41: 0.009093467374 | AK41: 0.009093467374 | AL41: 0.009093467374 | AM41: 0.009093467374 | AN41: 0.009093467374 | AO41: 0.009093467374 | AP41: 0.009093467374 | AQ41: 0.009093467374 | AR41: 0.009093467374 | AS41: 0.009093467374 | AT41: 0.009093467374 | AU41: 0.009093467374 | AV41: 0.009093467374 | AW41: 0.009093467374 | AX41: 0.009093467374
B42: Saldo Final Acumulado | C42: =C40*(1+C41) -> 2167638.95 | D42: =D40*(1+D41) -> 2206161.517 | E42: 2246927.05 | F42: 2274388.222 | G42: 2314119.381 | H42: 2347539.112 | I42: 2391627.692 | J42: 2434372.25 | K42: 2485004.641 | L42: 2538946.974 | M42: 2586374.136 | N42: 2628945.466 | O42: 2667177.095 | P42: 2718614.435 | Q42: 2787778.111 | R42: 2842947.845 | S42: 2882283.459 | T42: 2927980.315 | U42: 2934514.489 | V42: 2950539.083 | W42: 2968735.342 | X42: =X40*(1+X41) -> 3013406.255 | Y42: =Y40*(1+Y41) -> 3053275.882 | Z42: =Z40*(1+Z41) -> 3100143.199 | AA42: 3144914.422 | AB42: 3200170.104 | AC42: 3252198.569 | AD42: 3301791.142 | AE42: 3339479.048 | AF42: 3367150.615 | AG42: 3331791.6 | AH42: 3299360.928 | AI42: 3266983.81 | AJ42: 3232200.226 | AK42: 3196561.295 | AL42: 3169013.569 | AM42: 3135337.908 | AN42: 3111568.293 | AO42: 3070240.135 | AP42: 3032858.494 | AQ42: 3000266.253 | AR42: 2957749.113 | AS42: 2917913.681 | AT42: 2868049.767 | AU42: 2829938.651 | AV42: 2791327.93 | AW42: 2745767.63 | AX42: 2705123.109 | AY42: 2626820.721 | AZ42: 2548209.385 | BA42: 2469598.049 | BB42: 2390986.713 | BC42: 2312375.377
B43: Volume Total Faturado (m3) | C43: =C$10 -> 77906526 | D43: =D$10 -> 73168035 | E43: 76933898 | F43: 78440507 | G43: 76057127 | H43: 73345382 | I43: 72139390 | J43: 75129110 | K43: 77261818 | L43: 75143160 | M43: 77638013 | N43: 80888727 | O43: 80568496 | P43: 76981518 | Q43: 82863280 | R43: 75615918 | S43: 77627837 | T43: 76638994 | U43: 76492450 | V43: 78777821 | W43: 78346031 | X43: 77557025 | Y43: 80377900 | Z43: 82216921 | AA43: 80455757 | AB43: 83429053 | AC43: 80555481 | AD43: 84557690 | AE43: 83431476 | AF43: 81010000 | AG43: 81389604 | AH43: 82029328 | AI43: 83625439 | AJ43: 85623400 | AK43: 85978812 | AL43: 87533826 | AM43: 90182552 | AN43: 86284968 | AO43: 88894976 | AP43: 85569277 | AQ43: 87987545 | AR43: 86070306 | AS43: 83908436 | AT43: 84754637 | AU43: 88406756 | AV43: 90311222 | AW43: 88094553 | AX43: 87438867 | AY43: 87783863.6 | AZ43: 87783863.6 | BA43: 87783863.6 | BB43: 87783863.6 | BC43: 87783863.6
B44: Tarifa Vigente de Cobetura (R$/m3) | C44: 0 | D44: 0 | E44: 0 | F44: 0 | G44: 0 | H44: 0 | I44: 0 | J44: 0 | K44: 0 | L44: 0 | M44: 0 | N44: 0 | O44: 0 | P44: 0 | Q44: 0 | R44: 0 | S44: 0 | T44: 0 | U44: 0 | V44: 0 | W44: 0 | X44: 0 | Y44: 0 | Z44: 0 | AA44: 0 | AB44: 0 | AC44: 0 | AD44: 0 | AE44: 0 | AF44: 0.0008559547974 | AG44: =AF44 -> 0.0008559547974 | AH44: 0.0008559547974 | AI44: 0.0008559547974 | AJ44: 0.0008559547974 | AK44: 0.0008559547974 | AL44: 0.0008559547974 | AM44: 0.0008559547974 | AN44: 0.0008559547974 | AO44: 0.0008559547974 | AP44: 0.0008559547974 | AQ44: 0.0008559547974 | AR44: =AQ44*'Aux. - IPCA'!$C$437/'Aux. - IPCA'!$C$424 -> 0.000895510095 | AS44: =AR44 -> 0.000895510095 | AT44: 0.000895510095 | AU44: 0.000895510095 | AV44: 0.000895510095 | AW44: 0.000895510095 | AX44: 0.000895510095 | AY44: 0.000895510095 | AZ44: 0.000895510095 | BA44: 0.000895510095 | BB44: 0.000895510095 | BC44: 0.000895510095
B45: Cobertura Tarifária (R$) | C45: =C44*C43 -> 0 | D45: =D44*D43 -> 0 | E45: 0 | F45: 0 | G45: 0 | H45: 0 | I45: 0 | J45: 0 | K45: 0 | L45: 0 | M45: 0 | N45: 0 | O45: =O44*O43 -> 0 | P45: =P44*P43 -> 0 | Q45: 0 | R45: 0 | S45: 0 | T45: 0 | U45: 0 | V45: 0 | W45: 0 | X45: 0 | Y45: 0 | Z45: 0 | AA45: 0 | AB45: 0 | AC45: 0 | AD45: 0 | AE45: 0 | AF45: 69340.89814 | AG45: 69665.822 | AH45: 70213.39683 | AI45: 71579.5957 | AJ45: 73289.76 | AK45: 73593.97661 | AL45: 74924.9983 | AM45: 77192.18803 | AN45: 73856.0323 | AO45: 76090.08117 | AP45: 73243.43316 | AQ45: 75313.36125 | AR45: 77076.8279 | AS45: 75140.85149 | AT45: 75898.63303 | AU45: 79169.14246 | AV45: 80874.61099 | AW45: 78889.56152 | AX45: 78302.38809 | AY45: 78611.33603 | AZ45: 78611.33603 | BA45: 78611.33603 | BB45: 78611.33603 | BC45: 78611.33603
B46: Saldo | C46: =C42-C45 -> 2167638.95 | D46: =D42-D45 -> 2206161.517 | E46: 2246927.05 | F46: 2274388.222 | G46: 2314119.381 | H46: 2347539.112 | I46: 2391627.692 | J46: 2434372.25 | K46: 2485004.641 | L46: 2538946.974 | M46: 2586374.136 | N46: 2628945.466 | O46: =O42-O45 -> 2667177.095 | P46: =P42-P45 -> 2718614.435 | Q46: 2787778.111 | R46: 2842947.845 | S46: 2882283.459 | T46: 2927980.315 | U46: 2934514.489 | V46: 2950539.083 | W46: 2968735.342 | X46: 3013406.255 | Y46: =Y42-Y45 -> 3053275.882 | Z46: =Z42-Z45 -> 3100143.199 | AA46: =AA42-AA45 -> 3144914.422 | AB46: 3200170.104 | AC46: 3252198.569 | AD46: 3301791.142 | AE46: 3339479.048 | AF46: 3297809.717 | AG46: 3262125.778 | AH46: 3229147.532 | AI46: 3195404.214 | AJ46: 3158910.466 | AK46: 3122967.319 | AL46: 3094088.571 | AM46: 3058145.72 | AN46: 3037712.261 | AO46: 2994150.054 | AP46: 2959615.06 | AQ46: 2924952.892 | AR46: 2880672.285 | AS46: 2842772.829 | AT46: 2792151.134 | AU46: 2750769.509 | AV46: 2710453.319 | AW46: 2666878.069 | AX46: 2626820.721 | AY46: 2548209.385 | AZ46: 2469598.049 | BA46: 2390986.713 | BB46: 2312375.377 | BC46: 2233764.041
B48: CUSTOS NÃO GERENCIÁVEIS
B50: Encargos (Sem FMSBA) | C50: 2021-01-01 | D50: 2021-02-01 | E50: 2021-03-01 | F50: 2021-04-01 | G50: 2021-05-01 | H50: 2021-06-01 | I50: 2021-07-01 | J50: 2021-08-01 | K50: 2021-09-01 | L50: 2021-10-01 | M50: 2021-11-01 | N50: 2021-12-01 | O50: 2022-01-01 | P50: 2022-02-01 | Q50: 2022-03-01 | R50: 2022-04-01 | S50: 2022-05-01 | T50: 2022-06-01 | U50: 2022-07-01 | V50: 2022-08-01 | W50: 2022-09-01 | X50: 2022-10-01 | Y50: 2022-11-01 | Z50: 2022-12-01 | AA50: 2023-01-01 | AB50: 2023-02-01 | AC50: 2023-03-01 | AD50: 2023-04-01 | AE50: 2023-05-01 | AF50: 2023-06-01 | AG50: 2023-07-01 | AH50: 2023-08-01 | AI50: 2023-09-01 | AJ50: 2023-10-01 | AK50: 2023-11-01 | AL50: 2023-12-01 | AM50: 2024-01-01 | AN50: 2024-02-01 | AO50: 2024-03-01 | AP50: 2024-04-01 | AQ50: 2024-05-01 | AR50: 2024-06-01 | AS50: 2024-07-01 | AT50: 2024-08-01 | AU50: 2024-09-01 | AV50: 2024-10-01 | AW50: 2024-11-01 | AX50: 2024-12-01
B51: Saldo Inicial | C51: 0 | D51: =C61 -> 2561386.664 | E51: =D61 -> 3200551.551 | F51: 3939526.897 | G51: 4019576.999 | H51: 4107573.759 | I51: 6902652.106 | J51: 7428535.921 | K51: 7739676.469 | L51: 7810419.301 | M51: 8022237.228 | N51: 8153750.939 | O51: 8165213.739 | P51: 11412869.32 | Q51: 12600574.67 | R51: 13461377.56 | S51: 14221492.54 | T51: 14362524.97 | U51: 14872823.83 | V51: 14805650.03 | W51: 14881332.48 | X51: 14786000.64 | Y51: 14869291.87 | Z51: 14771311.62 | AA51: 14735479.14 | AB51: 18104856.01 | AC51: 19111358.74 | AD51: 20786429.36 | AE51: 24655044.93 | AF51: 25117792.83 | AG51: 25966857.22 | AH51: 26180012.21 | AI51: 26576535.85 | AJ51: 26755199.09 | AK51: 27216548.95 | AL51: 27429892.51 | AM51: 28359294.57 | AN51: 30064095.4 | AO51: 32326551.55 | AP51: 36121521.78 | AQ51: 36925563.05 | AR51: 44411306.55 | AS51: 49297421.09 | AT51: 49996468.28 | AU51: 50880047.73 | AV51: 53975178.44 | AW51: 54771009.57 | AX51: 55484617.32
B52: Índice de Correção (IPCA) | C52: =C$6 -> 0.0025 | D52: =D$6 -> 0.0086 | E52: =E$6 -> 0.0093 | F52: 0.0031 | G52: 0.0083 | H52: 0.0053 | I52: 0.0096 | J52: 0.0087 | K52: 0.0116 | L52: 0.0125 | M52: 0.0095 | N52: 0.0073 | O52: 0.0054 | P52: 0.0101 | Q52: 0.0162 | R52: 0.0106 | S52: 0.0047 | T52: 0.0067 | U52: -0.0068 | V52: -0.0036 | W52: -0.0029 | X52: 0.0059 | Y52: 0.0041 | Z52: 0.0062 | AA52: 0.0053 | AB52: 0.0084 | AC52: 0.0071 | AD52: 0.0061 | AE52: 0.0023 | AF52: -0.0008 | AG52: 0.0012 | AH52: 0.0023 | AI52: 0.0026 | AJ52: 0.0024 | AK52: 0.0028 | AL52: 0.0056 | AM52: 0.0042 | AN52: 0.0083 | AO52: 0.0016 | AP52: 0.0038 | AQ52: 0.0046 | AR52: 0.0021 | AS52: 0.0038 | AT52: -0.0002 | AU52: 0.0044 | AV52: 0.0056 | AW52: 0.0039 | AX52: 0.0052
B53: Saldo Inicial Corrigido | C53: =C51*(1+C52) -> 0 | D53: =D51*(1+D52) -> 2583414.589 | E53: =E51*(1+E52) -> 3230316.68 | F53: 3951739.431 | G53: 4052939.488 | H53: 4129343.9 | I53: 6968917.567 | J53: 7493164.184 | K53: 7829456.716 | L53: 7908049.542 | M53: 8098448.481 | N53: 8213273.321 | O53: 8209305.893 | P53: 11528139.3 | Q53: 12804703.98 | R53: 13604068.17 | S53: 14288333.56 | T53: 14458753.88 | U53: 14771688.63 | V53: 14752349.69 | W53: 14838176.61 | X53: 14873238.04 | Y53: 14930255.96 | Z53: 14862893.76 | AA53: 14813577.18 | AB53: 18256936.8 | AC53: 19247049.38 | AD53: 20913226.58 | AE53: 24711751.54 | AF53: 25097698.59 | AG53: 25998017.45 | AH53: 26240226.24 | AI53: 26645634.85 | AJ53: 26819411.56 | AK53: 27292755.29 | AL53: 27583499.91 | AM53: 28478403.61 | AN53: 30313627.39 | AO53: 32378274.03 | AP53: 36258783.56 | AQ53: 37095420.64 | AR53: 44504570.3 | AS53: 49484751.29 | AT53: 49986468.98 | AU53: 51103919.94 | AV53: 54277439.44 | AW53: 54984616.5 | AX53: 55773137.33
B54: Índice de Remuneração (WACC) | C54: 0.009093467374 | D54: =C54 -> 0.009093467374 | E54: =D54 -> 0.009093467374 | F54: 0.009093467374 | G54: 0.009093467374 | H54: 0.009093467374 | I54: 0.009093467374 | J54: 0.009093467374 | K54: 0.009093467374 | L54: 0.009093467374 | M54: 0.009093467374 | N54: 0.009093467374 | O54: 0.009093467374 | P54: 0.009093467374 | Q54: 0.009093467374 | R54: 0.009093467374 | S54: 0.009093467374 | T54: 0.009093467374 | U54: 0.009093467374 | V54: 0.009093467374 | W54: 0.009093467374 | X54: 0.009093467374 | Y54: 0.009093467374 | Z54: 0.009093467374 | AA54: 0.009093467374 | AB54: 0.009093467374 | AC54: 0.009093467374 | AD54: 0.009093467374 | AE54: 0.009093467374 | AF54: 0.009093467374 | AG54: 0.009093467374 | AH54: 0.009093467374 | AI54: 0.009093467374 | AJ54: 0.009093467374 | AK54: 0.009093467374 | AL54: 0.009093467374 | AM54: 0.009093467374 | AN54: 0.009093467374 | AO54: 0.009093467374 | AP54: 0.009093467374 | AQ54: 0.009093467374 | AR54: 0.009093467374 | AS54: 0.009093467374 | AT54: 0.009093467374 | AU54: 0.009093467374 | AV54: 0.009093467374 | AW54: 0.009093467374 | AX54: 0.009093467374
B55: Saldo Inicial Atualizado | C55: =C53*(1+C54) -> 0 | D55: =D53*(1+D54) -> 2606906.785 | E55: =E53*(1+E54) -> 3259691.46 | F55: 3987674.444 | G55: 4089794.761 | H55: 4166893.954 | I55: 7032289.191 | J55: 7561303.028 | K55: 7900653.625 | L55: 7979961.132 | M55: 8172091.458 | N55: 8287960.454 | O55: 8283956.949 | P55: 11632970.06 | Q55: 12921143.14 | R55: 13727776.32 | S55: 14418264.05 | T55: 14590234.09 | U55: 14906014.5 | V55: 14886499.7 | W55: 14973107.09 | X55: 15008487.35 | Y55: 15066023.76 | Z55: 14998049 | AA55: 14948283.96 | AB55: 18422955.66 | AC55: 19422071.8 | AD55: 21103400.33 | AE55: 24936467.04 | AF55: 25325923.7 | AG55: 26234429.57 | AH55: 26478840.88 | AI55: 26887936.06 | AJ55: 27063293.01 | AK55: 27540941.07 | AL55: 27834329.57 | AM55: 28737371.04 | AN55: 30589283.37 | AO55: 32672704.81 | AP55: 36588501.63 | AQ55: 37432746.63 | AR55: 44909271.15 | AS55: 49934739.26 | AT55: 50441019.31 | AU55: 51568631.77 | AV55: 54771009.57 | AW55: 55484617.32 | AX55: 56280308.54
B56: Custo Real Mensal (R$) | C56: 5259229.3 | D56: 3127397.13 | E56: 3343996.72 | F56: 2748236.54 | G56: 2651578.38 | H56: 5389639.63 | I56: 3006491.38 | J56: 2896796.17 | K56: 2705356.92 | L56: 2761207.2 | M56: 2790862.72 | N56: 2804078.24 | O56: 6044150.3 | P56: 3753053.66 | Q56: 3538505.32 | R56: 3229753.3 | S56: 2753095.95 | T56: 3332233.33 | U56: 2943447.79 | V56: 3129585.26 | W56: 2930464.11 | X56: 2946978.69 | Y56: 2903711.21 | Z56: 3009032.4 | AA56: 6358093.51 | AB56: 4008238.88 | AC56: 4569847.27 | AD56: 6916391.5 | AE56: 3501258.01 | AF56: 4048305.53 | AG56: 3368921.22 | AH56: 3547941.06 | AI56: 3384643.35 | AJ56: 3754672.76 | AK56: 3505317.29 | AL56: 4206736.49 | AM56: 5119904.25 | AN56: 5366511.29 | AO56: 7187839.96 | AP56: 3936201.76 | AQ56: 10679415.34 | AR56: 8115439.22 | AS56: 3695398.16 | AT56: 4109342.44 | AU56: 6235016.33
B57: Volume Total Faturado (m3) | C57: =C$10 -> 77906526 | D57: =D$10 -> 73168035 | E57: 76933898 | F57: 78440507 | G57: 76057127 | H57: 73345382 | I57: 72139390 | J57: 75129110 | K57: 77261818 | L57: 75143160 | M57: 77638013 | N57: 80888727 | O57: 80568496 | P57: 76981518 | Q57: 82863280 | R57: 75615918 | S57: 77627837 | T57: 76638994 | U57: 76492450 | V57: 78777821 | W57: 78346031 | X57: 77557025 | Y57: 80377900 | Z57: 82216921 | AA57: 80455757 | AB57: 83429053 | AC57: 80555481 | AD57: 84557690 | AE57: 83431476 | AF57: 81010000 | AG57: 81389604 | AH57: 82029328 | AI57: 83625439 | AJ57: 85623400 | AK57: 85978812 | AL57: 87533826 | AM57: 90182552 | AN57: 86284968 | AO57: 88894976 | AP57: 85569277 | AQ57: 87987545 | AR57: 86070306 | AS57: 83908436 | AT57: 84754637 | AU57: 88406756 | AV57: 90311222 | AW57: 88094553 | AX57: 87438867
B58: Tarifa Vigente (R$/m3) | C58: 0.03462922524 | D58: 0.03462922524 | E58: 0.03462922524 | F58: 0.03462922524 | G58: 0.03462922524 | H58: 0.03618334796 | I58: =H58 -> 0.03618334796 | J58: 0.03618334796 | K58: 0.03618334796 | L58: 0.03618334796 | M58: 0.03618334796 | N58: 0.03618334796 | O58: =N58 -> 0.03618334796 | P58: =O58 -> 0.03618334796 | Q58: 0.03618334796 | R58: 0.03618334796 | S58: 0.03618334796 | T58: 0.0397923228 | U58: =T58 -> 0.0397923228 | V58: 0.0397923228 | W58: 0.0397923228 | X58: 0.0397923228 | Y58: 0.0397923228 | Z58: 0.0397923228 | AA58: =Z58 -> 0.0397923228 | AB58: =AA58 -> 0.0397923228 | AC58: =AB58 -> 0.0397923228 | AD58: 0.0397923228 | AE58: 0.0397923228 | AF58: 0.04206112833 | AG58: =AF58 -> 0.04206112833 | AH58: 0.04206112833 | AI58: 0.04206112833 | AJ58: 0.04206112833 | AK58: 0.04206112833 | AL58: 0.04206112833 | AM58: =AL58 -> 0.04206112833 | AN58: =AM58 -> 0.04206112833 | AO58: =AN58 -> 0.04206112833 | AP58: 0.04206112833 | AQ58: 0.04206112833 | AR58: 0.04330517065 | AS58: =AR58 -> 0.04330517065 | AT58: 0.04330517065 | AU58: 0.04330517065
B59: Cobertura Tarifária (R$) | C59: =C57*C58 -> 2697842.636 | D59: =D57*D58 -> 2533752.364 | E59: =E57*E58 -> 2664161.282 | F59: 2716333.985 | G59: 2633799.382 | H59: 2653881.478 | I59: 2610244.65 | J59: 2718422.729 | K59: 2795591.245 | L59: 2718931.105 | M59: 2809203.239 | N59: 2926824.955 | O59: =O57*O58 -> 2915237.925 | P59: =P57*P58 -> 2785449.052 | Q59: 2998270.893 | R59: 2736037.072 | S59: 2808835.037 | T59: 3049643.588 | U59: 3043812.262 | V59: 3134752.483 | W59: 3117570.555 | X59: 3086174.174 | Y59: 3198423.343 | Z59: 3271602.26 | AA59: =AA57*AA58 -> 3201521.453 | AB59: =AB57*AB58 -> 3319835.808 | AC59: 3205489.703 | AD59: 3364746.896 | AE59: 3319932.224 | AF59: 3407372.006 | AG59: 3423338.578 | AH59: 3450246.091 | AI59: 3517380.321 | AJ59: 3601416.815 | AK59: 3616365.845 | AL59: 3681771.488 | AM59: =AM57*AM58 -> 3793179.892 | AN59: =AN57*AN58 -> 3629243.112 | AO59: 3739022.993 | AP59: 3599140.341 | AQ59: 3700855.421 | AR59: 3727289.289 | AS59: 3633669.14 | AT59: 3670314.019 | AU59: 3828469.655 | AV59: 0 | AW59: 0 | AX59: 0
B60: Diferença Cobertura Tarifária (R$) | C60: =C56-C59 -> 2561386.664 | D60: =D56-D59 -> 593644.7657 | E60: =E56-E59 -> 679835.4376 | F60: 31902.55521 | G60: 17778.99806 | H60: 2735758.152 | I60: 396246.7302 | J60: 178373.4411 | K60: -90234.32455 | L60: 42276.09507 | M60: -18340.51914 | N60: -122746.7149 | O60: =O56-O59 -> 3128912.375 | P60: =P56-P59 -> 967604.6079 | Q60: 540234.4268 | R60: 493716.2279 | S60: -55739.08739 | T60: 282589.7418 | U60: -100364.472 | V60: -5167.222545 | W60: -187106.4455 | X60: -139195.484 | Y60: -294712.1326 | Z60: -262569.8599 | AA60: =AA56-AA59 -> 3156572.057 | AB60: =AB56-AB59 -> 688403.0723 | AC60: 1364357.567 | AD60: 3551644.604 | AE60: 181325.7855 | AF60: 640933.5243 | AG60: -54417.35822 | AH60: 97694.96852 | AI60: -132736.9711 | AJ60: 153255.9449 | AK60: -111048.5548 | AL60: 524965.0018 | AM60: =AM56-AM59 -> 1326724.358 | AN60: =AN56-AN59 -> 1737268.178 | AO60: 3448816.967 | AP60: 337061.4194 | AQ60: 6978559.919 | AR60: 4388149.931 | AS60: 61729.02012 | AT60: 439028.4214 | AU60: 2406546.675 | AV60: 0 | AW60: 0 | AX60: 0
B61: Saldo Acumulado | C61: =C55+C60 -> 2561386.664 | D61: =D55+D60 -> 3200551.551 | E61: =E55+E60 -> 3939526.897 | F61: 4019576.999 | G61: 4107573.759 | H61: 6902652.106 | I61: 7428535.921 | J61: 7739676.469 | K61: 7810419.301 | L61: 8022237.228 | M61: 8153750.939 | N61: 8165213.739 | O61: 11412869.32 | P61: 12600574.67 | Q61: 13461377.56 | R61: 14221492.54 | S61: 14362524.97 | T61: 14872823.83 | U61: 14805650.03 | V61: 14881332.48 | W61: 14786000.64 | X61: 14869291.87 | Y61: 14771311.62 | Z61: 14735479.14 | AA61: 18104856.01 | AB61: 19111358.74 | AC61: 20786429.36 | AD61: 24655044.93 | AE61: 25117792.83 | AF61: 25966857.22 | AG61: 26180012.21 | AH61: 26576535.85 | AI61: 26755199.09 | AJ61: 27216548.95 | AK61: 27429892.51 | AL61: 28359294.57 | AM61: 30064095.4 | AN61: 32326551.55 | AO61: 36121521.78 | AP61: 36925563.05 | AQ61: 44411306.55 | AR61: 49297421.09 | AS61: 49996468.28 | AT61: 50880047.73 | AU61: 53975178.44 | AV61: 54771009.57 | AW61: 55484617.32 | AX61: 56280308.54
B63: FMSBA | C63: 2021-01-01 | D63: 2021-02-01 | E63: 2021-03-01 | F63: 2021-04-01 | G63: 2021-05-01 | H63: 2021-06-01 | I63: 2021-07-01 | J63: 2021-08-01 | K63: 2021-09-01 | L63: 2021-10-01 | M63: 2021-11-01 | N63: 2021-12-01 | O63: 2022-01-01 | P63: 2022-02-01 | Q63: 2022-03-01 | R63: 2022-04-01 | S63: 2022-05-01 | T63: 2022-06-01 | U63: 2022-07-01 | V63: 2022-08-01 | W63: 2022-09-01 | X63: 2022-10-01 | Y63: 2022-11-01 | Z63: 2022-12-01 | AA63: 2023-01-01 | AB63: 2023-02-01 | AC63: 2023-03-01 | AD63: 2023-04-01 | AE63: 2023-05-01 | AF63: 2023-06-01 | AG63: 2023-07-01 | AH63: 2023-08-01 | AI63: 2023-09-01 | AJ63: 2023-10-01 | AK63: 2023-11-01 | AL63: 2023-12-01 | AM63: 2024-01-01 | AN63: 2024-02-01 | AO63: 2024-03-01 | AP63: 2024-04-01 | AQ63: 2024-05-01 | AR63: 2024-06-01 | AS63: 2024-07-01 | AT63: 2024-08-01 | AU63: 2024-09-01 | AV63: 2024-10-01 | AW63: 2024-11-01 | AX63: 2024-12-01
B64: Saldo Inicial | C64: 0 | D64: =C74 -> -2267935.029 | E64: =D74 -> -3911952.15 | F64: -6571991.527 | G64: -8245202.131 | H64: -10163737.22 | I64: -12070615.96 | J64: -14180036.94 | K64: -15795502.32 | L64: -18208081.96 | M64: -19474593.56 | N64: -20655011.38 | O64: -23181130.66 | P64: -25261596.92 | Q64: -26935131.29 | R64: -30072425.56 | S64: -28325271.58 | T64: -29214028.75 | U64: -31064065.91 | V64: -30327421.07 | W64: -31130935.42 | X64: -31792109.67 | Y64: -33526218.54 | Z64: -34913083.25 | AA64: -35535816.13 | AB64: -35583243.43 | AC64: -36854626.87 | AD64: -37484627.94 | AE64: -38565916.58 | AF64: -35252978.26 | AG64: -40393474.57 | AH64: -41070067.82 | AI64: -41773930.51 | AJ64: -42441898.69 | AK64: -43351259.02 | AL64: -44364161.98 | AM64: -45927700.41 | AN64: -46762027.8 | AO64: -47939474.33 | AP64: -50010098.02 | AQ64: -50078830.53 | AR64: -52154382.3 | AS64: -52687574.22 | AT64: -54016103.46 | AU64: -55042448.33 | AV64: -56406281.97 | AW64: -57237958.23 | AX64: -57983707.69
B65: Índice de Correção (IPCA) | C65: =C$6 -> 0.0025 | D65: =D$6 -> 0.0086 | E65: =E$6 -> 0.0093 | F65: 0.0031 | G65: 0.0083 | H65: 0.0053 | I65: 0.0096 | J65: 0.0087 | K65: 0.0116 | L65: 0.0125 | M65: 0.0095 | N65: 0.0073 | O65: 0.0054 | P65: 0.0101 | Q65: 0.0162 | R65: 0.0106 | S65: 0.0047 | T65: 0.0067 | U65: -0.0068 | V65: -0.0036 | W65: -0.0029 | X65: 0.0059 | Y65: 0.0041 | Z65: 0.0062 | AA65: 0.0053 | AB65: 0.0084 | AC65: 0.0071 | AD65: 0.0061 | AE65: 0.0023 | AF65: -0.0008 | AG65: 0.0012 | AH65: 0.0023 | AI65: 0.0026 | AJ65: 0.0024 | AK65: 0.0028 | AL65: 0.0056 | AM65: 0.0042 | AN65: 0.0083 | AO65: 0.0016 | AP65: 0.0038 | AQ65: 0.0046 | AR65: 0.0021 | AS65: 0.0038 | AT65: -0.0002 | AU65: 0.0044 | AV65: 0.0056 | AW65: 0.0039 | AX65: 0.0052
B66: Saldo Inicial Corrigido | C66: =C64*(1+C65) -> 0 | D66: =D64*(1+D65) -> -2287439.27 | E66: =E64*(1+E65) -> -3948333.305 | F66: -6592364.701 | G66: -8313637.309 | H66: -10217605.03 | I66: -12186493.87 | J66: -14303403.26 | K66: -15978730.15 | L66: -18435682.98 | M66: -19659602.2 | N66: -20805792.96 | O66: -23306308.77 | P66: -25516739.05 | Q66: -27371480.42 | R66: -30391193.27 | S66: -28458400.35 | T66: -29409762.74 | U66: -30852830.26 | V66: -30218242.35 | W66: -31040655.71 | X66: -31979683.12 | Y66: -33663676.04 | Z66: -35129544.36 | AA66: -35724155.95 | AB66: -35882142.67 | AC66: -37116294.72 | AD66: -37713284.17 | AE66: -38654618.19 | AF66: -35224775.88 | AG66: -40441946.74 | AH66: -41164528.98 | AI66: -41882542.73 | AJ66: -42543759.25 | AK66: -43472642.55 | AL66: -44612601.29 | AM66: -46120596.75 | AN66: -47150152.63 | AO66: -48016177.49 | AP66: -50200136.39 | AQ66: -50309193.15 | AR66: -52263906.51 | AS66: -52887787 | AT66: -54005300.24 | AU66: -55284635.1 | AV66: -56722157.15 | AW66: -57461186.27 | AX66: -58285222.97
B67: Índice de Remuneração (WACC) | C67: 0.009093467374 | D67: =C67 -> 0.009093467374 | E67: =D67 -> 0.009093467374 | F67: 0.009093467374 | G67: 0.009093467374 | H67: 0.009093467374 | I67: 0.009093467374 | J67: 0.009093467374 | K67: 0.009093467374 | L67: 0.009093467374 | M67: 0.009093467374 | N67: 0.009093467374 | O67: 0.009093467374 | P67: 0.009093467374 | Q67: 0.009093467374 | R67: 0.009093467374 | S67: 0.009093467374 | T67: 0.009093467374 | U67: 0.009093467374 | V67: 0.009093467374 | W67: 0.009093467374 | X67: 0.009093467374 | Y67: 0.009093467374 | Z67: 0.009093467374 | AA67: 0.009093467374 | AB67: 0.009093467374 | AC67: 0.009093467374 | AD67: 0.009093467374 | AE67: 0.009093467374 | AF67: 0.009093467374 | AG67: 0.009093467374 | AH67: 0.009093467374 | AI67: 0.009093467374 | AJ67: 0.009093467374 | AK67: 0.009093467374 | AL67: 0.009093467374 | AM67: 0.009093467374 | AN67: 0.009093467374 | AO67: 0.009093467374 | AP67: 0.009093467374 | AQ67: 0.009093467374 | AR67: 0.009093467374 | AS67: 0.009093467374 | AT67: 0.009093467374 | AU67: 0.009093467374 | AV67: 0.009093467374 | AW67: 0.009093467374 | AX67: 0.009093467374
B68: Saldo Inicial Atualizado | C68: =C66*(1+C67) -> 0 | D68: =D66*(1+D67) -> -2308240.024 | E68: =E66*(1+E67) -> -3984237.345 | F68: -6652312.154 | G68: -8389237.098 | H68: -10310518.49 | I68: -12297311.35 | J68: -14433470.79 | K68: -16124032.21 | L68: -18603327.26 | M68: -19838376.15 | N68: -20994989.76 | O68: -23518243.93 | P68: -25748774.68 | Q68: -27620382.08 | R68: -30667554.6 | S68: -28717185.89 | T68: -29677199.46 | U68: -31133389.47 | V68: -30493030.95 | W68: -31322922.9 | X68: -32270489.33 | Y68: -33969795.58 | Z68: -35448993.73 | AA68: -36049012.4 | AB68: -36208435.77 | AC68: -37453810.54 | AD68: -38056228.69 | AE68: -39006122.7 | AF68: -35545091.23 | AG68: -40809704.27 | AH68: -41538857.28 | AI68: -42263400.27 | AJ68: -42930629.53 | AK68: -43867959.61 | AL68: -45018284.52 | AM68: -46539992.89 | AN68: -47578911.01 | AO68: -48452811.03 | AP68: -50656629.7 | AQ68: -50766678.16 | AR68: -52739166.63 | AS68: -53368720.37 | AT68: -54496395.68 | AU68: -55787364.13 | AV68: -57237958.23 | AW68: -57983707.69 | AX68: -58815237.75
B69: Custo Real Mensal (R$) | C69: 5069492.32 | D69: 5287432.54 | E69: 4658068.68 | F69: 5794829.01 | G69: 5388746.3 | H69: 5457767.01 | I69: 5216458.12 | J69: 6031368.29 | K69: 5519228.29 | L69: 6523516.18 | M69: 6823663.87 | N69: 5774058.55 | O69: 6185332.76 | P69: 6389337.31 | Q69: 5702470.26 | R69: 9783589.26 | S69: 7142454.83 | T69: 6907367.6 | U69: 9084342.77 | V69: 7887803.55 | W69: 8009790.89 | X69: 7137858.49 | Y69: 7755588.46 | Z69: 8811081.27 | AA69: 9173071.15 | AB69: 8382895.22 | AC69: 8687277.38 | AD69: 8641544.86 | AE69: 12782492.99 | AF69: 4418778.571 | AG69: 9050223.27 | AH69: 9148695 | AI69: 9387857.38 | AJ69: 9374283.63 | AK69: 9339368.2 | AL69: 9104040.96 | AM69: 10094423.69 | AN69: 9510030.06 | AO69: 8611878.99 | AP69: 10366520.87 | AQ69: 8677656.01 | AR69: 10188845.79 | AS69: 9235247.92 | AT69: 9436242.87 | AU69: 9793519.7
B70: Volume Total Faturado (m3) | C70: =C$10 -> 77906526 | D70: =D$10 -> 73168035 | E70: 76933898 | F70: 78440507 | G70: 76057127 | H70: 73345382 | I70: 72139390 | J70: 75129110 | K70: 77261818 | L70: 75143160 | M70: 77638013 | N70: 80888727 | O70: 80568496 | P70: 76981518 | Q70: 82863280 | R70: 75615918 | S70: 77627837 | T70: 76638994 | U70: 76492450 | V70: 78777821 | W70: 78346031 | X70: 77557025 | Y70: 80377900 | Z70: 82216921 | AA70: 80455757 | AB70: 83429053 | AC70: 80555481 | AD70: 84557690 | AE70: 83431476 | AF70: 81010000 | AG70: 81389604 | AH70: 82029328 | AI70: 83625439 | AJ70: 85623400 | AK70: 85978812 | AL70: 87533826 | AM70: 90182552 | AN70: 86284968 | AO70: 88894976 | AP70: 85569277 | AQ70: 87987545 | AR70: 86070306 | AS70: 83908436 | AT70: 84754637 | AU70: 88406756 | AV70: 90311222 | AW70: 88094553 | AX70: 87438867
B71: Tarifa Vigente (R$/m3) | C71: 0.09418244819 | D71: 0.09418244819 | E71: 0.09418244819 | F71: 0.09418244819 | G71: 0.09418244819 | H71: 0.09840925608 | I71: =H71 -> 0.09840925608 | J71: 0.09840925608 | K71: 0.09840925608 | L71: 0.09840925608 | M71: 0.09840925608 | N71: 0.09840925608 | O71: =N71 -> 0.09840925608 | P71: =O71 -> 0.09840925608 | Q71: 0.09840925608 | R71: 0.09840925608 | S71: 0.09840925608 | T71: 0.1082247251 | U71: =T71 -> 0.1082247251 | V71: 0.1082247251 | W71: 0.1082247251 | X71: 0.1082247251 | Y71: 0.1082247251 | Z71: 0.1082247251 | AA71: =Z71 -> 0.1082247251 | AB71: =AA71 -> 0.1082247251 | AC71: =AB71 -> 0.1082247251 | AD71: 0.1082247251 | AE71: 0.1082247251 | AF71: 0.1143952835 | AG71: =AF71 -> 0.1143952835 | AH71: 0.1143952835 | AI71: 0.1143952835 | AJ71: 0.1143952835 | AK71: 0.1143952835 | AL71: 0.1143952835 | AM71: =AL71 -> 0.1143952835 | AN71: =AM71 -> 0.1143952835 | AO71: =AN71 -> 0.1143952835 | AP71: 0.1143952835 | AQ71: 0.1143952835 | AR71: 0.1177787537 | AS71: =AR71 -> 0.1177787537 | AT71: 0.1177787537 | AU71: 0.1177787537
B72: Cobertura Tarifária (R$) | C72: =C70*C71 -> 7337427.349 | D72: =D70*D71 -> 6891144.666 | E72: =E70*E71 -> 7245822.862 | F72: 7387718.987 | G72: 7163246.423 | H72: 7217864.479 | I72: 7099183.704 | J72: 7393399.825 | K72: 7603278.033 | L72: 7394782.475 | M72: 7640299.103 | N72: 7960199.449 | O72: =O70*O71 -> 7928685.755 | P72: =P70*P71 -> 7575693.918 | Q72: 8154513.741 | R72: 7441306.238 | S72: 7639297.69 | T72: 8294234.054 | U72: 8278374.37 | V72: 8525708.018 | W72: 8478977.664 | X72: 8393587.706 | Y72: 8698876.128 | Z72: 8897903.67 | AA72: =AA70*AA71 -> 8707302.18 | AB72: =AB70*AB71 -> 9029086.322 | AC72: 8718094.783 | AD72: 9151232.751 | AE72: 9029348.551 | AF72: 9267161.918 | AG72: 9310586.825 | AH72: 9383768.234 | AI72: 9566355.804 | AJ72: 9794913.119 | AK72: 9835570.575 | AL72: 10013456.84 | AM72: =AM70*AM71 -> 10316458.6 | AN72: =AN70*AN71 -> 9870593.378 | AO72: 10169165.98 | AP72: 9788721.703 | AQ72: 10065360.16 | AR72: 10137253.37 | AS72: 9882631.019 | AT72: 9982295.518 | AU72: 10412437.54 | AV72: 0 | AW72: 0 | AX72: 0
B73: Diferença Cobertura Tarifária (R$) | C73: =C69-C72 -> -2267935.029 | D73: =D69-D72 -> -1603712.126 | E73: =E69-E72 -> -2587754.182 | F73: -1592889.977 | G73: -1774500.123 | H73: -1760097.469 | I73: -1882725.584 | J73: -1362031.535 | K73: -2084049.743 | L73: -871266.295 | M73: -816635.2327 | N73: -2186140.899 | O73: =O69-O72 -> -1743352.995 | P73: =P69-P72 -> -1186356.608 | Q73: -2452043.481 | R73: 2342283.022 | S73: -496842.8601 | T73: -1386866.454 | U73: 805968.4003 | V73: -637904.4679 | W73: -469186.7738 | X73: -1255729.216 | Y73: -943287.6677 | Z73: -86822.39978 | AA73: =AA69-AA72 -> 465768.9699 | AB73: =AB69-AB72 -> -646191.1022 | AC73: -30817.40259 | AD73: -509687.8912 | AE73: 3753144.438 | AF73: -4848383.347 | AG73: -260363.5552 | AH73: -235073.2335 | AI73: -178498.4239 | AJ73: -420629.489 | AK73: -496202.3755 | AL73: -909415.8829 | AM73: =AM69-AM72 -> -222034.9146 | AN73: =AN69-AN72 -> -360563.3179 | AO73: -1557286.993 | AP73: 577799.167 | AQ73: -1387704.147 | AR73: 51592.41694 | AS73: -647383.0988 | AT73: -546052.6479 | AU73: -618917.8422 | AV73: 0 | AW73: 0 | AX73: 0
B74: Saldo Acumulado | C74: =C68+C73 -> -2267935.029 | D74: =D68+D73 -> -3911952.15 | E74: =E68+E73 -> -6571991.527 | F74: -8245202.131 | G74: -10163737.22 | H74: -12070615.96 | I74: -14180036.94 | J74: -15795502.32 | K74: -18208081.96 | L74: -19474593.56 | M74: -20655011.38 | N74: -23181130.66 | O74: -25261596.92 | P74: -26935131.29 | Q74: -30072425.56 | R74: -28325271.58 | S74: -29214028.75 | T74: -31064065.91 | U74: -30327421.07 | V74: -31130935.42 | W74: -31792109.67 | X74: -33526218.54 | Y74: -34913083.25 | Z74: -35535816.13 | AA74: -35583243.43 | AB74: -36854626.87 | AC74: -37484627.94 | AD74: -38565916.58 | AE74: -35252978.26 | AF74: -40393474.57 | AG74: -41070067.82 | AH74: -41773930.51 | AI74: -42441898.69 | AJ74: -43351259.02 | AK74: -44364161.98 | AL74: -45927700.41 | AM74: -46762027.8 | AN74: -47939474.33 | AO74: -50010098.02 | AP74: -50078830.53 | AQ74: -52154382.3 | AR74: -52687574.22 | AS74: -54016103.46 | AT74: -55042448.33 | AU74: -56406281.97 | AV74: -57237958.23 | AW74: -57983707.69 | AX74: -58815237.75
B76: Energia Elétrica | C76: 2021-01-01 | D76: 2021-02-01 | E76: 2021-03-01 | F76: 2021-04-01 | G76: 2021-05-01 | H76: 2021-06-01 | I76: 2021-07-01 | J76: 2021-08-01 | K76: 2021-09-01 | L76: 2021-10-01 | M76: 2021-11-01 | N76: 2021-12-01 | O76: 2022-01-01 | P76: 2022-02-01 | Q76: 2022-03-01 | R76: 2022-04-01 | S76: 2022-05-01 | T76: 2022-06-01 | U76: 2022-07-01 | V76: 2022-08-01 | W76: 2022-09-01 | X76: 2022-10-01 | Y76: 2022-11-01 | Z76: 2022-12-01 | AA76: 2023-01-01 | AB76: 2023-02-01 | AC76: 2023-03-01 | AD76: 2023-04-01 | AE76: 2023-05-01 | AF76: 2023-06-01 | AG76: 2023-07-01 | AH76: 2023-08-01 | AI76: 2023-09-01 | AJ76: 2023-10-01 | AK76: 2023-11-01 | AL76: 2023-12-01 | AM76: 2024-01-01 | AN76: 2024-02-01 | AO76: 2024-03-01 | AP76: 2024-04-01 | AQ76: 2024-05-01 | AR76: 2024-06-01 | AS76: 2024-07-01 | AT76: 2024-08-01 | AU76: 2024-09-01 | AV76: 2024-10-01 | AW76: 2024-11-01 | AX76: 2024-12-01
B77: Saldo Inicial | C77: 0 | D77: =C87 -> 5783191.282 | E77: =D87 -> 8232965.371 | F77: 6758257.601 | G77: 7802529.735 | H77: 7168576.088 | I77: 10545558.62 | J77: 15965474.93 | K77: 27245955.99 | L77: 39556291.84 | M77: 55702313.37 | N77: 71704097.86 | O77: 104502395.1 | P77: 125204935.6 | Q77: 145590301.4 | R77: 159734109.3 | S77: 182738500.2 | T77: 194290947.8 | U77: 188922529.3 | V77: 185950319.3 | W77: 180671011.1 | X77: 175461266.5 | Y77: 168450195.6 | Z77: 160522859 | AA77: 150642953.9 | AB77: 145289506.8 | AC77: 138432096.8 | AD77: 138131870.3 | AE77: 134573712.8 | AF77: 128046254.9 | AG77: 119662269.5 | AH77: 111984452.5 | AI77: 108426806.4 | AJ77: 110435423.9 | AK77: 106248754.8 | AL77: 102906638.7 | AM77: 98596170.21 | AN77: 95265990.29 | AO77: 93715167.45 | AP77: 87974170.82 | AQ77: 86860082.55 | AR77: 82568304.18 | AS77: 77611694.2 | AT77: 70975063.4 | AU77: 63882455.44 | AV77: 45396716.63 | AW77: 46066063.56 | AX77: 46666255.17
B78: Índice de Correção (IPCA) | C78: =C$6 -> 0.0025 | D78: =D$6 -> 0.0086 | E78: =E$6 -> 0.0093 | F78: 0.0031 | G78: 0.0083 | H78: 0.0053 | I78: 0.0096 | J78: 0.0087 | K78: 0.0116 | L78: 0.0125 | M78: 0.0095 | N78: 0.0073 | O78: 0.0054 | P78: 0.0101 | Q78: 0.0162 | R78: 0.0106 | S78: 0.0047 | T78: 0.0067 | U78: -0.0068 | V78: -0.0036 | W78: -0.0029 | X78: 0.0059 | Y78: 0.0041 | Z78: 0.0062 | AA78: 0.0053 | AB78: 0.0084 | AC78: 0.0071 | AD78: 0.0061 | AE78: 0.0023 | AF78: -0.0008 | AG78: 0.0012 | AH78: 0.0023 | AI78: 0.0026 | AJ78: 0.0024 | AK78: 0.0028 | AL78: 0.0056 | AM78: 0.0042 | AN78: 0.0083 | AO78: 0.0016 | AP78: 0.0038 | AQ78: 0.0046 | AR78: 0.0021 | AS78: 0.0038 | AT78: -0.0002 | AU78: 0.0044 | AV78: 0.0056 | AW78: 0.0039 | AX78: 0.0052
B79: Saldo Inicial Corrigido | C79: =C77*(1+C78) -> 0 | D79: =D77*(1+D78) -> 5832926.727 | E79: =E77*(1+E78) -> 8309531.949 | F79: 6779208.2 | G79: 7867290.732 | H79: 7206569.541 | I79: 10646795.98 | J79: 16104374.56 | K79: 27562009.08 | L79: 40050745.49 | M79: 56231485.34 | N79: 72227537.77 | O79: 105066708.1 | P79: 126469505.4 | Q79: 147948864.3 | R79: 161427290.9 | S79: 183597371.2 | T79: 195592697.2 | U79: 187637856.1 | V79: 185280898.1 | W79: 180147065.2 | X79: 176496487.9 | Y79: 169140841.4 | Z79: 161518100.7 | AA79: 151441361.6 | AB79: 146509938.7 | AC79: 139414964.7 | AD79: 138974474.7 | AE79: 134883232.3 | AF79: 127943817.9 | AG79: 119805864.2 | AH79: 112242016.7 | AI79: 108708716.1 | AJ79: 110700469 | AK79: 106546251.3 | AL79: 103482915.8 | AM79: 99010274.12 | AN79: 96056698 | AO79: 93865111.72 | AP79: 88308472.67 | AQ79: 87259638.93 | AR79: 82741697.62 | AS79: 77906618.64 | AT79: 70960868.39 | AU79: 64163538.24 | AV79: 45650938.25 | AW79: 46245721.21 | AX79: 46908919.7
B80: Índice de Remuneração (WACC) | C80: 0.009093467374 | D80: =C80 -> 0.009093467374 | E80: =D80 -> 0.009093467374 | F80: 0.009093467374 | G80: 0.009093467374 | H80: 0.009093467374 | I80: 0.009093467374 | J80: 0.009093467374 | K80: 0.009093467374 | L80: 0.009093467374 | M80: 0.009093467374 | N80: 0.009093467374 | O80: 0.009093467374 | P80: 0.009093467374 | Q80: 0.009093467374 | R80: 0.009093467374 | S80: 0.009093467374 | T80: 0.009093467374 | U80: 0.009093467374 | V80: 0.009093467374 | W80: 0.009093467374 | X80: 0.009093467374 | Y80: 0.009093467374 | Z80: 0.009093467374 | AA80: 0.009093467374 | AB80: 0.009093467374 | AC80: 0.009093467374 | AD80: 0.009093467374 | AE80: 0.009093467374 | AF80: 0.009093467374 | AG80: 0.009093467374 | AH80: 0.009093467374 | AI80: 0.009093467374 | AJ80: 0.009093467374 | AK80: 0.009093467374 | AL80: 0.009093467374 | AM80: 0.009093467374 | AN80: 0.009093467374 | AO80: 0.009093467374 | AP80: 0.009093467374 | AQ80: 0.009093467374 | AR80: 0.009093467374 | AS80: 0.009093467374 | AT80: 0.009093467374 | AU80: 0.009093467374 | AV80: 0.009093467374 | AW80: 0.009093467374 | AX80: 0.009093467374
B81: Saldo Inicial Atualizado | C81: =C79*(1+C80) -> 0 | D81: =D79*(1+D80) -> 5885968.256 | E81: =E79*(1+E80) -> 8385094.407 | F81: 6840854.708 | G81: 7938831.684 | H81: 7272102.246 | I81: 10743612.27 | J81: 16250819.17 | K81: 27812643.31 | L81: 40414945.64 | M81: 56742824.52 | N81: 72884336.53 | O81: 106022128.7 | P81: 127619551.8 | Q81: 149294232.5 | R81: 162895224.7 | S81: 185266907.9 | T81: 197371313 | U81: 189344134.9 | V81: 186965743.9 | W81: 181785226.6 | X81: 178101453 | Y81: 170678918.2 | Z81: 162986860.3 | AA81: 152818488.7 | AB81: 147842222 | AC81: 140682730.2 | AD81: 140238234.6 | AE81: 136109788.6 | AF81: 129107270.8 | AG81: 120895314.9 | AH81: 113262685.8 | AI81: 109697255.3 | AJ81: 111707120.1 | AK81: 107515126.2 | AL81: 104423934.4 | AM81: 99910620.82 | AN81: 96930186.45 | AO81: 94718671.05 | AP81: 89111502.88 | AQ81: 88053131.61 | AR81: 83494106.55 | AS81: 78615059.93 | AT81: 71606148.73 | AU81: 64747007.29 | AV81: 46066063.56 | AW81: 46666255.17 | AX81: 47335484.43
B82: Custo Real Mensal (R$) | C82: 45564270.42 | D82: 39708480.68 | E82: 37657593.42 | F82: 41015418.62 | G82: 38066472.77 | H82: 41041447.91 | I82: 42368848.56 | J82: 49681629.6 | K82: 51528344.02 | L82: 53981095.32 | M82: 54939684.22 | N82: 73270370.89 | O82: 60670221.49 | P82: 57611109.32 | Q82: 53108952.54 | R82: 58780442.05 | S82: 48997210.86 | T82: 34951388.6 | U82: 39923369.72 | V82: 38316643.45 | W82: 38042896.21 | X82: 34268789.97 | Y82: 35361431.64 | Z82: 34215010.25 | AA82: 38032598.87 | AB82: 37835214.03 | AC82: 43067193.93 | AD82: 42219957.36 | AE82: 39183177.63 | AF82: 39046085.48 | AG82: 39807448.27 | AH82: 44265358.25 | AI82: 50794808.82 | AJ82: 45794217.39 | AK82: 46856838.2 | AL82: 46568364.14 | AM82: 49336976.13 | AN82: 48433566.01 | AO82: 46466387.27 | AP82: 48968765.29 | AQ82: 47182888.67 | AR82: 47161490.14 | AS82: 44071576.3 | AT82: 44509381.15 | AU82: 35133532.66
B83: Volume Total Faturado (m3) | C83: =C$10 -> 77906526 | D83: =D$10 -> 73168035 | E83: 76933898 | F83: 78440507 | G83: 76057127 | H83: 73345382 | I83: 72139390 | J83: 75129110 | K83: 77261818 | L83: 75143160 | M83: 77638013 | N83: 80888727 | O83: 80568496 | P83: 76981518 | Q83: 82863280 | R83: 75615918 | S83: 77627837 | T83: 76638994 | U83: 76492450 | V83: 78777821 | W83: 78346031 | X83: 77557025 | Y83: 80377900 | Z83: 82216921 | AA83: 80455757 | AB83: 83429053 | AC83: 80555481 | AD83: 84557690 | AE83: 83431476 | AF83: 81010000 | AG83: 81389604 | AH83: 82029328 | AI83: 83625439 | AJ83: 85623400 | AK83: 85978812 | AL83: 87533826 | AM83: 90182552 | AN83: 86284968 | AO83: 88894976 | AP83: 85569277 | AQ83: 87987545 | AR83: 86070306 | AS83: 83908436 | AT83: 84754637 | AU83: 88406756 | AV83: 90311222 | AW83: 88094553 | AX83: 87438867
B84: Tarifa Vigente (R$/m3) | C84: 0.5106257612 | D84: 0.5106257612 | E84: 0.5106257612 | F84: 0.5106257612 | G84: 0.5106257612 | H84: 0.5149334629 | I84: =H84 -> 0.5149334629 | J84: 0.5149334629 | K84: 0.5149334629 | L84: 0.5149334629 | M84: 0.5149334629 | N84: 0.5149334629 | O84: =N84 -> 0.5149334629 | P84: =O84 -> 0.5149334629 | Q84: 0.5149334629 | R84: 0.5149334629 | S84: 0.5149334629 | T84: 0.5662936055 | U84: =T84 -> 0.5662936055 | V84: 0.5662936055 | W84: 0.5662936055 | X84: 0.5662936055 | Y84: 0.5662936055 | Z84: 0.5662936055 | AA84: =Z84 -> 0.5662936055 | AB84: =AA84 -> 0.5662936055 | AC84: =AB84 -> 0.5662936055 | AD84: 0.5662936055 | AE84: 0.5662936055 | AF84: 0.5985814935 | AG84: =AF84 -> 0.5985814935 | AH84: 0.5985814935 | AI84: 0.5985814935 | AJ84: 0.5985814935 | AK84: 0.5985814935 | AL84: 0.5985814935 | AM84: =AL84 -> 0.5985814935 | AN84: =AM84 -> 0.5985814935 | AO84: =AN84 -> 0.5985814935 | AP84: 0.5985814935 | AQ84: 0.5985814935 | AR84: 0.6162857431 | AS84: =AR84 -> 0.6162857431 | AT84: 0.6162857431 | AU84: 0.6162857431
B85: Cobertura Tarifária (R$) | C85: =C83*C84 -> 39781079.14 | D85: =D83*D84 -> 37361483.56 | E85: =E83*E84 -> 39284430.23 | F85: 40053743.59 | G85: 38836728.37 | H85: 37767991.54 | I85: 37146985.9 | J85: 38686492.77 | K85: 39784695.49 | L85: 38693727.59 | M85: 39978410.88 | N85: 41652312.3 | O85: =O83*O84 -> 41487414.64 | P85: =P83*P84 -> 39640359.64 | Q85: 42669075.72 | R85: 38937166.5 | S85: 39973170.92 | T85: 43400172.23 | U85: 43317185.3 | V85: 44611376.29 | W85: 44366856.37 | X85: 43920047.32 | Y85: 45517490.79 | Z85: 46558916.63 | AA85: =AA83*AA84 -> 45561580.71 | AB85: =AB83*AB84 -> 47245339.23 | AC85: 45618053.78 | AD85: 47884479.14 | AE85: 47246711.36 | AF85: 48491086.79 | AG85: 48718310.72 | AH85: 49101237.67 | AI85: 50056640.17 | AJ85: 51252582.65 | AK85: 51465325.7 | AL85: 52396128.3 | AM85: =AM83*AM84 -> 53981606.67 | AN85: =AN83*AN84 -> 51648585.01 | AO85: 53210887.5 | AP85: 51220185.63 | AQ85: 52667716.1 | AR85: 53043902.49 | AS85: 51711572.83 | AT85: 52233074.44 | AU85: 54483823.31 | AV85: 0 | AW85: 0 | AX85: 0
B86: Diferença Cobertura Tarifária (R$) | C86: =C82-C85 -> 5783191.282 | D86: =D82-D85 -> 2346997.115 | E86: =E82-E85 -> -1626836.805 | F86: 961675.0271 | G86: -770255.5962 | H86: 3273456.371 | I86: 5221862.658 | J86: 10995136.83 | K86: 11743648.53 | L86: 15287367.73 | M86: 14961273.34 | N86: 31618058.59 | O86: =O82-O85 -> 19182806.85 | P86: =P82-P85 -> 17970749.68 | Q86: 10439876.82 | R86: 19843275.55 | S86: 9024039.938 | T86: -8448783.634 | U86: -3393815.584 | V86: -6294732.837 | W86: -6323960.161 | X86: -9651257.349 | Y86: -10156059.15 | Z86: -12343906.38 | AA86: =AA82-AA85 -> -7528981.844 | AB86: =AB82-AB85 -> -9410125.196 | AC86: -2550859.848 | AD86: -5664521.782 | AE86: -8063533.726 | AF86: -9445001.31 | AG86: -8910862.449 | AH86: -4835879.416 | AI86: 738168.6476 | AJ86: -5458365.262 | AK86: -4608487.498 | AL86: -5827764.16 | AM86: =AM82-AM85 -> -4644630.535 | AN86: =AN82-AN85 -> -3215019.003 | AO86: -6744500.23 | AP86: -2251420.336 | AQ86: -5484827.427 | AR86: -5882412.348 | AS86: -7639996.529 | AT86: -7723693.291 | AU86: -19350290.65 | AV86: 0 | AW86: 0 | AX86: 0
B87: Saldo Acumulado | C87: =C81+C86 -> 5783191.282 | D87: =D81+D86 -> 8232965.371 | E87: =E81+E86 -> 6758257.601 | F87: 7802529.735 | G87: 7168576.088 | H87: 10545558.62 | I87: 15965474.93 | J87: 27245955.99 | K87: 39556291.84 | L87: 55702313.37 | M87: 71704097.86 | N87: 104502395.1 | O87: 125204935.6 | P87: 145590301.4 | Q87: 159734109.3 | R87: 182738500.2 | S87: 194290947.8 | T87: 188922529.3 | U87: 185950319.3 | V87: 180671011.1 | W87: 175461266.5 | X87: 168450195.6 | Y87: 160522859 | Z87: 150642953.9 | AA87: 145289506.8 | AB87: 138432096.8 | AC87: 138131870.3 | AD87: 134573712.8 | AE87: 128046254.9 | AF87: 119662269.5 | AG87: 111984452.5 | AH87: 108426806.4 | AI87: 110435423.9 | AJ87: 106248754.8 | AK87: 102906638.7 | AL87: 98596170.21 | AM87: 95265990.29 | AN87: 93715167.45 | AO87: 87974170.82 | AP87: 86860082.55 | AQ87: 82568304.18 | AR87: 77611694.2 | AS87: 70975063.4 | AT87: 63882455.44 | AU87: 45396716.63 | AV87: 46066063.56 | AW87: 46666255.17 | AX87: 47335484.43
B89: Aluguel de Ativos (CPC06 + SLP) | C89: 2021-01-01 | D89: 2021-02-01 | E89: 2021-03-01 | F89: 2021-04-01 | G89: 2021-05-01 | H89: 2021-06-01 | I89: 2021-07-01 | J89: 2021-08-01 | K89: 2021-09-01 | L89: 2021-10-01 | M89: 2021-11-01 | N89: 2021-12-01 | O89: 2022-01-01 | P89: 2022-02-01 | Q89: 2022-03-01 | R89: 2022-04-01 | S89: 2022-05-01 | T89: 2022-06-01 | U89: 2022-07-01 | V89: 2022-08-01 | W89: 2022-09-01 | X89: 2022-10-01 | Y89: 2022-11-01 | Z89: 2022-12-01 | AA89: 2023-01-01 | AB89: 2023-02-01 | AC89: 2023-03-01 | AD89: 2023-04-01 | AE89: 2023-05-01 | AF89: 2023-06-01 | AG89: 2023-07-01 | AH89: 2023-08-01 | AI89: 2023-09-01 | AJ89: 2023-10-01 | AK89: 2023-11-01 | AL89: 2023-12-01 | AM89: 2024-01-01 | AN89: 2024-02-01 | AO89: 2024-03-01 | AP89: 2024-04-01 | AQ89: 2024-05-01 | AR89: 2024-06-01 | AS89: 2024-07-01 | AT89: 2024-08-01 | AU89: 2024-09-01 | AV89: 2024-10-01 | AW89: 2024-11-01 | AX89: 2024-12-01
B90: Saldo Inicial | C90: 0 | D90: =C100 -> 7332787.1 | E90: =D100 -> 14546791.01 | F90: 20617826.35 | G90: 27929078.39 | H90: 35785908.81 | I90: 37210896.89 | J90: 38709871.66 | K90: 42175815.82 | L90: 43377789.75 | M90: 44855215.8 | N90: 46020704.34 | O90: 44008529.88 | P90: 45725066.78 | Q90: 47863589.7 | R90: 49419298.19 | S90: 51363269.02 | T90: 52966708.22 | U90: 54289913.37 | V90: 54682298.76 | W90: 55300135.52 | X90: 55739158.8 | Y90: 56380114.51 | Z90: 61489101.59 | AA90: 65884552.66 | AB90: 70417947.65 | AC90: 73911260.89 | AD90: 76876330.07 | AE90: 69923628.94 | AF90: 73039648.75 | AG90: 75276195.66 | AH90: 76052195.18 | AI90: 78931655.3 | AJ90: 81829660.01 | AK90: 84544521.9 | AL90: 87942838.42 | AM90: 91591866.34 | AN90: 95144932.47 | AO90: 99526840.67 | AP90: 101470981.1 | AQ90: 104906349.9 | AR90: 108452678.8 | AS90: 112841156.4 | AT90: 117448124.9 | AU90: 121281765.1 | AV90: 125241497.5 | AW90: 127088107 | AX90: 128743929.3
B91: Índice de Correção (IPCA) | C91: =C$6 -> 0.0025 | D91: =D$6 -> 0.0086 | E91: =E$6 -> 0.0093 | F91: 0.0031 | G91: 0.0083 | H91: 0.0053 | I91: 0.0096 | J91: 0.0087 | K91: 0.0116 | L91: 0.0125 | M91: 0.0095 | N91: 0.0073 | O91: 0.0054 | P91: 0.0101 | Q91: 0.0162 | R91: 0.0106 | S91: 0.0047 | T91: 0.0067 | U91: -0.0068 | V91: -0.0036 | W91: -0.0029 | X91: 0.0059 | Y91: 0.0041 | Z91: 0.0062 | AA91: 0.0053 | AB91: 0.0084 | AC91: 0.0071 | AD91: 0.0061 | AE91: 0.0023 | AF91: -0.0008 | AG91: 0.0012 | AH91: 0.0023 | AI91: 0.0026 | AJ91: 0.0024 | AK91: 0.0028 | AL91: 0.0056 | AM91: 0.0042 | AN91: 0.0083 | AO91: 0.0016 | AP91: 0.0038 | AQ91: 0.0046 | AR91: 0.0021 | AS91: 0.0038 | AT91: -0.0002 | AU91: 0.0044 | AV91: 0.0056 | AW91: 0.0039 | AX91: 0.0052
B92: Saldo Inicial Corrigido | C92: =C90*(1+C91) -> 0 | D92: =D90*(1+D91) -> 7395849.069 | E92: =E90*(1+E91) -> 14682076.17 | F92: 20681741.61 | G92: 28160889.74 | H92: 35975574.12 | I92: 37568121.5 | J92: 39046647.55 | K92: 42665055.28 | L92: 43920012.12 | M92: 45281340.35 | N92: 46356655.49 | O92: 44246175.94 | P92: 46186889.95 | Q92: 48638979.86 | R92: 49943142.75 | S92: 51604676.39 | T92: 53321585.16 | U92: 53920741.96 | V92: 54485442.48 | W92: 55139765.13 | X92: 56068019.84 | Y92: 56611272.98 | Z92: 61870334.02 | AA92: 66233740.79 | AB92: 71009458.41 | AC92: 74436030.84 | AD92: 77345275.69 | AE92: 70084453.29 | AF92: 72981217.03 | AG92: 75366527.1 | AH92: 76227115.23 | AI92: 79136877.61 | AJ92: 82026051.19 | AK92: 84781246.56 | AL92: 88435318.32 | AM92: 91976552.18 | AN92: 95934635.41 | AO92: 99686083.62 | AP92: 101856570.8 | AQ92: 105388919.1 | AR92: 108680429.4 | AS92: 113269952.8 | AT92: 117424635.3 | AU92: 121815404.9 | AV92: 125942849.9 | AW92: 127583750.7 | AX92: 129413397.8
B93: Índice de Remuneração (WACC) | C93: 0.009093467374 | D93: =C93 -> 0.009093467374 | E93: =D93 -> 0.009093467374 | F93: 0.009093467374 | G93: 0.009093467374 | H93: 0.009093467374 | I93: 0.009093467374 | J93: 0.009093467374 | K93: 0.009093467374 | L93: 0.009093467374 | M93: 0.009093467374 | N93: 0.009093467374 | O93: 0.009093467374 | P93: 0.009093467374 | Q93: 0.009093467374 | R93: 0.009093467374 | S93: 0.009093467374 | T93: 0.009093467374 | U93: 0.009093467374 | V93: 0.009093467374 | W93: 0.009093467374 | X93: 0.009093467374 | Y93: 0.009093467374 | Z93: 0.009093467374 | AA93: 0.009093467374 | AB93: 0.009093467374 | AC93: 0.009093467374 | AD93: 0.009093467374 | AE93: 0.009093467374 | AF93: 0.009093467374 | AG93: 0.009093467374 | AH93: 0.009093467374 | AI93: 0.009093467374 | AJ93: 0.009093467374 | AK93: 0.009093467374 | AL93: 0.009093467374 | AM93: 0.009093467374 | AN93: 0.009093467374 | AO93: 0.009093467374 | AP93: 0.009093467374 | AQ93: 0.009093467374 | AR93: 0.009093467374 | AS93: 0.009093467374 | AT93: 0.009093467374 | AU93: 0.009093467374 | AV93: 0.009093467374 | AW93: 0.009093467374 | AX93: 0.009093467374
B94: Saldo Inicial Atualizado | C94: =C92*(1+C93) -> 0 | D94: =D92*(1+D93) -> 7463102.981 | E94: =E92*(1+E93) -> 14815587.15 | F94: 20869810.35 | G94: 28416969.88 | H94: 36302716.83 | I94: 37909745.99 | J94: 39401716.96 | K94: 43053028.57 | L94: 44319397.32 | M94: 45693104.74 | N94: 46778198.22 | O94: 44648527.1 | P94: 46606888.93 | Q94: 49081276.83 | R94: 50397299.09 | S94: 52073941.83 | T94: 53806463.26 | U94: 54411068.46 | V94: 54980904.08 | W94: 55641176.78 | X94: 56577872.55 | Y94: 57126065.74 | Z94: 62432949.88 | AA94: 66836035.15 | AB94: 71655180.6 | AC94: 75112912.46 | AD94: 78048612.43 | AE94: 70721763.98 | AF94: 73644869.35 | AG94: 76051870.16 | AH94: 76920284.01 | AI94: 79856506.22 | AJ94: 82771952.41 | AK94: 85552202.06 | AL94: 89239502 | AM94: 92812937.95 | AN94: 96807013.89 | AO94: 100592575.8 | AP94: 102782800.2 | AQ94: 106347269.8 | AR94: 109668711.4 | AS94: 114299969.5 | AT94: 118492432.4 | AU94: 122923129.3 | AV94: 127088107 | AW94: 128743929.3 | AX94: 130590214.3
B95: Custo Real Mensal (R$) | C95: 7332787.1 | D95: 7083688.03 | E95: 5802239.2 | F95: 7059268.04 | G95: 7368938.93 | H95: 7095845.59 | I95: 6886049.63 | J95: 9112245.74 | K95: 6842830.56 | L95: 6875150.67 | M95: 6877406.07 | N95: 4054379.4 | O95: 7873571.64 | P95: 7751123.09 | Q95: 7328649.09 | R95: 7345185.6 | S95: 7441714.37 | T95: 7593856.01 | U95: 7368040.15 | V95: 7628073.25 | W95: 7366763.25 | X95: 6997820.86 | Y95: 11820329.64 | Z95: 11079517.1 | AA95: 11046429.71 | AB95: 9996453.69 | AC95: 9237187 | AD95: -279897.5 | AE95: 10058482.98 | AF95: 9575795.01 | AG95: 7982020.63 | AH95: 10055803.19 | AI95: 10174112.71 | AJ95: 10169463.95 | AK95: 10822385.29 | AL95: 10936609.99 | AM95: 11175994.78 | AN95: 11181599.74 | AO95: 9596135.91 | AP95: 10515136.41 | AQ95: 10734149.87 | AR95: 11862817.88 | AS95: 11620247.96 | AT95: 11346864.68 | AU95: 11244648.37
B96: Volume Total Faturado (m3) | C96: =C$10 -> 77906526 | D96: =D$10 -> 73168035 | E96: 76933898 | F96: 78440507 | G96: 76057127 | H96: 73345382 | I96: 72139390 | J96: 75129110 | K96: 77261818 | L96: 75143160 | M96: 77638013 | N96: 80888727 | O96: 80568496 | P96: 76981518 | Q96: 82863280 | R96: 75615918 | S96: 77627837 | T96: 76638994 | U96: 76492450 | V96: 78777821 | W96: 78346031 | X96: 77557025 | Y96: 80377900 | Z96: 82216921 | AA96: 80455757 | AB96: 83429053 | AC96: 80555481 | AD96: 84557690 | AE96: 83431476 | AF96: 81010000 | AG96: 81389604 | AH96: 82029328 | AI96: 83625439 | AJ96: 85623400 | AK96: 85978812 | AL96: 87533826 | AM96: 90182552 | AN96: 86284968 | AO96: 88894976 | AP96: 85569277 | AQ96: 87987545 | AR96: 86070306 | AS96: 83908436 | AT96: 84754637 | AU96: 88406756 | AV96: 90311222 | AW96: 88094553 | AX96: 87438867
B97: Tarifa Vigente (R$/m3) | C97: 0 | D97: 0 | E97: 0 | F97: 0 | G97: 0 | H97: 0.08436339637 | I97: =H97 -> 0.08436339637 | J97: 0.08436339637 | K97: 0.08436339637 | L97: 0.08436339637 | M97: 0.08436339637 | N97: 0.08436339637 | O97: =N97 -> 0.08436339637 | P97: =O97 -> 0.08436339637 | Q97: 0.08436339637 | R97: 0.08436339637 | S97: 0.08436339637 | T97: 0.09277791278 | U97: =T97 -> 0.09277791278 | V97: 0.09277791278 | W97: 0.09277791278 | X97: 0.09277791278 | Y97: 0.09277791278 | Z97: 0.09277791278 | AA97: =Z97 -> 0.09277791278 | AB97: =AA97 -> 0.09277791278 | AC97: =AB97 -> 0.09277791278 | AD97: 0.09277791278 | AE97: 0.09277791278 | AF97: 0.09806775329 | AG97: =AF97 -> 0.09806775329 | AH97: 0.09806775329 | AI97: 0.09806775329 | AJ97: 0.09806775329 | AK97: 0.09806775329 | AL97: 0.09806775329 | AM97: =AL97 -> 0.09806775329 | AN97: =AM97 -> 0.09806775329 | AO97: =AN97 -> 0.09806775329 | AP97: 0.09806775329 | AQ97: 0.09806775329 | AR97: 0.100968304 | AS97: =AR97 -> 0.100968304 | AT97: 0.100968304 | AU97: 0.100968304
B98: Cobertura Tarifária (R$) | C98: =C96*C97 -> 0 | D98: =D96*D97 -> 0 | E98: =E96*E97 -> 0 | F98: 0 | G98: 0 | H98: 6187665.534 | I98: 6085923.953 | J98: 6338146.886 | K98: 6518069.376 | L98: 6339332.192 | M98: 6549806.464 | N98: 6824047.738 | O98: =O96*O97 -> 6797031.963 | P98: =P96*P97 -> 6494422.316 | Q98: 6990627.735 | R98: 6379215.662 | S98: 6548947.982 | T98: 7110405.901 | U98: 7096809.854 | V98: 7308841.805 | W98: 7268781.231 | X98: 7195578.901 | Y98: 7457293.795 | Z98: 7627914.325 | AA98: =AA96*AA97 -> 7464517.205 | AB98: =AB96*AB97 -> 7740373.402 | AC98: 7473769.39 | AD98: 7845085.987 | AE98: 7740598.203 | AF98: 7944468.694 | AG98: 7981695.606 | AH98: 8044431.901 | AI98: 8200958.921 | AJ98: 8396894.467 | AK98: 8431748.924 | AL98: 8584245.653 | AM98: =AM96*AM97 -> 8844000.261 | AN98: =AN96*AN97 -> 8461772.955 | AO98: 8717730.575 | AP98: 8391586.746 | AQ98: 8628740.856 | AR98: 8690372.822 | AS98: 8472092.475 | AT98: 8557531.954 | AU98: 8926280.216 | AV98: 0 | AW98: 0 | AX98: 0
B99: Diferença Cobertura Tarifária (R$) | C99: =C95-C98 -> 7332787.1 | D99: =D95-D98 -> 7083688.03 | E99: =E95-E98 -> 5802239.2 | F99: 7059268.04 | G99: 7368938.93 | H99: 908180.0562 | I99: 800125.6773 | J99: 2774098.854 | K99: 324761.1835 | L99: 535818.4782 | M99: 327599.6056 | N99: -2769668.338 | O99: =O95-O98 -> 1076539.677 | P99: =P95-P98 -> 1256700.774 | Q99: 338021.3546 | R99: 965969.9376 | S99: 892766.3876 | T99: 483450.1094 | U99: 271230.2958 | V99: 319231.4445 | W99: 97982.01947 | X99: -197758.0407 | Y99: 4363035.845 | Z99: 3451602.775 | AA99: =AA95-AA98 -> 3581912.505 | AB99: =AB95-AB98 -> 2256080.288 | AC99: 1763417.61 | AD99: -8124983.487 | AE99: 2317884.777 | AF99: 1631326.316 | AG99: 325.0243113 | AH99: 2011371.289 | AI99: 1973153.789 | AJ99: 1772569.483 | AK99: 2390636.366 | AL99: 2352364.337 | AM99: =AM95-AM98 -> 2331994.519 | AN99: =AN95-AN98 -> 2719826.785 | AO99: 878405.3346 | AP99: 2123549.664 | AQ99: 2105409.014 | AR99: 3172445.058 | AS99: 3148155.485 | AT99: 2789332.726 | AU99: 2318368.154 | AV99: 0 | AW99: 0 | AX99: 0
B100: Saldo Acumulado | C100: =C94+C99 -> 7332787.1 | D100: =D94+D99 -> 14546791.01 | E100: =E94+E99 -> 20617826.35 | F100: 27929078.39 | G100: 35785908.81 | H100: 37210896.89 | I100: 38709871.66 | J100: 42175815.82 | K100: 43377789.75 | L100: 44855215.8 | M100: 46020704.34 | N100: 44008529.88 | O100: 45725066.78 | P100: 47863589.7 | Q100: 49419298.19 | R100: 51363269.02 | S100: 52966708.22 | T100: 54289913.37 | U100: 54682298.76 | V100: 55300135.52 | W100: 55739158.8 | X100: 56380114.51 | Y100: 61489101.59 | Z100: 65884552.66 | AA100: 70417947.65 | AB100: 73911260.89 | AC100: 76876330.07 | AD100: 69923628.94 | AE100: 73039648.75 | AF100: 75276195.66 | AG100: 76052195.18 | AH100: 78931655.3 | AI100: 81829660.01 | AJ100: 84544521.9 | AK100: 87942838.42 | AL100: 91591866.34 | AM100: 95144932.47 | AN100: 99526840.67 | AO100: 101470981.1 | AP100: 104906349.9 | AQ100: 108452678.8 | AR100: 112841156.4 | AS100: 117448124.9 | AT100: 121281765.1 | AU100: 125241497.5 | AV100: 127088107 | AW100: 128743929.3 | AX100: 130590214.3
B102: PPP | C102: 2021-01-01 | D102: 2021-02-01 | E102: 2021-03-01 | F102: 2021-04-01 | G102: 2021-05-01 | H102: 2021-06-01 | I102: 2021-07-01 | J102: 2021-08-01 | K102: 2021-09-01 | L102: 2021-10-01 | M102: 2021-11-01 | N102: 2021-12-01 | O102: 2022-01-01 | P102: 2022-02-01 | Q102: 2022-03-01 | R102: 2022-04-01 | S102: 2022-05-01 | T102: 2022-06-01 | U102: 2022-07-01 | V102: 2022-08-01 | W102: 2022-09-01 | X102: 2022-10-01 | Y102: 2022-11-01 | Z102: 2022-12-01 | AA102: 2023-01-01 | AB102: 2023-02-01 | AC102: 2023-03-01 | AD102: 2023-04-01 | AE102: 2023-05-01 | AF102: 2023-06-01 | AG102: 2023-07-01 | AH102: 2023-08-01 | AI102: 2023-09-01 | AJ102: 2023-10-01 | AK102: 2023-11-01 | AL102: 2023-12-01 | AM102: 2024-01-01 | AN102: 2024-02-01 | AO102: 2024-03-01 | AP102: 2024-04-01 | AQ102: 2024-05-01 | AR102: 2024-06-01 | AS102: 2024-07-01 | AT102: 2024-08-01 | AU102: 2024-09-01 | AV102: 2024-10-01 | AW102: 2024-11-01 | AX102: 2024-12-01
B103: Saldo Inicial | C103: 0 | D103: =C113 -> 0 | E103: =D113 -> 0 | F103: 0 | G103: 0 | H103: 0 | I103: 0 | J103: 0 | K103: 0 | L103: 0 | M103: 0 | N103: 0 | O103: 0 | P103: 0 | Q103: 0 | R103: 0 | S103: 0 | T103: 0 | U103: 0 | V103: 0 | W103: 0 | X103: 0 | Y103: 0 | Z103: 0 | AA103: 0 | AB103: 0 | AC103: 0 | AD103: 0 | AE103: 0 | AF103: 0 | AG103: 0 | AH103: 0 | AI103: 0 | AJ103: 0 | AK103: 0 | AL103: 0 | AM103: 0 | AN103: 0 | AO103: 1056702.73 | AP103: 5962445.611 | AQ103: 10240531.79 | AR103: 13981037.17 | AS103: 18187727.65 | AT103: 22407408.47 | AU103: 26565402.19 | AV103: 30702532.49 | AW103: 31155222.63 | AX103: 31561141.9
B104: Índice de Correção (IPCA) | C104: =C$6 -> 0.0025 | D104: =D$6 -> 0.0086 | E104: =E$6 -> 0.0093 | F104: 0.0031 | G104: 0.0083 | H104: 0.0053 | I104: 0.0096 | J104: 0.0087 | K104: 0.0116 | L104: 0.0125 | M104: 0.0095 | N104: 0.0073 | O104: 0.0054 | P104: 0.0101 | Q104: 0.0162 | R104: 0.0106 | S104: 0.0047 | T104: 0.0067 | U104: -0.0068 | V104: -0.0036 | W104: -0.0029 | X104: 0.0059 | Y104: 0.0041 | Z104: 0.0062 | AA104: 0.0053 | AB104: 0.0084 | AC104: 0.0071 | AD104: 0.0061 | AE104: 0.0023 | AF104: -0.0008 | AG104: 0.0012 | AH104: 0.0023 | AI104: 0.0026 | AJ104: 0.0024 | AK104: 0.0028 | AL104: 0.0056 | AM104: 0.0042 | AN104: 0.0083 | AO104: 0.0016 | AP104: 0.0038 | AQ104: 0.0046 | AR104: 0.0021 | AS104: 0.0038 | AT104: -0.0002 | AU104: 0.0044 | AV104: 0.0056 | AW104: 0.0039 | AX104: 0.0052
B105: Saldo Inicial Corrigido | C105: =C103*(1+C104) -> 0 | D105: =D103*(1+D104) -> 0 | E105: =E103*(1+E104) -> 0 | F105: 0 | G105: 0 | H105: 0 | I105: 0 | J105: 0 | K105: 0 | L105: 0 | M105: 0 | N105: 0 | O105: 0 | P105: 0 | Q105: 0 | R105: 0 | S105: 0 | T105: 0 | U105: 0 | V105: 0 | W105: 0 | X105: 0 | Y105: 0 | Z105: 0 | AA105: 0 | AB105: 0 | AC105: 0 | AD105: 0 | AE105: 0 | AF105: 0 | AG105: 0 | AH105: 0 | AI105: 0 | AJ105: 0 | AK105: 0 | AL105: 0 | AM105: 0 | AN105: 0 | AO105: 1058393.454 | AP105: 5985102.904 | AQ105: 10287638.24 | AR105: 14010397.35 | AS105: 18256841.02 | AT105: 22402926.99 | AU105: 26682289.96 | AV105: 30874466.67 | AW105: 31276728 | AX105: 31725259.84
B106: Índice de Remuneração (WACC) | C106: 0.009093467374 | D106: =C106 -> 0.009093467374 | E106: =D106 -> 0.009093467374 | F106: 0.009093467374 | G106: 0.009093467374 | H106: 0.009093467374 | I106: 0.009093467374 | J106: 0.009093467374 | K106: 0.009093467374 | L106: 0.009093467374 | M106: 0.009093467374 | N106: 0.009093467374 | O106: 0.009093467374 | P106: 0.009093467374 | Q106: 0.009093467374 | R106: 0.009093467374 | S106: 0.009093467374 | T106: 0.009093467374 | U106: 0.009093467374 | V106: 0.009093467374 | W106: 0.009093467374 | X106: 0.009093467374 | Y106: 0.009093467374 | Z106: 0.009093467374 | AA106: 0.009093467374 | AB106: 0.009093467374 | AC106: 0.009093467374 | AD106: 0.009093467374 | AE106: 0.009093467374 | AF106: 0.009093467374 | AG106: 0.009093467374 | AH106: 0.009093467374 | AI106: 0.009093467374 | AJ106: 0.009093467374 | AK106: 0.009093467374 | AL106: 0.009093467374 | AM106: 0.009093467374 | AN106: 0.009093467374 | AO106: 0.009093467374 | AP106: 0.009093467374 | AQ106: 0.009093467374 | AR106: 0.009093467374 | AS106: 0.009093467374 | AT106: 0.009093467374 | AU106: 0.009093467374 | AV106: 0.009093467374 | AW106: 0.009093467374 | AX106: 0.009093467374
B107: Saldo Inicial Atualizado | C107: =C105*(1+C106) -> 0 | D107: =D105*(1+D106) -> 0 | E107: =E105*(1+E106) -> 0 | F107: 0 | G107: 0 | H107: 0 | I107: 0 | J107: 0 | K107: 0 | L107: 0 | M107: 0 | N107: 0 | O107: 0 | P107: 0 | Q107: 0 | R107: 0 | S107: 0 | T107: 0 | U107: 0 | V107: 0 | W107: 0 | X107: 0 | Y107: 0 | Z107: 0 | AA107: 0 | AB107: 0 | AC107: 0 | AD107: 0 | AE107: 0 | AF107: 0 | AG107: 0 | AH107: 0 | AI107: 0 | AJ107: 0 | AK107: 0 | AL107: 0 | AM107: 0 | AN107: 0 | AO107: 1068017.921 | AP107: 6039528.242 | AQ107: 10381188.54 | AR107: 14137800.44 | AS107: 18422859 | AT107: 22606647.28 | AU107: 26924924.49 | AV107: 31155222.63 | AW107: 31561141.9 | AX107: 32013752.45
B108: Custo Real Mensal (R$) | C108: 0 | D108: 0 | E108: 0 | F108: 0 | G108: 0 | H108: 0 | I108: 0 | J108: 0 | K108: 0 | L108: 0 | M108: 0 | N108: 0 | O108: 0 | P108: 0 | Q108: 0 | R108: 0 | S108: 0 | T108: 0 | U108: 0 | V108: 0 | W108: 0 | X108: 0 | Y108: 0 | Z108: 0 | AA108: 0 | AB108: 0 | AC108: 0 | AD108: 0 | AE108: 0 | AF108: 0 | AG108: 0 | AH108: 0 | AI108: 0 | AJ108: 0 | AK108: 0 | AL108: 0 | AM108: 0 | AN108: 1056702.73 | AO108: 4894427.69 | AP108: 4201003.55 | AQ108: 3599848.63 | AR108: 4049927.21 | AS108: 3984549.47 | AT108: 3958754.91 | AU108: 3777608
B109: Volume Total Faturado (m3) | C109: =C$10 -> 77906526 | D109: =D$10 -> 73168035 | E109: 76933898 | F109: 78440507 | G109: 76057127 | H109: 73345382 | I109: 72139390 | J109: 75129110 | K109: 77261818 | L109: 75143160 | M109: 77638013 | N109: 80888727 | O109: 80568496 | P109: 76981518 | Q109: 82863280 | R109: 75615918 | S109: 77627837 | T109: 76638994 | U109: 76492450 | V109: 78777821 | W109: 78346031 | X109: 77557025 | Y109: 80377900 | Z109: 82216921 | AA109: 80455757 | AB109: 83429053 | AC109: 80555481 | AD109: 84557690 | AE109: 83431476 | AF109: 81010000 | AG109: 81389604 | AH109: 82029328 | AI109: 83625439 | AJ109: 85623400 | AK109: 85978812 | AL109: 87533826 | AM109: 90182552 | AN109: 86284968 | AO109: 88894976 | AP109: 85569277 | AQ109: 87987545 | AR109: 86070306 | AS109: 83908436 | AT109: 84754637 | AU109: 88406756 | AV109: 90311222 | AW109: 88094553 | AX109: 87438867
B110: Tarifa Vigente (R$/m3) | C110: 0 | D110: 0 | E110: 0 | F110: 0 | G110: 0 | H110: 0 | I110: =H110 -> 0 | J110: 0 | K110: 0 | L110: 0 | M110: 0 | N110: 0 | O110: =N110 -> 0 | P110: =O110 -> 0 | Q110: 0 | R110: 0 | S110: 0 | T110: 0 | U110: =T110 -> 0 | V110: 0 | W110: 0 | X110: 0 | Y110: 0 | Z110: 0 | AA110: =Z110 -> 0 | AB110: =AA110 -> 0 | AC110: =AB110 -> 0 | AD110: 0 | AE110: 0 | AF110: 0 | AG110: =AF110 -> 0 | AH110: 0 | AI110: 0 | AJ110: 0 | AK110: 0 | AL110: 0 | AM110: =AL110 -> 0 | AN110: =AM110 -> 0 | AO110: =AN110 -> 0 | AP110: 0 | AQ110: 0 | AR110: 0 | AS110: =AR110 -> 0 | AT110: 0 | AU110: 0 | AV110: 0 | AW110: 0 | AX110: 0
B111: Cobertura Tarifária (R$) | C111: =C109*C110 -> 0 | D111: =D109*D110 -> 0 | E111: =E109*E110 -> 0 | F111: 0 | G111: 0 | H111: 0 | I111: 0 | J111: 0 | K111: 0 | L111: 0 | M111: 0 | N111: 0 | O111: =O109*O110 -> 0 | P111: =P109*P110 -> 0 | Q111: 0 | R111: 0 | S111: 0 | T111: 0 | U111: 0 | V111: 0 | W111: 0 | X111: 0 | Y111: 0 | Z111: 0 | AA111: =AA109*AA110 -> 0 | AB111: =AB109*AB110 -> 0 | AC111: 0 | AD111: 0 | AE111: 0 | AF111: 0 | AG111: 0 | AH111: 0 | AI111: 0 | AJ111: 0 | AK111: 0 | AL111: 0 | AM111: =AM109*AM110 -> 0 | AN111: =AN109*AN110 -> 0 | AO111: 0 | AP111: 0 | AQ111: 0 | AR111: 0 | AS111: 0 | AT111: 0 | AU111: 0 | AV111: 0 | AW111: 0 | AX111: 0
B112: Diferença Cobertura Tarifária (R$) | C112: =C108-C111 -> 0 | D112: =D108-D111 -> 0 | E112: =E108-E111 -> 0 | F112: 0 | G112: 0 | H112: 0 | I112: 0 | J112: 0 | K112: 0 | L112: 0 | M112: 0 | N112: 0 | O112: =O108-O111 -> 0 | P112: =P108-P111 -> 0 | Q112: 0 | R112: 0 | S112: 0 | T112: 0 | U112: 0 | V112: 0 | W112: 0 | X112: 0 | Y112: 0 | Z112: 0 | AA112: =AA108-AA111 -> 0 | AB112: =AB108-AB111 -> 0 | AC112: 0 | AD112: 0 | AE112: 0 | AF112: 0 | AG112: 0 | AH112: 0 | AI112: 0 | AJ112: 0 | AK112: 0 | AL112: 0 | AM112: =AM108-AM111 -> 0 | AN112: =AN108-AN111 -> 1056702.73 | AO112: 4894427.69 | AP112: 4201003.55 | AQ112: 3599848.63 | AR112: 4049927.21 | AS112: 3984549.47 | AT112: 3958754.91 | AU112: 3777608 | AV112: 0 | AW112: 0 | AX112: 0
B113: Saldo Acumulado | C113: =C107+C112 -> 0 | D113: =D107+D112 -> 0 | E113: =E107+E112 -> 0 | F113: 0 | G113: 0 | H113: 0 | I113: 0 | J113: 0 | K113: 0 | L113: 0 | M113: 0 | N113: 0 | O113: 0 | P113: 0 | Q113: 0 | R113: 0 | S113: 0 | T113: 0 | U113: 0 | V113: 0 | W113: 0 | X113: 0 | Y113: 0 | Z113: 0 | AA113: 0 | AB113: 0 | AC113: 0 | AD113: 0 | AE113: 0 | AF113: 0 | AG113: 0 | AH113: 0 | AI113: 0 | AJ113: 0 | AK113: 0 | AL113: 0 | AM113: 0 | AN113: 1056702.73 | AO113: 5962445.611 | AP113: 10240531.79 | AQ113: 13981037.17 | AR113: 18187727.65 | AS113: 22407408.47 | AT113: 26565402.19 | AU113: 30702532.49 | AV113: 31155222.63 | AW113: 31561141.9 | AX113: 32013752.45
B115: Energia Elétrica (25%) - Resolução 40/2021 | C115: 2021-01-01 | D115: 2021-02-01 | E115: 2021-03-01 | F115: 2021-04-01 | G115: 2021-05-01 | H115: 2021-06-01 | I115: 2021-07-01 | J115: 2021-08-01 | K115: 2021-09-01 | L115: 2021-10-01 | M115: 2021-11-01 | N115: 2021-12-01 | O115: 2022-01-01 | P115: 2022-02-01 | Q115: 2022-03-01 | R115: 2022-04-01 | S115: 2022-05-01 | T115: 2022-06-01 | U115: 2022-07-01 | V115: 2022-08-01 | W115: 2022-09-01 | X115: 2022-10-01 | Y115: 2022-11-01 | Z115: 2022-12-01 | AA115: 2023-01-01 | AB115: 2023-02-01 | AC115: 2023-03-01 | AD115: 2023-04-01 | AE115: 2023-05-01 | AF115: 2023-06-01 | AG115: 2023-07-01 | AH115: 2023-08-01 | AI115: 2023-09-01 | AJ115: 2023-10-01 | AK115: 2023-11-01 | AL115: 2023-12-01 | AM115: 2024-01-01 | AN115: 2024-02-01 | AO115: 2024-03-01 | AP115: 2024-04-01 | AQ115: 2024-05-01 | AR115: 2024-06-01 | AS115: 2024-07-01 | AT115: 2024-08-01 | AU115: 2024-09-01 | AV115: 2024-10-01 | AW115: 2024-11-01 | AX115: 2024-12-01
B116: Saldo Inicial | C116: 0 | D116: =C126 -> 0 | E116: =D126 -> 0 | F116: 0 | G116: 0 | H116: 0 | I116: 0 | J116: 0 | K116: 0 | L116: 0 | M116: 0 | N116: 0 | O116: 0 | P116: 0 | Q116: 0 | R116: 0 | S116: 0 | T116: 0 | U116: 0 | V116: 0 | W116: 0 | X116: 0 | Y116: 0 | Z116: 0 | AA116: 0 | AB116: 0 | AC116: 0 | AD116: 0 | AE116: 0 | AF116: 0 | AG116: 0 | AH116: 0 | AI116: 0 | AJ116: 0 | AK116: 0 | AL116: 0 | AM116: 0 | AN116: 99213.085 | AO116: 223978.9052 | AP116: 471461.9576 | AQ116: 837937.5085 | AR116: 1215768.769 | AS116: 2044070.932 | AT116: 3208478.717 | AU116: 4735760.195 | AV116: 6880880.324 | AW116: 6982334.713 | AX116: 7073307.076
B117: Índice de Correção (IPCA) | C117: =C$6 -> 0.0025 | D117: =D$6 -> 0.0086 | E117: =E$6 -> 0.0093 | F117: 0.0031 | G117: 0.0083 | H117: 0.0053 | I117: 0.0096 | J117: 0.0087 | K117: 0.0116 | L117: 0.0125 | M117: 0.0095 | N117: 0.0073 | O117: 0.0054 | P117: 0.0101 | Q117: 0.0162 | R117: 0.0106 | S117: 0.0047 | T117: 0.0067 | U117: -0.0068 | V117: -0.0036 | W117: -0.0029 | X117: 0.0059 | Y117: 0.0041 | Z117: 0.0062 | AA117: 0.0053 | AB117: 0.0084 | AC117: 0.0071 | AD117: 0.0061 | AE117: 0.0023 | AF117: -0.0008 | AG117: 0.0012 | AH117: 0.0023 | AI117: 0.0026 | AJ117: 0.0024 | AK117: 0.0028 | AL117: 0.0056 | AM117: 0.0042 | AN117: 0.0083 | AO117: 0.0016 | AP117: 0.0038 | AQ117: 0.0046 | AR117: 0.0021 | AS117: 0.0038 | AT117: -0.0002 | AU117: 0.0044 | AV117: 0.0056 | AW117: 0.0039 | AX117: 0.0052
B118: Saldo Inicial Corrigido | C118: =C116*(1+C117) -> 0 | D118: =D116*(1+D117) -> 0 | E118: =E116*(1+E117) -> 0 | F118: 0 | G118: 0 | H118: 0 | I118: 0 | J118: 0 | K118: 0 | L118: 0 | M118: 0 | N118: 0 | O118: 0 | P118: 0 | Q118: 0 | R118: 0 | S118: 0 | T118: 0 | U118: 0 | V118: 0 | W118: 0 | X118: 0 | Y118: 0 | Z118: 0 | AA118: 0 | AB118: 0 | AC118: 0 | AD118: 0 | AE118: 0 | AF118: 0 | AG118: 0 | AH118: 0 | AI118: 0 | AJ118: 0 | AK118: 0 | AL118: 0 | AM118: 0 | AN118: 100036.5536 | AO118: 224337.2715 | AP118: 473253.5131 | AQ118: 841792.021 | AR118: 1218321.884 | AS118: 2051838.401 | AT118: 3207837.021 | AU118: 4756597.54 | AV118: 6919413.254 | AW118: 7009565.818 | AX118: 7110088.273
B119: Índice de Remuneração (WACC) | C119: 0.009093467374 | D119: =C119 -> 0.009093467374 | E119: =D119 -> 0.009093467374 | F119: 0.009093467374 | G119: 0.009093467374 | H119: 0.009093467374 | I119: 0.009093467374 | J119: 0.009093467374 | K119: 0.009093467374 | L119: 0.009093467374 | M119: 0.009093467374 | N119: 0.009093467374 | O119: 0.009093467374 | P119: 0.009093467374 | Q119: 0.009093467374 | R119: 0.009093467374 | S119: 0.009093467374 | T119: 0.009093467374 | U119: 0.009093467374 | V119: 0.009093467374 | W119: 0.009093467374 | X119: 0.009093467374 | Y119: 0.009093467374 | Z119: 0.009093467374 | AA119: 0.009093467374 | AB119: 0.009093467374 | AC119: 0.009093467374 | AD119: 0.009093467374 | AE119: 0.009093467374 | AF119: 0.009093467374 | AG119: 0.009093467374 | AH119: 0.009093467374 | AI119: 0.009093467374 | AJ119: 0.009093467374 | AK119: 0.009093467374 | AL119: 0.009093467374 | AM119: 0.009093467374 | AN119: 0.009093467374 | AO119: 0.009093467374 | AP119: 0.009093467374 | AQ119: 0.009093467374 | AR119: 0.009093467374 | AS119: 0.009093467374 | AT119: 0.009093467374 | AU119: 0.009093467374 | AV119: 0.009093467374 | AW119: 0.009093467374 | AX119: 0.009093467374
B120: Saldo Inicial Atualizado | C120: =C118*(1+C119) -> 0 | D120: =D118*(1+D119) -> 0 | E120: =E118*(1+E119) -> 0 | F120: 0 | G120: 0 | H120: 0 | I120: 0 | J120: 0 | K120: 0 | L120: 0 | M120: 0 | N120: 0 | O120: 0 | P120: 0 | Q120: 0 | R120: 0 | S120: 0 | T120: 0 | U120: 0 | V120: 0 | W120: 0 | X120: 0 | Y120: 0 | Z120: 0 | AA120: 0 | AB120: 0 | AC120: 0 | AD120: 0 | AE120: 0 | AF120: 0 | AG120: 0 | AH120: 0 | AI120: 0 | AJ120: 0 | AK120: 0 | AL120: 0 | AM120: 0 | AN120: 100946.2327 | AO120: 226377.2751 | AP120: 477557.0285 | AQ120: 849446.8293 | AR120: 1229400.654 | AS120: 2070496.727 | AT120: 3237007.382 | AU120: 4799851.504 | AV120: 6982334.713 | AW120: 7073307.076 | AX120: 7174743.629
B121: Custo Real Mensal (R$) | C121: 0 | D121: 0 | E121: 0 | F121: 0 | G121: 0 | H121: 0 | I121: 0 | J121: 0 | K121: 0 | L121: 0 | M121: 0 | N121: 0 | O121: 0 | P121: 0 | Q121: 0 | R121: 0 | S121: 0 | T121: 0 | U121: 0 | V121: 0 | W121: 0 | X121: 0 | Y121: 0 | Z121: 0 | AA121: 0 | AB121: 0 | AC121: 0 | AD121: 0 | AE121: 0 | AF121: 0 | AG121: 0 | AH121: 0 | AI121: 0 | AJ121: 0 | AK121: 0 | AL121: 0 | AM121: 99213.085 | AN121: 123032.6725 | AO121: 245084.6825 | AP121: 360380.48 | AQ121: 366321.94 | AR121: 814670.2777 | AS121: 1137981.99 | AT121: 1498752.813 | AU121: 2081028.82
B122: Volume Total Faturado (m3) | C122: =C$10 -> 77906526 | D122: =D$10 -> 73168035 | E122: 76933898 | F122: 78440507 | G122: 76057127 | H122: 73345382 | I122: 72139390 | J122: 75129110 | K122: 77261818 | L122: 75143160 | M122: 77638013 | N122: 80888727 | O122: 80568496 | P122: 76981518 | Q122: 82863280 | R122: 75615918 | S122: 77627837 | T122: 76638994 | U122: 76492450 | V122: 78777821 | W122: 78346031 | X122: 77557025 | Y122: 80377900 | Z122: 82216921 | AA122: 80455757 | AB122: 83429053 | AC122: 80555481 | AD122: 84557690 | AE122: 83431476 | AF122: 81010000 | AG122: 81389604 | AH122: 82029328 | AI122: 83625439 | AJ122: 85623400 | AK122: 85978812 | AL122: 87533826 | AM122: 90182552 | AN122: 86284968 | AO122: 88894976 | AP122: 85569277 | AQ122: 87987545 | AR122: 86070306 | AS122: 83908436 | AT122: 84754637 | AU122: 88406756 | AV122: 90311222 | AW122: 88094553 | AX122: 87438867
B123: Tarifa Vigente (R$/m3) | C123: 0 | D123: 0 | E123: 0 | F123: 0 | G123: 0 | H123: 0 | I123: =H123 -> 0 | J123: 0 | K123: 0 | L123: 0 | M123: 0 | N123: 0 | O123: =N123 -> 0 | P123: =O123 -> 0 | Q123: 0 | R123: 0 | S123: 0 | T123: 0 | U123: =T123 -> 0 | V123: 0 | W123: 0 | X123: 0 | Y123: 0 | Z123: 0 | AA123: =Z123 -> 0 | AB123: =AA123 -> 0 | AC123: =AB123 -> 0 | AD123: 0 | AE123: 0 | AF123: 0 | AG123: =AF123 -> 0 | AH123: 0 | AI123: 0 | AJ123: 0 | AK123: 0 | AL123: 0 | AM123: =AL123 -> 0 | AN123: =AM123 -> 0 | AO123: =AN123 -> 0 | AP123: 0 | AQ123: 0 | AR123: 0 | AS123: =AR123 -> 0 | AT123: 0 | AU123: 0 | AV123: 0 | AW123: 0 | AX123: 0
B124: Cobertura Tarifária (R$) | C124: =C122*C123 -> 0 | D124: =D122*D123 -> 0 | E124: =E122*E123 -> 0 | F124: 0 | G124: 0 | H124: 0 | I124: 0 | J124: 0 | K124: 0 | L124: 0 | M124: 0 | N124: 0 | O124: =O122*O123 -> 0 | P124: =P122*P123 -> 0 | Q124: 0 | R124: 0 | S124: 0 | T124: 0 | U124: 0 | V124: 0 | W124: 0 | X124: 0 | Y124: 0 | Z124: 0 | AA124: =AA122*AA123 -> 0 | AB124: =AB122*AB123 -> 0 | AC124: 0 | AD124: 0 | AE124: 0 | AF124: 0 | AG124: 0 | AH124: 0 | AI124: 0 | AJ124: 0 | AK124: 0 | AL124: 0 | AM124: =AM122*AM123 -> 0 | AN124: =AN122*AN123 -> 0 | AO124: 0 | AP124: 0 | AQ124: 0 | AR124: 0 | AS124: 0 | AT124: 0 | AU124: 0 | AV124: 0 | AW124: 0 | AX124: 0
B125: Diferença Cobertura Tarifária (R$) | C125: =C121-C124 -> 0 | D125: =D121-D124 -> 0 | E125: =E121-E124 -> 0 | F125: 0 | G125: 0 | H125: 0 | I125: 0 | J125: 0 | K125: 0 | L125: 0 | M125: 0 | N125: 0 | O125: =O121-O124 -> 0 | P125: =P121-P124 -> 0 | Q125: 0 | R125: 0 | S125: 0 | T125: 0 | U125: 0 | V125: 0 | W125: 0 | X125: 0 | Y125: 0 | Z125: 0 | AA125: =AA121-AA124 -> 0 | AB125: =AB121-AB124 -> 0 | AC125: 0 | AD125: 0 | AE125: 0 | AF125: 0 | AG125: 0 | AH125: 0 | AI125: 0 | AJ125: 0 | AK125: 0 | AL125: 0 | AM125: =AM121-AM124 -> 99213.085 | AN125: =AN121-AN124 -> 123032.6725 | AO125: 245084.6825 | AP125: 360380.48 | AQ125: 366321.94 | AR125: 814670.2777 | AS125: 1137981.99 | AT125: 1498752.813 | AU125: 2081028.82 | AV125: 0 | AW125: 0 | AX125: 0
B126: Saldo Acumulado | C126: =C120+C125 -> 0 | D126: =D120+D125 -> 0 | E126: =E120+E125 -> 0 | F126: 0 | G126: 0 | H126: 0 | I126: 0 | J126: 0 | K126: 0 | L126: 0 | M126: 0 | N126: 0 | O126: 0 | P126: 0 | Q126: 0 | R126: 0 | S126: 0 | T126: 0 | U126: 0 | V126: 0 | W126: 0 | X126: 0 | Y126: 0 | Z126: 0 | AA126: 0 | AB126: 0 | AC126: 0 | AD126: 0 | AE126: 0 | AF126: 0 | AG126: 0 | AH126: 0 | AI126: 0 | AJ126: 0 | AK126: 0 | AL126: 0 | AM126: 99213.085 | AN126: 223978.9052 | AO126: 471461.9576 | AP126: 837937.5085 | AQ126: 1215768.769 | AR126: 2044070.932 | AS126: 3208478.717 | AT126: 4735760.195 | AU126: 6880880.324 | AV126: 6982334.713 | AW126: 7073307.076 | AX126: 7174743.629
AQ128: Total Conta Gráfica | AU128: =AU130+AU129 -> 83984685.22
AQ129: Para Compensação Ordinária (até set/2024)1 | AU129: =SUM(AX126,AX113,AX100,AX87,AX74,AX61) -> 214579265.6
AQ130: Para Compensação Extraordinária (até mai/2025)2 | AU130: =SUM(BC46,BC35,BC24) -> -130594580.4
AQ131: 1 Saldo da conta gráfica com custo realizado até set/2024 (período para o qual se dispõe de informações contábeis divulgadas),
AQ132: porém atualizada, pelo WACC e inflação, até dez/2024.
AQ133: 2 Saldo da conta gráfica atualizado até maio/2025, baseado nos volumes realizados até dez/2024 e em projeção de volumes para o período 01/2025 a 05/2025.
AQ134: Se referem às contas de compensação ordinária, extraordinária e de ajuste de ciclo

Sheet 16. Receita Verificada
A1: Tabela - Tarifas Homologadas
A2: IRT | B2: Tarifa | C2: Aplicação | D2: Fonte | F2: Média Diferença Tarifa Verificada/Homologada 2023-2024 | K2: =G20/B4-1 -> -0.00681085222
A3: 2023 | B3: 6.4385 | C3: 2023-04-24 | D3: Resolução 012/2023
A4: 2024 | B4: 6.629 | C4: 2024-05-17 | D4: Resolução 019/2024
A7: Mês de Referência | B7: Volume Faturado Histograma (m3) | C7: Valor Faturado Histograma | D7: Recálculo do Valor Faturado* | E7: Alíquota COFINS/ PASEP** | F7: Receita Verificada exc. COFINS/PASEP | G7: Valor R$/m3
A8: 2023/10 | B8: 85590479 | C8: 584927365.9 | D8: 606462605.7 | E8: 0.07227598272 | F8: =D8-D8*E8 -> 562629924.9 | G8: =F8/B8 -> 6.573510646
A9: 2023/11 | B9: 85843022 | C9: 584380397.6 | D9: 606164175.6 | E9: 0.07227598272 | F9: =D9-D9*E9 -> 562353064.1 | G9: =F9/B9 -> 6.550946728
A10: 2023/12 | B10: 87366341 | C10: 596084652.1 | D10: 619477725.6 | E10: 0.07227598272 | F10: 574704364.2 | G10: 6.578098129
A11: 2024/01 | B11: 89716815 | C11: 611750813.1 | D11: 634564148.8 | E11: 0.07192274604 | F11: 588924552.7 | G11: 6.564260587
A12: 2024/02 | B12: 86369386 | C12: 591479216.3 | D12: 613892444 | E12: 0.07192274604 | F12: 569739613.6 | G12: 6.596545836
A13: 2024/03 | B13: 88881625 | C13: 606032609.4 | D13: 629665600.1 | E13: 0.07192274604 | F13: 584378321.1 | G13: 6.574793396
A14: 2024/04 | B14: 85543355 | C14: 583131130.5 | D14: 605498832 | E14: 0.07062306851 | F14: 562736646.5 | G14: 6.578379425
A15: 2024/05 | B15: 88056872 | C15: 602481652.5 | D15: 624537607.4 | E15: 0.07062306851 | F15: 580430845.1 | G15: 6.591545122
A16: 2024/06 | B16: 86040925 | C16: 604707690.7 | D16: 611053144.5 | E16: 0.07062306851 | F16: 567898696.4 | G16: 6.6003323
A17: 2024/07 | B17: 83877315 | C17: 591716049.7 | D17: 597580963 | E17: 0.07121162819 | F17: 555026249.7 | G17: 6.617119893
A18: 2024/08 | B18: 84734153 | C18: 596831584.5 | D18: 602756491.5 | E18: 0.07121162819 | F18: 559833220.3 | G18: 6.606937114
A19: 2024/09 | B19: 88393306 | C19: 619583572.6 | D19: 625839486.5 | E19: 0.07121162819 | F19: 581272437.6 | G19: 6.575978023
A20: Somatório | B20: =SUM(B8:B19) -> 1040413594 | F20: =SUM(F8:F19) -> 6849927936 | G20: =F20/B20 -> 6.583850861
A22: * Valor faturado recalculado considerando a tela tarifária cheia e o volume conforme histograma e consumos,
A23: ** Valor de impostos sobre a receita devem ser deduzidos uma vez que a tarifa definida é ex-impostos
D25: Média COFINS/PASEP | E25: =AVERAGE(E8:E19) -> 0.07150835637

Sheet Aux. - IPCA
A2: SÉRIE HISTÓRICA DO IPCA
H3: (continua)
F4: VARIAÇÃO
A5: ANO | B5: MÊS | C5: NÚMERO ÍNDICE | D5: (%)
C6: (DEZ 93 = 100) | D6: NO | E6: 3 | F6: 6 | G6: NO | H6: 12
D7: MÊS | E7: MESES | F7: MESES | G7: ANO | H7: MESES
A9: 1994 | B9: JAN | C9: 141.31 | D9: 41.31 | E9: 162.13 | F9: 533.33 | G9: 41.31 | H9: 2693.84
B10: FEV | C10: 198.22 | D10: 40.27 | E10: 171.24 | F10: 568.17 | G10: 98.22 | H10: 3035.71
B11: MAR | C11: 282.96 | D11: 42.75 | E11: 182.96 | F11: 602.93 | G11: 182.96 | H11: 3417.39
B12: ABR | C12: 403.73 | D12: 42.68 | E12: 185.71 | F12: 648.92 | G12: 303.73 | H12: 3828.49
B13: MAI | C13: 581.49 | D13: 44.03 | E13: 193.36 | F13: 695.71 | G13: 481.49 | H13: 4331.19
B14: JUN | C14: 857.29 | D14: 47.43 | E14: 202.97 | F14: 757.29 | G14: 757.29 | H14: 4922.6
B15: JUL | C15: 915.93 | D15: 6.84 | E15: 126.87 | F15: 548.17 | G15: 815.93 | H15: 4005.08
B16: AGO | C16: 932.97 | D16: 1.86 | E16: 60.44 | F16: 370.67 | G16: 832.97 | H16: 3044.89
B17: SET | C17: 947.24 | D17: 1.53 | E17: 10.49 | F17: 234.76 | G17: 847.24 | H17: 2253.15
B18: OUT | C18: 972.06 | D18: 2.62 | E18: 6.13 | F18: 140.77 | G18: 872.06 | H18: 1703.17
B19: NOV | C19: 999.37 | D19: 2.81 | E19: 7.12 | F19: 71.86 | G19: 899.37 | H19: 1267.54
B20: DEZ | C20: 1016.46 | D20: 1.71 | E20: 7.31 | F20: 18.57 | G20: 916.46 | H20: 916.46
A22: 1995 | B22: JAN | C22: 1033.74 | D22: 1.7 | E22: 6.35 | F22: 12.86 | G22: 1.7 | H22: 631.54
B23: FEV | C23: 1044.28 | D23: 1.02 | E23: 4.49 | F23: 11.93 | G23: 2.74 | H23: 426.83
B24: MAR | C24: 1060.47 | D24: 1.55 | E24: 4.33 | F24: 11.95 | G24: 4.33 | H24: 274.78
B25: ABR | C25: 1086.24 | D25: 2.43 | E25: 5.08 | F25: 11.75 | G25: 6.87 | H25: 169.05
B26: MAI | C26: 1115.24 | D26: 2.67 | E26: 6.8 | F26: 11.59 | G26: 9.72 | H26: 91.79
B27: JUN | C27: 1140.44 | D27: 2.26 | E27: 7.54 | F27: 12.2 | G27: 12.2 | H27: 33.03
B28: JUL | C28: 1167.35 | D28: 2.36 | E28: 7.47 | F28: 12.92 | G28: 14.84 | H28: 27.45
B29: AGO | C29: 1178.91 | D29: 0.99 | E29: 5.71 | F29: 12.89 | G29: 15.98 | H29: 26.36
B30: SET | C30: 1190.58 | D30: 0.99 | E30: 4.4 | F30: 12.27 | G30: 17.13 | H30: 25.69
B31: OUT | C31: 1207.37 | D31: 1.41 | E31: 3.43 | F31: 11.15 | G31: 18.78 | H31: 24.21
B32: NOV | C32: 1225.12 | D32: 1.47 | E32: 3.92 | F32: 9.85 | G32: 20.53 | H32: 22.59
B33: DEZ | C33: 1244.23 | D33: 1.56 | E33: 4.51 | F33: 9.1 | G33: 22.41 | H33: 22.41
A35: 1996 | B35: JAN | C35: 1260.9 | D35: 1.34 | E35: 4.43 | F35: 8.01 | G35: 1.34 | H35: 21.97
B36: FEV | C36: 1273.89 | D36: 1.03 | E36: 3.98 | F36: 8.06 | G36: 2.38 | H36: 21.99
B37: MAR | C37: 1278.35 | D37: 0.35 | E37: 2.74 | F37: 7.37 | G37: 2.74 | H37: 20.55
B38: ABR | C38: 1294.46 | D38: 1.26 | E38: 2.66 | F38: 7.21 | G38: 4.04 | H38: 19.17
B39: MAI | C39: 1310.25 | D39: 1.22 | E39: 2.85 | F39: 6.95 | G39: 5.31 | H39: 17.49
B40: JUN | C40: 1325.84 | D40: 1.19 | E40: 3.71 | F40: 6.56 | G40: 6.56 | H40: 16.26
B41: JUL | C41: 1340.56 | D41: 1.11 | E41: 3.56 | F41: 6.32 | G41: 7.74 | H41: 14.84
B42: AGO | C42: 1346.46 | D42: 0.44 | E42: 2.76 | F42: 5.7 | G42: 8.22 | H42: 14.21
B43: SET | C43: 1348.48 | D43: 0.15 | E43: 1.71 | F43: 5.49 | G43: 8.38 | H43: 13.26
B44: OUT | C44: 1352.53 | D44: 0.3 | E44: 0.89 | F44: 4.49 | G44: 8.7 | H44: 12.02
B45: NOV | C45: 1356.86 | D45: 0.32 | E45: 0.77 | F45: 3.56 | G45: 9.05 | H45: 10.75
B46: DEZ | C46: 1363.24 | D46: 0.47 | E46: 1.09 | F46: 2.82 | G46: 9.56 | H46: 9.56
A48: 1997 | B48: JAN | C48: 1379.33 | D48: 1.18 | E48: 1.98 | F48: 2.89 | G48: 1.18 | H48: 9.39
B49: FEV | C49: 1386.23 | D49: 0.5 | E49: 2.16 | F49: 2.95 | G49: 1.69 | H49: 8.82
B50: MAR | C50: 1393.3 | D50: 0.51 | E50: 2.21 | F50: 3.32 | G50: 2.21 | H50: 8.99
B51: ABR | C51: 1405.56 | D51: 0.88 | E51: 1.9 | F51: 3.92 | G51: 3.1 | H51: 8.58
B52: MAI | C52: 1411.32 | D52: 0.41 | E52: 1.81 | F52: 4.01 | G52: 3.53 | H52: 7.71
B53: JUN | C53: 1418.94 | D53: 0.54 | E53: 1.84 | F53: 4.09 | G53: 4.09 | H53: 7.02
B54: JUL | C54: 1422.06 | D54: 0.22 | E54: 1.17 | F54: 3.1 | G54: 4.31 | H54: 6.08
B55: AGO | C55: 1421.78 | D55: -0.02 | E55: 0.74 | F55: 2.56 | G55: 4.29 | H55: 5.59
B56: SET | C56: 1422.63 | D56: 0.06 | E56: 0.26 | F56: 2.11 | G56: 4.36 | H56: 5.5
B57: OUT | C57: 1425.9 | D57: 0.23 | E57: 0.27 | F57: 1.45 | G57: 4.6 | H57: 5.42
B58: NOV | C58: 1428.32 | D58: 0.17 | E58: 0.46 | F58: 1.2 | G58: 4.77 | H58: 5.27
B59: DEZ | C59: 1434.46 | D59: 0.43 | E59: 0.83 | F59: 1.09 | G59: 5.22 | H59: 5.22
A61: 1998 | B61: JAN | C61: 1444.64 | D61: 0.71 | E61: 1.31 | F61: 1.59 | G61: 0.71 | H61: 4.73
B62: FEV | C62: 1451.29 | D62: 0.46 | E62: 1.61 | F62: 2.08 | G62: 1.17 | H62: 4.69
B63: MAR | C63: 1456.22 | D63: 0.34 | E63: 1.52 | F63: 2.36 | G63: 1.52 | H63: 4.52
B64: ABR | C64: 1459.71 | D64: 0.24 | E64: 1.04 | F64: 2.37 | G64: 1.76 | H64: 3.85
B65: MAI | C65: 1467.01 | D65: 0.5 | E65: 1.08 | F65: 2.71 | G65: 2.27 | H65: 3.95
B66: JUN | C66: 1467.3 | D66: 0.02 | E66: 0.76 | F66: 2.29 | G66: 2.29 | H66: 3.41
B67: JUL | C67: 1465.54 | D67: -0.12 | E67: 0.4 | F67: 1.45 | G67: 2.17 | H67: 3.06
B68: AGO | C68: 1458.07 | D68: -0.51 | E68: -0.61 | F68: 0.47 | G68: 1.65 | H68: 2.55
B69: SET | C69: 1454.86 | D69: -0.22 | E69: -0.85 | F69: -0.09 | G69: 1.42 | H69: 2.27
B70: OUT | C70: 1455.15 | D70: 0.02 | E70: -0.71 | F70: -0.31 | G70: 1.44 | H70: 2.05
B71: NOV | C71: 1453.4 | D71: -0.12 | E71: -0.32 | F71: -0.93 | G71: 1.32 | H71: 1.76
B72: DEZ | C72: 1458.2 | D72: 0.33 | E72: 0.23 | F72: -0.62 | G72: 1.65 | H72: 1.65
A75: SÉRIE HISTÓRICA DO IPCA
H76: (continuação)
F77: VARIAÇÃO
A78: ANO | B78: MÊS | C78: NÚMERO ÍNDICE | D78: (%)
C79: (DEZ 93 = 100) | D79: NO | E79: 3 | F79: 6 | G79: NO | H79: 12
D80: MÊS | E80: MESES | F80: MESES | G80: ANO | H80: MESES
A82: 1999 | B82: JAN | C82: 1468.41 | D82: 0.7 | E82: 0.91 | F82: 0.2 | G82: 0.7 | H82: 1.65
B83: FEV | C83: 1483.83 | D83: 1.05 | E83: 2.09 | F83: 1.77 | G83: 1.76 | H83: 2.24
B84: MAR | C84: 1500.15 | D84: 1.1 | E84: 2.88 | F84: 3.11 | G84: 2.88 | H84: 3.02
B85: ABR | C85: 1508.55 | D85: 0.56 | E85: 2.73 | F85: 3.67 | G85: 3.45 | H85: 3.35
B86: MAI | C86: 1513.08 | D86: 0.3 | E86: 1.97 | F86: 4.11 | G86: 3.76 | H86: 3.14
B87: JUN | C87: 1515.95 | D87: 0.19 | E87: 1.05 | F87: 3.96 | G87: 3.96 | H87: 3.32
B88: JUL | C88: 1532.47 | D88: 1.09 | E88: 1.59 | F88: 4.36 | G88: 5.09 | H88: 4.57
B89: AGO | C89: 1541.05 | D89: 0.56 | E89: 1.85 | F89: 3.86 | G89: 5.68 | H89: 5.69
B90: SET | C90: 1545.83 | D90: 0.31 | E90: 1.97 | F90: 3.05 | G90: 6.01 | H90: 6.25
B91: OUT | C91: 1564.23 | D91: 1.19 | E91: 2.07 | F91: 3.69 | G91: 7.27 | H91: 7.5
B92: NOV | C92: 1579.09 | D92: 0.95 | E92: 2.47 | F92: 4.36 | G92: 8.29 | H92: 8.65
B93: DEZ | C93: 1588.56 | D93: 0.6 | E93: 2.76 | F93: 4.79 | G93: 8.94 | H93: 8.94
A95: 2000 | B95: JAN | C95: 1598.41 | D95: 0.62 | E95: 2.19 | F95: 4.3 | G95: 0.62 | H95: 8.85
B96: FEV | C96: 1600.49 | D96: 0.13 | E96: 1.36 | F96: 3.86 | G96: 0.75 | H96: 7.86
B97: MAR | C97: 1604.01 | D97: 0.22 | E97: 0.97 | F97: 3.76 | G97: 0.97 | H97: 6.92
B98: ABR | C98: 1610.75 | D98: 0.42 | E98: 0.77 | F98: 2.97 | G98: 1.4 | H98: 6.77
B99: MAI | C99: 1610.91 | D99: 0.01 | E99: 0.65 | F99: 2.02 | G99: 1.41 | H99: 6.47
B100: JUN | C100: 1614.62 | D100: 0.23 | E100: 0.66 | F100: 1.64 | G100: 1.64 | H100: 6.51
B101: JUL | C101: 1640.62 | D101: 1.61 | E101: 1.85 | F101: 2.64 | G101: 3.28 | H101: 7.06
B102: AGO | C102: 1662.11 | D102: 1.31 | E102: 3.18 | F102: 3.85 | G102: 4.63 | H102: 7.86
B103: SET | C103: 1665.93 | D103: 0.23 | E103: 3.18 | F103: 3.86 | G103: 4.87 | H103: 7.77
B104: OUT | C104: 1668.26 | D104: 0.14 | E104: 1.68 | F104: 3.57 | G104: 5.02 | H104: 6.65
B105: NOV | C105: 1673.6 | D105: 0.32 | E105: 0.69 | F105: 3.89 | G105: 5.35 | H105: 5.99
B106: DEZ | C106: 1683.47 | D106: 0.59 | E106: 1.05 | F106: 4.26 | G106: 5.97 | H106: 5.97
A108: 2001 | B108: JAN | C108: 1693.07 | D108: 0.57 | E108: 1.49 | F108: 3.2 | G108: 0.57 | H108: 5.92
B109: FEV | C109: 1700.86 | D109: 0.46 | E109: 1.63 | F109: 2.33 | G109: 1.03 | H109: 6.27
B110: MAR | C110: 1707.32 | D110: 0.38 | E110: 1.42 | F110: 2.48 | G110: 1.42 | H110: 6.44
B111: ABR | C111: 1717.22 | D111: 0.58 | E111: 1.43 | F111: 2.93 | G111: 2 | H111: 6.61
B112: MAI | C112: 1724.26 | D112: 0.41 | E112: 1.38 | F112: 3.03 | G112: 2.42 | H112: 7.04
B113: JUN | C113: 1733.23 | D113: 0.52 | E113: 1.52 | F113: 2.96 | G113: 2.96 | H113: 7.35
B114: JUL | C114: 1756.28 | D114: 1.33 | E114: 2.27 | F114: 3.73 | G114: 4.32 | H114: 7.05
B115: AGO | C115: 1768.57 | D115: 0.7 | E115: 2.57 | F115: 3.98 | G115: 5.06 | H115: 6.41
B116: SET | C116: 1773.52 | D116: 0.28 | E116: 2.32 | F116: 3.88 | G116: 5.35 | H116: 6.46
B117: OUT | C117: 1788.24 | D117: 0.83 | E117: 1.82 | F117: 4.14 | G117: 6.22 | H117: 7.19
B118: NOV | C118: 1800.94 | D118: 0.71 | E118: 1.83 | F118: 4.45 | G118: 6.98 | H118: 7.61
B119: DEZ | C119: 1812.65 | D119: 0.65 | E119: 2.21 | F119: 4.58 | G119: 7.67 | H119: 7.67
A121: 2002 | B121: JAN | C121: 1822.08 | D121: 0.52 | E121: 1.89 | F121: 3.75 | G121: 0.52 | H121: 7.62
B122: FEV | C122: 1828.64 | D122: 0.36 | E122: 1.54 | F122: 3.4 | G122: 0.88 | H122: 7.51
B123: MAR | C123: 1839.61 | D123: 0.6 | E123: 1.49 | F123: 3.73 | G123: 1.49 | H123: 7.75
B124: ABR | C124: 1854.33 | D124: 0.8 | E124: 1.77 | F124: 3.7 | G124: 2.3 | H124: 7.98
B125: MAI | C125: 1858.22 | D125: 0.21 | E125: 1.62 | F125: 3.18 | G125: 2.51 | H125: 7.77
B126: JUN | C126: 1866.02 | D126: 0.42 | E126: 1.44 | F126: 2.94 | G126: 2.94 | H126: 7.66
B127: JUL | C127: 1888.23 | D127: 1.19 | E127: 1.83 | F127: 3.63 | G127: 4.17 | H127: 7.51
B128: AGO | C128: 1900.5 | D128: 0.65 | E128: 2.28 | F128: 3.93 | G128: 4.85 | H128: 7.46
B129: SET | C129: 1914.18 | D129: 0.72 | E129: 2.58 | F129: 4.05 | G129: 5.6 | H129: 7.93
B130: OUT | C130: 1939.26 | D130: 1.31 | E130: 2.7 | F130: 4.58 | G130: 6.98 | H130: 8.45
B131: NOV | C131: 1997.83 | D131: 3.02 | E131: 5.12 | F131: 7.51 | G131: 10.22 | H131: 10.93
B132: DEZ | C132: 2039.78 | D132: 2.1 | E132: 6.56 | F132: 9.31 | G132: 12.53 | H132: 12.53
A134: 2003 | B134: JAN | C134: 2085.68 | D134: 2.25 | E134: 7.55 | F134: 10.46 | G134: 2.25 | H134: 14.47
B135: FEV | C135: 2118.43 | D135: 1.57 | E135: 6.04 | F135: 11.47 | G135: 3.86 | H135: 15.85
B136: MAR | C136: 2144.49 | D136: 1.23 | E136: 5.13 | F136: 12.03 | G136: 5.13 | H136: 16.57
B137: ABR | C137: 2165.29 | D137: 0.97 | E137: 3.82 | F137: 11.66 | G137: 6.15 | H137: 16.77
B138: MAI | C138: 2178.5 | D138: 0.61 | E138: 2.84 | F138: 9.04 | G138: 6.8 | H138: 17.24
B139: JUN | C139: 2175.23 | D139: -0.15 | E139: 1.43 | F139: 6.64 | G139: 6.64 | H139: 16.57
B140: JUL | C140: 2179.58 | D140: 0.2 | E140: 0.66 | F140: 4.5 | G140: 6.85 | H140: 15.43
B141: AGO | C141: 2186.99 | D141: 0.34 | E141: 0.39 | F141: 3.24 | G141: 7.22 | H141: 15.07
B142: SET | C142: 2204.05 | D142: 0.78 | E142: 1.32 | F142: 2.78 | G142: 8.05 | H142: 15.14
B143: OUT | C143: 2210.44 | D143: 0.29 | E143: 1.42 | F143: 2.09 | G143: 8.37 | H143: 13.98
B144: NOV | C144: 2217.96 | D144: 0.34 | E144: 1.42 | F144: 1.81 | G144: 8.74 | H144: 11.02
B145: DEZ | C145: 2229.49 | D145: 0.52 | E145: 1.15 | F145: 2.49 | G145: 9.3 | H145: 9.3
A148: SÉRIE HISTÓRICA DO IPCA
H149: (continuação)
F150: VARIAÇÃO
A151: ANO | B151: MÊS | C151: NÚMERO ÍNDICE | D151: (%)
C152: (DEZ 93 = 100) | D152: NO | E152: 3 | F152: 6 | G152: NO | H152: 12
D153: MÊS | E153: MESES | F153: MESES | G153: ANO | H153: MESES
A155: 2004 | B155: JAN | C155: 2246.43 | D155: 0.76 | E155: 1.63 | F155: 3.07 | G155: 0.76 | H155: 7.71
B156: FEV | C156: 2260.13 | D156: 0.61 | E156: 1.9 | F156: 3.34 | G156: 1.37 | H156: 6.69
B157: MAR | C157: 2270.75 | D157: 0.47 | E157: 1.85 | F157: 3.03 | G157: 1.85 | H157: 5.89
B158: ABR | C158: 2279.15 | D158: 0.37 | E158: 1.46 | F158: 3.11 | G158: 2.23 | H158: 5.26
B159: MAI | C159: 2290.77 | D159: 0.51 | E159: 1.36 | F159: 3.28 | G159: 2.75 | H159: 5.15
B160: JUN | C160: 2307.03 | D160: 0.71 | E160: 1.6 | F160: 3.48 | G160: 3.48 | H160: 6.06
B161: JUL | C161: 2328.02 | D161: 0.91 | E161: 2.14 | F161: 3.63 | G161: 4.42 | H161: 6.81
B162: AGO | C162: 2344.08 | D162: 0.69 | E162: 2.33 | F162: 3.71 | G162: 5.14 | H162: 7.18
B163: SET | C163: 2351.82 | D163: 0.33 | E163: 1.94 | F163: 3.57 | G163: 5.49 | H163: 6.7
B164: OUT | C164: 2362.17 | D164: 0.44 | E164: 1.47 | F164: 3.64 | G164: 5.95 | H164: 6.86
B165: NOV | C165: 2378.47 | D165: 0.69 | E165: 1.47 | F165: 3.83 | G165: 6.68 | H165: 7.24
B166: DEZ | C166: 2398.92 | D166: 0.86 | E166: 2 | F166: 3.98 | G166: 7.6 | H166: 7.6
A168: 2005 | B168: JAN | C168: 2412.83 | D168: 0.58 | E168: 2.14 | F168: 3.64 | G168: 0.58 | H168: 7.41
B169: FEV | C169: 2427.07 | D169: 0.59 | E169: 2.04 | F169: 3.54 | G169: 1.17 | H169: 7.39
B170: MAR | C170: 2441.87 | D170: 0.61 | E170: 1.79 | F170: 3.83 | G170: 1.79 | H170: 7.54
B171: ABR | C171: 2463.11 | D171: 0.87 | E171: 2.08 | F171: 4.27 | G171: 2.68 | H171: 8.07
B172: MAI | C172: 2475.18 | D172: 0.49 | E172: 1.98 | F172: 4.07 | G172: 3.18 | H172: 8.05
B173: JUN | C173: 2474.68 | D173: -0.02 | E173: 1.34 | F173: 3.16 | G173: 3.16 | H173: 7.27
B174: JUL | C174: 2480.87 | D174: 0.25 | E174: 0.72 | F174: 2.82 | G174: 3.42 | H174: 6.57
B175: AGO | C175: 2485.09 | D175: 0.17 | E175: 0.4 | F175: 2.39 | G175: 3.59 | H175: 6.02
B176: SET | C176: 2493.79 | D176: 0.35 | E176: 0.77 | F176: 2.13 | G176: 3.95 | H176: 6.04
B177: OUT | C177: 2512.49 | D177: 0.75 | E177: 1.27 | F177: 2 | G177: 4.73 | H177: 6.36
B178: NOV | C178: 2526.31 | D178: 0.55 | E178: 1.66 | F178: 2.07 | G178: 5.31 | H178: 6.22
B179: DEZ | C179: 2535.4 | D179: 0.36 | E179: 1.67 | F179: 2.45 | G179: 5.69 | H179: 5.69
A181: 2006 | B181: JAN | C181: 2550.36 | D181: 0.59 | E181: 1.51 | F181: 2.8 | G181: 0.59 | H181: 5.7
B182: FEV | C182: 2560.82 | D182: 0.41 | E182: 1.37 | F182: 3.05 | G182: 1 | H182: 5.51
B183: MAR | C183: 2571.83 | D183: 0.43 | E183: 1.44 | F183: 3.13 | G183: 1.44 | H183: 5.32
B184: ABR | C184: 2577.23 | D184: 0.21 | E184: 1.05 | F184: 2.58 | G184: 1.65 | H184: 4.63
B185: MAI | C185: 2579.81 | D185: 0.1 | E185: 0.74 | F185: 2.12 | G185: 1.75 | H185: 4.23
B186: JUN | C186: 2574.39 | D186: -0.21 | E186: 0.1 | F186: 1.54 | G186: 1.54 | H186: 4.03
B187: JUL | C187: 2579.28 | D187: 0.19 | E187: 0.08 | F187: 1.13 | G187: 1.73 | H187: 3.97
B188: AGO | C188: 2580.57 | D188: 0.05 | E188: 0.03 | F188: 0.77 | G188: 1.78 | H188: 3.84
B189: SET | C189: 2585.99 | D189: 0.21 | E189: 0.45 | F189: 0.55 | G189: 2 | H189: 3.7
B190: OUT | C190: 2594.52 | D190: 0.33 | E190: 0.59 | F190: 0.67 | G190: 2.33 | H190: 3.26
B191: NOV | C191: 2602.56 | D191: 0.31 | E191: 0.85 | F191: 0.88 | G191: 2.65 | H191: 3.02
B192: DEZ | C192: 2615.05 | D192: 0.48 | E192: 1.12 | F192: 1.58 | G192: 3.14 | H192: 3.14
A194: 2007 | B194: JAN | C194: 2626.56 | D194: 0.44 | E194: 1.23 | F194: 1.83 | G194: 0.44 | H194: 2.99
B195: FEV | C195: 2638.12 | D195: 0.44 | E195: 1.37 | F195: 2.23 | G195: 0.88 | H195: 3.02
B196: MAR | C196: 2647.88 | D196: 0.37 | E196: 1.26 | F196: 2.39 | G196: 1.26 | H196: 2.96
B197: ABR | C197: 2654.5 | D197: 0.25 | E197: 1.06 | F197: 2.31 | G197: 1.51 | H197: 3
B198: MAI | C198: 2661.93 | D198: 0.28 | E198: 0.9 | F198: 2.28 | G198: 1.79 | H198: 3.18
B199: JUN | C199: 2669.38 | D199: 0.28 | E199: 0.81 | F199: 2.08 | G199: 2.08 | H199: 3.69
B200: JUL | C200: 2675.79 | D200: 0.24 | E200: 0.8 | F200: 1.87 | G200: 2.32 | H200: 3.74
B201: AGO | C201: 2688.37 | D201: 0.47 | E201: 0.99 | F201: 1.9 | G201: 2.8 | H201: 4.18
B202: SET | C202: 2693.21 | D202: 0.18 | E202: 0.89 | F202: 1.71 | G202: 2.99 | H202: 4.15
B203: OUT | C203: 2701.29 | D203: 0.3 | E203: 0.95 | F203: 1.76 | G203: 3.3 | H203: 4.12
B204: NOV | C204: 2711.55 | D204: 0.38 | E204: 0.86 | F204: 1.86 | G204: 3.69 | H204: 4.19
B205: DEZ | C205: 2731.62 | D205: 0.74 | E205: 1.43 | F205: 2.33 | G205: 4.46 | H205: 4.46
A207: 2008 | B207: JAN | C207: 2746.37 | D207: 0.54 | E207: 1.67 | F207: 2.64 | G207: 0.54 | H207: 4.56
B208: FEV | C208: 2759.83 | D208: 0.49 | E208: 1.78 | F208: 2.66 | G208: 1.03 | H208: 4.61
B209: MAR | C209: 2773.08 | D209: 0.48 | E209: 1.52 | F209: 2.97 | G209: 1.52 | H209: 4.73
B210: ABR | C210: 2788.33 | D210: 0.55 | E210: 1.53 | F210: 3.22 | G210: 2.08 | H210: 5.04
B211: MAI | C211: 2810.36 | D211: 0.79 | E211: 1.83 | F211: 3.64 | G211: 2.88 | H211: 5.58
B212: JUN | C212: 2831.16 | D212: 0.74 | E212: 2.09 | F212: 3.64 | G212: 3.64 | H212: 6.06
B213: JUL | C213: 2846.16 | D213: 0.53 | E213: 2.07 | F213: 3.63 | G213: 4.19 | H213: 6.37
B214: AGO | C214: 2854.13 | D214: 0.28 | E214: 1.56 | F214: 3.42 | G214: 4.48 | H214: 6.17
B215: SET | C215: 2861.55 | D215: 0.26 | E215: 1.07 | F215: 3.19 | G215: 4.76 | H215: 6.25
B216: OUT | C216: 2874.43 | D216: 0.45 | E216: 0.99 | F216: 3.09 | G216: 5.23 | H216: 6.41
B217: NOV | C217: 2884.78 | D217: 0.36 | E217: 1.07 | F217: 2.65 | G217: 5.61 | H217: 6.39
B218: DEZ | C218: 2892.86 | D218: 0.28 | E218: 1.09 | F218: 2.18 | G218: 5.9 | H218: 5.9
A221: SÉRIE HISTÓRICA DO IPCA
H222: (continuação)
... 210 more rows

Sheet Aux. - OPEX Realizado - Resumo
B2: OPEX ORIGINAL
F4: 2020 | G4: 2021 | H4: 2022 | I4: 2023 | J4: 2024-09-01
B5: Cód Blcte | C5: Natureza | D5: Descrição | F5: Total | G5: Total | H5: Total | I5: Total | J5: Total Estimado para o ano
C6: Pessoal Total | D6: Pessoal Total | F6: 1283438029 | G6: 1152097247 | H6: 1342761371 | I6: 1463329832 | J6: 1766509065
C7: Materiais Gerais Total | D7: Materiais Gerais Total | F7: 71400133.2 | G7: 84093787.24 | H7: 98673769.48 | I7: 112678575.1 | J7: 114819141.7
C8: Materiais de Tratamento Total | D8: Materiais de Tratamento Total | F8: 143969407.8 | G8: 140364063.7 | H8: 200548770.5 | I8: 216613235 | J8: 199079506.9
C9: Serviços de Terceiros Total | D9: Serviços de Terceiros Total | F9: 630003147.5 | G9: 640948156.2 | H9: 689655411.9 | I9: 822318933.3 | J9: 1019970699
C10: Despesas Gerais Total | D10: Despesas Gerais Total | F10: 1021677924 | G10: 1152109650 | H10: 1405332479 | I10: 1326424882 | J10: 1321987518
C12: TOTAL GERAL | D12: TOTAL GERAL | F12: =SUM(F6:F10) -> 3150488642 | G12: =SUM(G6:G10) -> 3169612904 | H12: 3736971802 | I12: 3941365458 | J12: 4422365931
B19: OPEX ORIGINAL COM GLOSAS
F21: 2020 | G21: 2021 | H21: 2022 | I21: 2023 | J21: 2024-09-01
B22: Cód Blcte | C22: Natureza | D22: Descrição | F22: Total | G22: Total | H22: Total | I22: Total | J22: Total Estimado para o ano
C23: Pessoal Total | D23: Pessoal Total | F23: 1174786345 | G23: 1038374783 | H23: 1216860285 | I23: 1307705028 | J23: 1608024934
C24: Materiais Gerais Total | D24: Materiais Gerais Total | F24: 71400133.2 | G24: 84093787.24 | H24: 98673769.48 | I24: 112678575.1 | J24: 114819141.7
C25: Materiais de Tratamento Total | D25: Materiais de Tratamento Total | F25: 143969407.8 | G25: 140364063.7 | H25: 200548770.5 | I25: 216613235 | J25: 199079506.9
C26: Serviços de Terceiros Total | D26: Serviços de Terceiros Total | F26: 630003147.5 | G26: 640948156.2 | H26: 689655411.9 | I26: 822318933.3 | J26: 980606936.2
C27: Despesas Gerais Total | D27: Despesas Gerais Total | F27: 22317900.11 | G27: 21815481.18 | H27: 74659639.81 | I27: 64551195.92 | J27: -45622150.44
C29: TOTAL GERAL | D29: TOTAL GERAL | F29: =SUM(F23:F27) -> 2042476934 | G29: =SUM(G23:G27) -> 1925596271 | H29: 2280397876 | I29: 2523866968 | J29: 2856908368
